Workbook

Sheet dashboard
D4: =参数!I2&参数!I3 -> 衡水烨通汽贸办公用品管理分析报告 | AE4: Date
D5: Office supplies management analysis report [DashboardPro6.0] | AE5: =NOW() -> 2015-03-25T16:51:52.590
D10: 品名 | E10: 出库 金额 | F10: 采购 金额 | I10: 库存 数量 | K10: 采购 数量 | N10: 出库 数量 | Q10: 领用最多 | R10: 领用 数量
D13: =计算!AB2 -> 饼干 | E13: =VLOOKUP(D13,计算!$A$1:$G$60,3,FALSE) -> 1800 | F13: =VLOOKUP(D13,计算!$A$1:$G$60,2,FALSE) -> 3036 | I13: =VLOOKUP(D13,计算!$A$1:$G$60,4,FALSE) -> 1236 | J13: =I13 -> 1236 | K13: =VLOOKUP(D13,计算!$A$1:$G$60,5,FALSE) -> 5060 | N13: =VLOOKUP(D13,计算!$A$1:$G$60,6,FALSE) -> 3000 | Q13: =VLOOKUP(D13,计算!$A$1:$Q$60,17,FALSE) -> 其他 | R13: =VLOOKUP(D13,计算!$A$1:$Q$60,16,FALSE) -> 0.007 | S13: =R13 -> 0.007
D14: =计算!AB3 -> 笤帚 | E14: =VLOOKUP(D14,计算!$A$1:$G$60,3,FALSE) -> 1515 | F14: =VLOOKUP(D14,计算!$A$1:$G$60,2,FALSE) -> 4530 | I14: =VLOOKUP(D14,计算!$A$1:$G$60,4,FALSE) -> 3015 | J14: =I14 -> 3015 | K14: =VLOOKUP(D14,计算!$A$1:$G$60,5,FALSE) -> 3020 | N14: =VLOOKUP(D14,计算!$A$1:$G$60,6,FALSE) -> 1010 | Q14: =VLOOKUP(D14,计算!$A$1:$Q$60,17,FALSE) -> 财务部 | R14: =VLOOKUP(D14,计算!$A$1:$Q$60,16,FALSE) -> 10.005 | S14: =R14 -> 10.005
D15: =计算!AB4 -> 支出证明 | E15: =VLOOKUP(D15,计算!$A$1:$G$60,3,FALSE) -> 1215 | F15: =VLOOKUP(D15,计算!$A$1:$G$60,2,FALSE) -> 1650 | I15: =VLOOKUP(D15,计算!$A$1:$G$60,4,FALSE) -> 4185 | J15: 4185 | K15: =VLOOKUP(D15,计算!$A$1:$G$60,5,FALSE) -> 1100 | N15: =VLOOKUP(D15,计算!$A$1:$G$60,6,FALSE) -> 810 | Q15: =VLOOKUP(D15,计算!$A$1:$Q$60,17,FALSE) -> 机修车间 | R15: =VLOOKUP(D15,计算!$A$1:$Q$60,16,FALSE) -> 10 | S15: 10
D16: =计算!AB5 -> 9v电池 | E16: =VLOOKUP(D16,计算!$A$1:$G$60,3,FALSE) -> 900 | F16: =VLOOKUP(D16,计算!$A$1:$G$60,2,FALSE) -> 1200 | I16: =VLOOKUP(D16,计算!$A$1:$G$60,4,FALSE) -> 300 | J16: 300 | K16: =VLOOKUP(D16,计算!$A$1:$G$60,5,FALSE) -> 2000 | N16: =VLOOKUP(D16,计算!$A$1:$G$60,6,FALSE) -> 1500 | Q16: =VLOOKUP(D16,计算!$A$1:$Q$60,17,FALSE) -> 其他 | R16: =VLOOKUP(D16,计算!$A$1:$Q$60,16,FALSE) -> 0.007 | S16: 0.007
D17: =计算!AB6 -> 色带 | E17: =VLOOKUP(D17,计算!$A$1:$G$60,3,FALSE) -> 90 | F17: =VLOOKUP(D17,计算!$A$1:$G$60,2,FALSE) -> 180 | I17: =VLOOKUP(D17,计算!$A$1:$G$60,4,FALSE) -> 90 | J17: 90 | K17: =VLOOKUP(D17,计算!$A$1:$G$60,5,FALSE) -> 300 | N17: =VLOOKUP(D17,计算!$A$1:$G$60,6,FALSE) -> 150 | Q17: =VLOOKUP(D17,计算!$A$1:$Q$60,17,FALSE) -> 钣喷部 | R17: =VLOOKUP(D17,计算!$A$1:$Q$60,16,FALSE) -> 150.004 | S17: 150.004
D18: =计算!AB7 -> 条码纸 | E18: =VLOOKUP(D18,计算!$A$1:$G$60,3,FALSE) -> 90 | F18: =VLOOKUP(D18,计算!$A$1:$G$60,2,FALSE) -> 120 | I18: =VLOOKUP(D18,计算!$A$1:$G$60,4,FALSE) -> 30 | J18: 30 | K18: =VLOOKUP(D18,计算!$A$1:$G$60,5,FALSE) -> 200 | N18: =VLOOKUP(D18,计算!$A$1:$G$60,6,FALSE) -> 150 | Q18: =VLOOKUP(D18,计算!$A$1:$Q$60,17,FALSE) -> 机修车间 | R18: =VLOOKUP(D18,计算!$A$1:$Q$60,16,FALSE) -> 150.003 | S18: 150.003
D19: =计算!AB8 -> 卫生纸 | E19: =VLOOKUP(D19,计算!$A$1:$G$60,3,FALSE) -> 60 | F19: =VLOOKUP(D19,计算!$A$1:$G$60,2,FALSE) -> 90 | I19: =VLOOKUP(D19,计算!$A$1:$G$60,4,FALSE) -> 30 | J19: 30 | K19: =VLOOKUP(D19,计算!$A$1:$G$60,5,FALSE) -> 60 | N19: =VLOOKUP(D19,计算!$A$1:$G$60,6,FALSE) -> 40 | Q19: =VLOOKUP(D19,计算!$A$1:$Q$60,17,FALSE) -> 机修车间 | R19: =VLOOKUP(D19,计算!$A$1:$Q$60,16,FALSE) -> 40.003 | S19: 40.003
D20: =计算!AB9 -> 圆珠笔 | E20: =VLOOKUP(D20,计算!$A$1:$G$60,3,FALSE) -> 60 | F20: =VLOOKUP(D20,计算!$A$1:$G$60,2,FALSE) -> 300 | I20: =VLOOKUP(D20,计算!$A$1:$G$60,4,FALSE) -> 240 | J20: 240 | K20: =VLOOKUP(D20,计算!$A$1:$G$60,5,FALSE) -> 200 | N20: =VLOOKUP(D20,计算!$A$1:$G$60,6,FALSE) -> 40 | Q20: =VLOOKUP(D20,计算!$A$1:$Q$60,17,FALSE) -> 销售部 | R20: =VLOOKUP(D20,计算!$A$1:$Q$60,16,FALSE) -> 30.001 | S20: 30.001
D21: =计算!AB10 -> 拉链袋 | E21: =VLOOKUP(D21,计算!$A$1:$G$60,3,FALSE) -> 58.8 | F21: =VLOOKUP(D21,计算!$A$1:$G$60,2,FALSE) -> 60 | I21: =VLOOKUP(D21,计算!$A$1:$G$60,4,FALSE) -> 121.2 | J21: 121.2 | K21: =VLOOKUP(D21,计算!$A$1:$G$60,5,FALSE) -> 100 | N21: =VLOOKUP(D21,计算!$A$1:$G$60,6,FALSE) -> 98 | Q21: =VLOOKUP(D21,计算!$A$1:$Q$60,17,FALSE) -> 机修车间 | R21: =VLOOKUP(D21,计算!$A$1:$Q$60,16,FALSE) -> 98.003 | S21: 98.003
D22: =计算!AB11 -> 洗衣粉 | E22: =VLOOKUP(D22,计算!$A$1:$G$60,3,FALSE) -> 45 | F22: =VLOOKUP(D22,计算!$A$1:$G$60,2,FALSE) -> 90 | I22: =VLOOKUP(D22,计算!$A$1:$G$60,4,FALSE) -> 45 | J22: 45 | K22: =VLOOKUP(D22,计算!$A$1:$G$60,5,FALSE) -> 60 | N22: =VLOOKUP(D22,计算!$A$1:$G$60,6,FALSE) -> 30 | Q22: =VLOOKUP(D22,计算!$A$1:$Q$60,17,FALSE) -> 服务部 | R22: =VLOOKUP(D22,计算!$A$1:$Q$60,16,FALSE) -> 30.002 | S22: 30.002
D23: =计算!AB12 -> 印油 | E23: =VLOOKUP(D23,计算!$A$1:$G$60,3,FALSE) -> 37.5 | F23: =VLOOKUP(D23,计算!$A$1:$G$60,2,FALSE) -> 90 | I23: =VLOOKUP(D23,计算!$A$1:$G$60,4,FALSE) -> 52.5 | J23: 52.5 | K23: =VLOOKUP(D23,计算!$A$1:$G$60,5,FALSE) -> 60 | N23: =VLOOKUP(D23,计算!$A$1:$G$60,6,FALSE) -> 25 | Q23: =VLOOKUP(D23,计算!$A$1:$Q$60,17,FALSE) -> 客服部 | R23: =VLOOKUP(D23,计算!$A$1:$Q$60,16,FALSE) -> 25.006 | S23: 25.006
D24: =计算!AB13 -> 记号笔 | E24: =VLOOKUP(D24,计算!$A$1:$G$60,3,FALSE) -> 30 | F24: =VLOOKUP(D24,计算!$A$1:$G$60,2,FALSE) -> 36 | I24: =VLOOKUP(D24,计算!$A$1:$G$60,4,FALSE) -> 6 | J24: 6 | K24: =VLOOKUP(D24,计算!$A$1:$G$60,5,FALSE) -> 60 | N24: =VLOOKUP(D24,计算!$A$1:$G$60,6,FALSE) -> 50 | Q24: =VLOOKUP(D24,计算!$A$1:$Q$60,17,FALSE) -> 服务部 | R24: =VLOOKUP(D24,计算!$A$1:$Q$60,16,FALSE) -> 50.002 | S24: 50.002
D25: =计算!AB14 -> 文件夹 | E25: =VLOOKUP(D25,计算!$A$1:$G$60,3,FALSE) -> 30 | F25: =VLOOKUP(D25,计算!$A$1:$G$60,2,FALSE) -> 75 | I25: =VLOOKUP(D25,计算!$A$1:$G$60,4,FALSE) -> 345 | J25: 345 | K25: =VLOOKUP(D25,计算!$A$1:$G$60,5,FALSE) -> 50 | N25: =VLOOKUP(D25,计算!$A$1:$G$60,6,FALSE) -> 20 | Q25: =VLOOKUP(D25,计算!$A$1:$Q$60,17,FALSE) -> 客服部 | R25: =VLOOKUP(D25,计算!$A$1:$Q$60,16,FALSE) -> 20.006 | S25: 20.006
D26: =计算!AB15 -> 燕尾夹 | E26: =VLOOKUP(D26,计算!$A$1:$G$60,3,FALSE) -> 30 | F26: =VLOOKUP(D26,计算!$A$1:$G$60,2,FALSE) -> 75 | I26: =VLOOKUP(D26,计算!$A$1:$G$60,4,FALSE) -> 45 | J26: 45 | K26: =VLOOKUP(D26,计算!$A$1:$G$60,5,FALSE) -> 50 | N26: =VLOOKUP(D26,计算!$A$1:$G$60,6,FALSE) -> 20 | Q26: =VLOOKUP(D26,计算!$A$1:$Q$60,17,FALSE) -> 钣喷部 | R26: =VLOOKUP(D26,计算!$A$1:$Q$60,16,FALSE) -> 20.004 | S26: 20.004
D27: =计算!AB16 -> 垃圾袋 | E27: =VLOOKUP(D27,计算!$A$1:$G$60,3,FALSE) -> 18 | F27: =VLOOKUP(D27,计算!$A$1:$G$60,2,FALSE) -> 36 | I27: =VLOOKUP(D27,计算!$A$1:$G$60,4,FALSE) -> 18 | J27: 18 | K27: =VLOOKUP(D27,计算!$A$1:$G$60,5,FALSE) -> 60 | N27: =VLOOKUP(D27,计算!$A$1:$G$60,6,FALSE) -> 30 | Q27: =VLOOKUP(D27,计算!$A$1:$Q$60,17,FALSE) -> 其他 | R27: =VLOOKUP(D27,计算!$A$1:$Q$60,16,FALSE) -> 0.007 | S27: 0.007
D28: =计算!AB17 -> 曲别针 | E28: =VLOOKUP(D28,计算!$A$1:$G$60,3,FALSE) -> 18 | F28: =VLOOKUP(D28,计算!$A$1:$G$60,2,FALSE) -> 30 | I28: =VLOOKUP(D28,计算!$A$1:$G$60,4,FALSE) -> 12 | J28: 12 | K28: =VLOOKUP(D28,计算!$A$1:$G$60,5,FALSE) -> 50 | N28: =VLOOKUP(D28,计算!$A$1:$G$60,6,FALSE) -> 30 | Q28: =VLOOKUP(D28,计算!$A$1:$Q$60,17,FALSE) -> 财务部 | R28: =VLOOKUP(D28,计算!$A$1:$Q$60,16,FALSE) -> 30.005 | S28: 30.005
D29: =计算!AB18 -> 糖 | E29: =VLOOKUP(D29,计算!$A$1:$G$60,3,FALSE) -> 18 | F29: =VLOOKUP(D29,计算!$A$1:$G$60,2,FALSE) -> 36 | I29: =VLOOKUP(D29,计算!$A$1:$G$60,4,FALSE) -> 18 | J29: 18 | K29: =VLOOKUP(D29,计算!$A$1:$G$60,5,FALSE) -> 60 | N29: =VLOOKUP(D29,计算!$A$1:$G$60,6,FALSE) -> 30 | Q29: =VLOOKUP(D29,计算!$A$1:$Q$60,17,FALSE) -> 服务部 | R29: =VLOOKUP(D29,计算!$A$1:$Q$60,16,FALSE) -> 30.002 | S29: 30.002
D30: =计算!AB19 -> 黑档案盒 | E30: =VLOOKUP(D30,计算!$A$1:$G$60,3,FALSE) -> 17.4 | F30: =VLOOKUP(D30,计算!$A$1:$G$60,2,FALSE) -> 18 | I30: =VLOOKUP(D30,计算!$A$1:$G$60,4,FALSE) -> 0.6 | J30: 0.6 | K30: =VLOOKUP(D30,计算!$A$1:$G$60,5,FALSE) -> 30 | N30: =VLOOKUP(D30,计算!$A$1:$G$60,6,FALSE) -> 29 | Q30: =VLOOKUP(D30,计算!$A$1:$Q$60,17,FALSE) -> 其他 | R30: =VLOOKUP(D30,计算!$A$1:$Q$60,16,FALSE) -> 0.007 | S30: 0.007
D31: =计算!AB20 -> 胶棒 | E31: =VLOOKUP(D31,计算!$A$1:$G$60,3,FALSE) -> 16.8 | F31: =VLOOKUP(D31,计算!$A$1:$G$60,2,FALSE) -> 48 | I31: =VLOOKUP(D31,计算!$A$1:$G$60,4,FALSE) -> 511.2 | J31: 511.2 | K31: =VLOOKUP(D31,计算!$A$1:$G$60,5,FALSE) -> 80 | N31: =VLOOKUP(D31,计算!$A$1:$G$60,6,FALSE) -> 28 | Q31: =VLOOKUP(D31,计算!$A$1:$Q$60,17,FALSE) -> 其他 | R31: =VLOOKUP(D31,计算!$A$1:$Q$60,16,FALSE) -> 0.007 | S31: 0.007
D32: =计算!AB21 -> 皮筋 | E32: =VLOOKUP(D32,计算!$A$1:$G$60,3,FALSE) -> 16.8 | F32: =VLOOKUP(D32,计算!$A$1:$G$60,2,FALSE) -> 34.8 | I32: =VLOOKUP(D32,计算!$A$1:$G$60,4,FALSE) -> 18 | J32: 18 | K32: =VLOOKUP(D32,计算!$A$1:$G$60,5,FALSE) -> 58 | N32: =VLOOKUP(D32,计算!$A$1:$G$60,6,FALSE) -> 28 | Q32: =VLOOKUP(D32,计算!$A$1:$Q$60,17,FALSE) -> 财务部 | R32: =VLOOKUP(D32,计算!$A$1:$Q$60,16,FALSE) -> 28.005 | S32: 28.005
D33: =计算!AB22 -> 收银纸 | E33: =VLOOKUP(D33,计算!$A$1:$G$60,3,FALSE) -> 16.8 | F33: =VLOOKUP(D33,计算!$A$1:$G$60,2,FALSE) -> 36 | I33: =VLOOKUP(D33,计算!$A$1:$G$60,4,FALSE) -> 19.2 | J33: 19.2 | K33: =VLOOKUP(D33,计算!$A$1:$G$60,5,FALSE) -> 60 | N33: =VLOOKUP(D33,计算!$A$1:$G$60,6,FALSE) -> 28 | Q33: =VLOOKUP(D33,计算!$A$1:$Q$60,17,FALSE) -> 财务部 | R33: =VLOOKUP(D33,计算!$A$1:$Q$60,16,FALSE) -> 28.005 | S33: 28.005
D34: =计算!AB23 -> 收据 | E34: =VLOOKUP(D34,计算!$A$1:$G$60,3,FALSE) -> 15.6 | F34: =VLOOKUP(D34,计算!$A$1:$G$60,2,FALSE) -> 36 | I34: =VLOOKUP(D34,计算!$A$1:$G$60,4,FALSE) -> 20.4 | J34: 20.4 | K34: =VLOOKUP(D34,计算!$A$1:$G$60,5,FALSE) -> 60 | N34: =VLOOKUP(D34,计算!$A$1:$G$60,6,FALSE) -> 26 | Q34: =VLOOKUP(D34,计算!$A$1:$Q$60,17,FALSE) -> 财务部 | R34: =VLOOKUP(D34,计算!$A$1:$Q$60,16,FALSE) -> 26.005 | S34: 26.005
D35: =计算!AB24 -> 碳带 | E35: =VLOOKUP(D35,计算!$A$1:$G$60,3,FALSE) -> 15 | F35: =VLOOKUP(D35,计算!$A$1:$G$60,2,FALSE) -> 60 | I35: =VLOOKUP(D35,计算!$A$1:$G$60,4,FALSE) -> 45 | J35: 45 | K35: =VLOOKUP(D35,计算!$A$1:$G$60,5,FALSE) -> 100 | N35: =VLOOKUP(D35,计算!$A$1:$G$60,6,FALSE) -> 25 | Q35: =VLOOKUP(D35,计算!$A$1:$Q$60,17,FALSE) -> 客服部 | R35: =VLOOKUP(D35,计算!$A$1:$Q$60,16,FALSE) -> 25.006 | S35: 25.006
D36: =计算!AB25 -> 借支单 | E36: =VLOOKUP(D36,计算!$A$1:$G$60,3,FALSE) -> 13.2 | F36: =VLOOKUP(D36,计算!$A$1:$G$60,2,FALSE) -> 18 | I36: =VLOOKUP(D36,计算!$A$1:$G$60,4,FALSE) -> 4.8 | J36: 4.8 | K36: =VLOOKUP(D36,计算!$A$1:$G$60,5,FALSE) -> 30 | N36: =VLOOKUP(D36,计算!$A$1:$G$60,6,FALSE) -> 22 | Q36: =VLOOKUP(D36,计算!$A$1:$Q$60,17,FALSE) -> 财务部 | R36: =VLOOKUP(D36,计算!$A$1:$Q$60,16,FALSE) -> 22.005 | S36: 22.005
D37: =计算!AB26 -> 手套 | E37: =VLOOKUP(D37,计算!$A$1:$G$60,3,FALSE) -> 12.6 | F37: =VLOOKUP(D37,计算!$A$1:$G$60,2,FALSE) -> 30 | I37: =VLOOKUP(D37,计算!$A$1:$G$60,4,FALSE) -> 17.4 | J37: 17.4 | K37: =VLOOKUP(D37,计算!$A$1:$G$60,5,FALSE) -> 50 | N37: =VLOOKUP(D37,计算!$A$1:$G$60,6,FALSE) -> 21 | Q37: =VLOOKUP(D37,计算!$A$1:$Q$60,17,FALSE) -> 机修车间 | R37: =VLOOKUP(D37,计算!$A$1:$Q$60,16,FALSE) -> 21.003 | S37: 21.003
D38: =计算!AB27 -> 费用报销单 | E38: =VLOOKUP(D38,计算!$A$1:$G$60,3,FALSE) -> 9.6 | F38: =VLOOKUP(D38,计算!$A$1:$G$60,2,FALSE) -> 12 | I38: =VLOOKUP(D38,计算!$A$1:$G$60,4,FALSE) -> 2.4 | J38: 2.4 | K38: =VLOOKUP(D38,计算!$A$1:$G$60,5,FALSE) -> 20 | N38: =VLOOKUP(D38,计算!$A$1:$G$60,6,FALSE) -> 16 | Q38: =VLOOKUP(D38,计算!$A$1:$Q$60,17,FALSE) -> 钣喷部 | R38: =VLOOKUP(D38,计算!$A$1:$Q$60,16,FALSE) -> 16.004 | S38: 16.004
D39: =计算!AB28 -> 档案盒 | E39: =VLOOKUP(D39,计算!$A$1:$G$60,3,FALSE) -> 9 | F39: =VLOOKUP(D39,计算!$A$1:$G$60,2,FALSE) -> 9.6 | I39: =VLOOKUP(D39,计算!$A$1:$G$60,4,FALSE) -> 0.6 | J39: 0.6 | K39: =VLOOKUP(D39,计算!$A$1:$G$60,5,FALSE) -> 16 | N39: =VLOOKUP(D39,计算!$A$1:$G$60,6,FALSE) -> 15 | Q39: =VLOOKUP(D39,计算!$A$1:$Q$60,17,FALSE) -> 服务部 | R39: =VLOOKUP(D39,计算!$A$1:$Q$60,16,FALSE) -> 15.002 | S39: 15.002
D40: =计算!AB29 -> 订书器 | E40: =VLOOKUP(D40,计算!$A$1:$G$60,3,FALSE) -> 6.6 | F40: =VLOOKUP(D40,计算!$A$1:$G$60,2,FALSE) -> 12 | I40: =VLOOKUP(D40,计算!$A$1:$G$60,4,FALSE) -> 5.4 | J40: 5.4 | K40: =VLOOKUP(D40,计算!$A$1:$G$60,5,FALSE) -> 20 | N40: =VLOOKUP(D40,计算!$A$1:$G$60,6,FALSE) -> 11 | Q40: =VLOOKUP(D40,计算!$A$1:$Q$60,17,FALSE) -> 客服部 | R40: =VLOOKUP(D40,计算!$A$1:$Q$60,16,FALSE) -> 11.006 | S40: 11.006
D41: =计算!AB30 -> 胶水 | E41: =VLOOKUP(D41,计算!$A$1:$G$60,3,FALSE) -> 6 | F41: =VLOOKUP(D41,计算!$A$1:$G$60,2,FALSE) -> 18 | I41: =VLOOKUP(D41,计算!$A$1:$G$60,4,FALSE) -> 12 | J41: 12 | K41: =VLOOKUP(D41,计算!$A$1:$G$60,5,FALSE) -> 30 | N41: =VLOOKUP(D41,计算!$A$1:$G$60,6,FALSE) -> 10 | Q41: =VLOOKUP(D41,计算!$A$1:$Q$60,17,FALSE) -> 财务部 | R41: =VLOOKUP(D41,计算!$A$1:$Q$60,16,FALSE) -> 10.005 | S41: 10.005
D42: =计算!AB31 -> 胶带 | E42: =VLOOKUP(D42,计算!$A$1:$G$60,3,FALSE) -> 3.6 | F42: =VLOOKUP(D42,计算!$A$1:$G$60,2,FALSE) -> 12 | I42: =VLOOKUP(D42,计算!$A$1:$G$60,4,FALSE) -> 8.4 | J42: 8.4 | K42: =VLOOKUP(D42,计算!$A$1:$G$60,5,FALSE) -> 20 | N42: =VLOOKUP(D42,计算!$A$1:$G$60,6,FALSE) -> 6 | Q42: =VLOOKUP(D42,计算!$A$1:$Q$60,17,FALSE) -> 其他 | R42: =VLOOKUP(D42,计算!$A$1:$Q$60,16,FALSE) -> 0.007 | S42: 0.007
C44: 最佳阅读体验推荐使用iPadAir | 仅支持windows环境下Excel2010及以上版本

Sheet 数据源
A1: 编号 | B1: 日期 | C1: 品名 | D1: 出入库 | E1: 数量 | F1: 部门 | G1: 领取人 | H1: 类别 | I1: 单位 | J1: 单价 | K1: 合计 | L1: 日期辅助
A2: 1 | B2: 2015-03-01 | C2: 支出证明 | D2: 采购 | E2: 100 | F2: 综合部 | H2: =IFERROR(VLOOKUP(C2,参数!$B:$H,2,0),"") -> 办公 | I2: =IFERROR(VLOOKUP(C2,参数!$B:$H,4,0),"") -> 支 | J2: =IFERROR(VLOOKUP(C2,参数!B:H,3,FALSE),"") -> 1.5 | K2: =IFERROR(J2*E2,"") -> 150 | L2: =VALUE(MONTH(B2)) -> 3
A3: 2 | B3: 2015-03-01 | C3: 支出证明 | D3: 出库 | E3: 10 | F3: 机修车间 | H3: =IFERROR(VLOOKUP(C3,参数!$B:$H,2,0),"") -> 办公 | I3: =IFERROR(VLOOKUP(C3,参数!$B:$H,4,0),"") -> 支 | J3: =IFERROR(VLOOKUP(C3,参数!B:H,3,FALSE),"") -> 1.5 | K3: =IFERROR(J3*E3,"") -> 15 | L3: 3
A4: 3 | B4: 2015-03-02 | C4: 圆珠笔 | D4: 采购 | E4: 200 | F4: 综合部 | H4: =IFERROR(VLOOKUP(C4,参数!$B:$H,2,0),"") -> 办公 | I4: =IFERROR(VLOOKUP(C4,参数!$B:$H,4,0),"") -> 支 | J4: =IFERROR(VLOOKUP(C4,参数!B:H,3,FALSE),"") -> 1.5 | K4: 300 | L4: 3
A5: 4 | B5: 2015-03-01 | C5: 圆珠笔 | D5: 出库 | E5: 30 | F5: 销售部 | H5: =IFERROR(VLOOKUP(C5,参数!$B:$H,2,0),"") -> 办公 | I5: =IFERROR(VLOOKUP(C5,参数!$B:$H,4,0),"") -> 支 | J5: =IFERROR(VLOOKUP(C5,参数!B:H,3,FALSE),"") -> 1.5 | K5: 45 | L5: 3
A6: 5 | B6: 2015-03-05 | C6: 圆珠笔 | D6: 出库 | E6: 10 | F6: 钣喷部 | H6: =IFERROR(VLOOKUP(C6,参数!$B:$H,2,0),"") -> 办公 | I6: =IFERROR(VLOOKUP(C6,参数!$B:$H,4,0),"") -> 支 | J6: =IFERROR(VLOOKUP(C6,参数!B:H,3,FALSE),"") -> 1.5 | K6: 15 | L6: 3
A7: 6 | B7: 2015-03-03 | C7: 印油 | D7: 采购 | E7: 60 | F7: 综合部 | H7: =IFERROR(VLOOKUP(C7,参数!$B:$H,2,0),"") -> 办公 | I7: =IFERROR(VLOOKUP(C7,参数!$B:$H,4,0),"") -> 盒 | J7: =IFERROR(VLOOKUP(C7,参数!B:H,3,FALSE),"") -> 1.5 | K7: 90 | L7: 3
A8: 7 | B8: 2015-03-07 | C8: 印油 | D8: 出库 | E8: 25 | F8: 客服部 | H8: =IFERROR(VLOOKUP(C8,参数!$B:$H,2,0),"") -> 办公 | I8: =IFERROR(VLOOKUP(C8,参数!$B:$H,4,0),"") -> 盒 | J8: =IFERROR(VLOOKUP(C8,参数!B:H,3,FALSE),"") -> 1.5 | K8: 37.5 | L8: 3
A9: 8 | B9: 2015-03-08 | C9: 燕尾夹 | D9: 采购 | E9: 50 | F9: 综合部 | H9: =IFERROR(VLOOKUP(C9,参数!$B:$H,2,0),"") -> 办公 | I9: =IFERROR(VLOOKUP(C9,参数!$B:$H,4,0),"") -> 个 | J9: =IFERROR(VLOOKUP(C9,参数!B:H,3,FALSE),"") -> 1.5 | K9: 75 | L9: 3
A10: 9 | B10: 2015-03-09 | C10: 燕尾夹 | D10: 出库 | E10: 20 | F10: 钣喷部 | H10: =IFERROR(VLOOKUP(C10,参数!$B:$H,2,0),"") -> 办公 | I10: =IFERROR(VLOOKUP(C10,参数!$B:$H,4,0),"") -> 个 | J10: =IFERROR(VLOOKUP(C10,参数!B:H,3,FALSE),"") -> 1.5 | K10: 30 | L10: 3
A11: 10 | B11: 2015-03-10 | C11: 洗衣粉 | D11: 采购 | E11: 60 | F11: 综合部 | H11: =IFERROR(VLOOKUP(C11,参数!$B:$H,2,0),"") -> 劳保 | I11: =IFERROR(VLOOKUP(C11,参数!$B:$H,4,0),"") -> 袋 | J11: =IFERROR(VLOOKUP(C11,参数!B:H,3,FALSE),"") -> 1.5 | K11: 90 | L11: 3
A12: 11 | B12: 2015-03-11 | C12: 洗衣粉 | D12: 出库 | E12: 30 | F12: 服务部 | H12: =IFERROR(VLOOKUP(C12,参数!$B:$H,2,0),"") -> 劳保 | I12: =IFERROR(VLOOKUP(C12,参数!$B:$H,4,0),"") -> 袋 | J12: =IFERROR(VLOOKUP(C12,参数!B:H,3,FALSE),"") -> 1.5 | K12: 45 | L12: 3
A13: 12 | B13: 2015-03-12 | C13: 文件夹 | D13: 采购 | E13: 50 | F13: 综合部 | H13: =IFERROR(VLOOKUP(C13,参数!$B:$H,2,0),"") -> 办公 | I13: =IFERROR(VLOOKUP(C13,参数!$B:$H,4,0),"") -> 个 | J13: =IFERROR(VLOOKUP(C13,参数!B:H,3,FALSE),"") -> 1.5 | K13: 75 | L13: 3
A14: 13 | B14: 2015-03-13 | C14: 文件夹 | D14: 出库 | E14: 20 | F14: 客服部 | H14: =IFERROR(VLOOKUP(C14,参数!$B:$H,2,0),"") -> 办公 | I14: =IFERROR(VLOOKUP(C14,参数!$B:$H,4,0),"") -> 个 | J14: =IFERROR(VLOOKUP(C14,参数!B:H,3,FALSE),"") -> 1.5 | K14: 30 | L14: 3
A15: 14 | B15: 2015-03-14 | C15: 卫生纸 | D15: 采购 | E15: 60 | F15: 综合部 | H15: =IFERROR(VLOOKUP(C15,参数!$B:$H,2,0),"") -> 劳保 | I15: =IFERROR(VLOOKUP(C15,参数!$B:$H,4,0),"") -> 包 | J15: =IFERROR(VLOOKUP(C15,参数!B:H,3,FALSE),"") -> 1.5 | K15: 90 | L15: 3
A16: 15 | B16: 2015-03-15 | C16: 卫生纸 | D16: 出库 | E16: 40 | F16: 机修车间 | H16: =IFERROR(VLOOKUP(C16,参数!$B:$H,2,0),"") -> 劳保 | I16: =IFERROR(VLOOKUP(C16,参数!$B:$H,4,0),"") -> 包 | J16: =IFERROR(VLOOKUP(C16,参数!B:H,3,FALSE),"") -> 1.5 | K16: 60 | L16: 3
A17: 16 | B17: 2015-03-16 | C17: 笤帚 | D17: 采购 | E17: 20 | F17: 服务部 | H17: =IFERROR(VLOOKUP(C17,参数!$B:$H,2,0),"") -> 劳保 | I17: =IFERROR(VLOOKUP(C17,参数!$B:$H,4,0),"") -> 支 | J17: =IFERROR(VLOOKUP(C17,参数!B:H,3,FALSE),"") -> 1.5 | K17: 30 | L17: 3
A18: 17 | B18: 2015-03-16 | C18: 笤帚 | D18: 出库 | E18: 10 | F18: 财务部 | H18: =IFERROR(VLOOKUP(C18,参数!$B:$H,2,0),"") -> 劳保 | I18: =IFERROR(VLOOKUP(C18,参数!$B:$H,4,0),"") -> 支 | J18: =IFERROR(VLOOKUP(C18,参数!B:H,3,FALSE),"") -> 1.5 | K18: 15 | L18: 3
A19: 18 | B19: 2015-03-16 | C19: 条码纸 | D19: 采购 | E19: 200 | F19: 机修车间 | H19: =IFERROR(VLOOKUP(C19,参数!$B:$H,2,0),"") -> 办公 | I19: =IFERROR(VLOOKUP(C19,参数!$B:$H,4,0),"") -> 包 | J19: =IFERROR(VLOOKUP(C19,参数!B:H,3,FALSE),"") -> 0.6 | K19: 120 | L19: 3
A20: 19 | B20: 2015-03-16 | C20: 条码纸 | D20: 出库 | E20: 150 | F20: 机修车间 | H20: =IFERROR(VLOOKUP(C20,参数!$B:$H,2,0),"") -> 办公 | I20: =IFERROR(VLOOKUP(C20,参数!$B:$H,4,0),"") -> 包 | J20: =IFERROR(VLOOKUP(C20,参数!B:H,3,FALSE),"") -> 0.6 | K20: 90 | L20: 3
A21: 20 | B21: 2015-03-16 | C21: 糖 | D21: 采购 | E21: 60 | F21: 综合部 | H21: =IFERROR(VLOOKUP(C21,参数!$B:$H,2,0),"") -> 食品 | I21: =IFERROR(VLOOKUP(C21,参数!$B:$H,4,0),"") -> 包 | J21: =IFERROR(VLOOKUP(C21,参数!B:H,3,FALSE),"") -> 0.6 | K21: 36 | L21: 3
A22: 21 | B22: 2015-03-16 | C22: 糖 | D22: 出库 | E22: 30 | F22: 服务部 | H22: =IFERROR(VLOOKUP(C22,参数!$B:$H,2,0),"") -> 食品 | I22: =IFERROR(VLOOKUP(C22,参数!$B:$H,4,0),"") -> 包 | J22: =IFERROR(VLOOKUP(C22,参数!B:H,3,FALSE),"") -> 0.6 | K22: 18 | L22: 3
A23: 22 | B23: 2015-03-16 | C23: 碳带 | D23: 采购 | E23: 100 | F23: 综合部 | H23: =IFERROR(VLOOKUP(C23,参数!$B:$H,2,0),"") -> 办公 | I23: =IFERROR(VLOOKUP(C23,参数!$B:$H,4,0),"") -> 盒 | J23: =IFERROR(VLOOKUP(C23,参数!B:H,3,FALSE),"") -> 0.6 | K23: 60 | L23: 3
A24: 23 | B24: 2015-03-16 | C24: 碳带 | D24: 出库 | E24: 25 | F24: 客服部 | H24: =IFERROR(VLOOKUP(C24,参数!$B:$H,2,0),"") -> 办公 | I24: =IFERROR(VLOOKUP(C24,参数!$B:$H,4,0),"") -> 盒 | J24: =IFERROR(VLOOKUP(C24,参数!B:H,3,FALSE),"") -> 0.6 | K24: 15 | L24: 3
A25: 24 | B25: 2015-03-16 | C25: 手套 | D25: 采购 | E25: 50 | F25: 综合部 | H25: =IFERROR(VLOOKUP(C25,参数!$B:$H,2,0),"") -> 劳保 | I25: =IFERROR(VLOOKUP(C25,参数!$B:$H,4,0),"") -> 双 | J25: =IFERROR(VLOOKUP(C25,参数!B:H,3,FALSE),"") -> 0.6 | K25: 30 | L25: 3
A26: 25 | B26: 2015-03-16 | C26: 手套 | D26: 出库 | E26: 21 | F26: 机修车间 | H26: =IFERROR(VLOOKUP(C26,参数!$B:$H,2,0),"") -> 劳保 | I26: =IFERROR(VLOOKUP(C26,参数!$B:$H,4,0),"") -> 双 | J26: =IFERROR(VLOOKUP(C26,参数!B:H,3,FALSE),"") -> 0.6 | K26: 12.6 | L26: 3
A27: 26 | B27: 2015-03-16 | C27: 收银纸 | D27: 采购 | E27: 60 | F27: 综合部 | H27: =IFERROR(VLOOKUP(C27,参数!$B:$H,2,0),"") -> 办公 | I27: =IFERROR(VLOOKUP(C27,参数!$B:$H,4,0),"") -> 盒 | J27: =IFERROR(VLOOKUP(C27,参数!B:H,3,FALSE),"") -> 0.6 | K27: 36 | L27: 3
A28: 27 | B28: 2015-03-16 | C28: 收银纸 | D28: 出库 | E28: 28 | F28: 财务部 | H28: =IFERROR(VLOOKUP(C28,参数!$B:$H,2,0),"") -> 办公 | I28: =IFERROR(VLOOKUP(C28,参数!$B:$H,4,0),"") -> 盒 | J28: =IFERROR(VLOOKUP(C28,参数!B:H,3,FALSE),"") -> 0.6 | K28: 16.8 | L28: 3
A29: 28 | B29: 2015-03-16 | C29: 收据 | D29: 采购 | E29: 60 | F29: 综合部 | H29: =IFERROR(VLOOKUP(C29,参数!$B:$H,2,0),"") -> 办公 | I29: =IFERROR(VLOOKUP(C29,参数!$B:$H,4,0),"") -> 本 | J29: =IFERROR(VLOOKUP(C29,参数!B:H,3,FALSE),"") -> 0.6 | K29: 36 | L29: 3
A30: 29 | B30: 2015-03-16 | C30: 收据 | D30: 出库 | E30: 26 | F30: 财务部 | H30: =IFERROR(VLOOKUP(C30,参数!$B:$H,2,0),"") -> 办公 | I30: =IFERROR(VLOOKUP(C30,参数!$B:$H,4,0),"") -> 本 | J30: =IFERROR(VLOOKUP(C30,参数!B:H,3,FALSE),"") -> 0.6 | K30: 15.6 | L30: 3
A31: 30 | B31: 2015-03-16 | C31: 色带 | D31: 采购 | E31: 300 | F31: 综合部 | H31: =IFERROR(VLOOKUP(C31,参数!$B:$H,2,0),"") -> 办公 | I31: =IFERROR(VLOOKUP(C31,参数!$B:$H,4,0),"") -> 支 | J31: =IFERROR(VLOOKUP(C31,参数!B:H,3,FALSE),"") -> 0.6 | K31: 180 | L31: 3
A32: 31 | B32: 2015-03-16 | C32: 色带 | D32: 出库 | E32: 150 | F32: 钣喷部 | H32: =IFERROR(VLOOKUP(C32,参数!$B:$H,2,0),"") -> 办公 | I32: =IFERROR(VLOOKUP(C32,参数!$B:$H,4,0),"") -> 支 | J32: =IFERROR(VLOOKUP(C32,参数!B:H,3,FALSE),"") -> 0.6 | K32: 90 | L32: 3
A33: 32 | B33: 2015-03-16 | C33: 曲别针 | D33: 采购 | E33: 50 | H33: =IFERROR(VLOOKUP(C33,参数!$B:$H,2,0),"") -> 办公 | I33: =IFERROR(VLOOKUP(C33,参数!$B:$H,4,0),"") -> 盒 | J33: =IFERROR(VLOOKUP(C33,参数!B:H,3,FALSE),"") -> 0.6 | K33: 30 | L33: 3
A34: 33 | B34: 2015-03-16 | C34: 曲别针 | D34: 出库 | E34: 30 | F34: 财务部 | H34: =IFERROR(VLOOKUP(C34,参数!$B:$H,2,0),"") -> 办公 | I34: =IFERROR(VLOOKUP(C34,参数!$B:$H,4,0),"") -> 盒 | J34: =IFERROR(VLOOKUP(C34,参数!B:H,3,FALSE),"") -> 0.6 | K34: 18 | L34: 3
A35: 34 | B35: 2015-03-16 | C35: 皮筋 | D35: 采购 | E35: 58 | F35: 服务部 | H35: =IFERROR(VLOOKUP(C35,参数!$B:$H,2,0),"") -> 办公 | I35: =IFERROR(VLOOKUP(C35,参数!$B:$H,4,0),"") -> 包 | J35: =IFERROR(VLOOKUP(C35,参数!B:H,3,FALSE),"") -> 0.6 | K35: 34.8 | L35: 3
A36: 35 | B36: 2015-03-16 | C36: 皮筋 | D36: 出库 | E36: 28 | F36: 财务部 | H36: =IFERROR(VLOOKUP(C36,参数!$B:$H,2,0),"") -> 办公 | I36: =IFERROR(VLOOKUP(C36,参数!$B:$H,4,0),"") -> 包 | J36: =IFERROR(VLOOKUP(C36,参数!B:H,3,FALSE),"") -> 0.6 | K36: 16.8 | L36: 3
A37: 36 | B37: 2015-03-16 | C37: 墨水 | D37: 采购 | E37: 5 | H37: =IFERROR(VLOOKUP(C37,参数!$B:$H,2,0),"") -> 办公 | I37: =IFERROR(VLOOKUP(C37,参数!$B:$H,4,0),"") -> 瓶 | J37: =IFERROR(VLOOKUP(C37,参数!B:H,3,FALSE),"") -> 0.6 | K37: 3 | L37: 3
A38: 37 | B38: 2015-03-16 | C38: 墨水 | D38: 出库 | E38: 2 | F38: 服务部 | H38: =IFERROR(VLOOKUP(C38,参数!$B:$H,2,0),"") -> 办公 | I38: =IFERROR(VLOOKUP(C38,参数!$B:$H,4,0),"") -> 瓶 | J38: =IFERROR(VLOOKUP(C38,参数!B:H,3,FALSE),"") -> 0.6 | K38: 1.2 | L38: 3
A39: 38 | B39: 2015-03-16 | C39: 拉链袋 | D39: 采购 | E39: 100 | H39: =IFERROR(VLOOKUP(C39,参数!$B:$H,2,0),"") -> 办公 | I39: =IFERROR(VLOOKUP(C39,参数!$B:$H,4,0),"") -> 盒 | J39: =IFERROR(VLOOKUP(C39,参数!B:H,3,FALSE),"") -> 0.6 | K39: 60 | L39: 3
A40: 39 | B40: 2015-03-16 | C40: 拉链袋 | D40: 出库 | E40: 98 | F40: 机修车间 | H40: =IFERROR(VLOOKUP(C40,参数!$B:$H,2,0),"") -> 办公 | I40: =IFERROR(VLOOKUP(C40,参数!$B:$H,4,0),"") -> 盒 | J40: =IFERROR(VLOOKUP(C40,参数!B:H,3,FALSE),"") -> 0.6 | K40: 58.8 | L40: 3
A41: 40 | B41: 2015-03-16 | C41: 垃圾袋 | D41: 采购 | E41: 60 | H41: =IFERROR(VLOOKUP(C41,参数!$B:$H,2,0),"") -> 劳保 | I41: =IFERROR(VLOOKUP(C41,参数!$B:$H,4,0),"") -> 包 | J41: =IFERROR(VLOOKUP(C41,参数!B:H,3,FALSE),"") -> 0.6 | K41: 36 | L41: 3
A42: 41 | B42: 2015-03-16 | C42: 垃圾袋 | D42: 出库 | E42: 30 | F42: 综合部 | H42: =IFERROR(VLOOKUP(C42,参数!$B:$H,2,0),"") -> 劳保 | I42: =IFERROR(VLOOKUP(C42,参数!$B:$H,4,0),"") -> 包 | J42: =IFERROR(VLOOKUP(C42,参数!B:H,3,FALSE),"") -> 0.6 | K42: 18 | L42: 3
A43: 42 | B43: 2015-03-16 | C43: 借支单 | D43: 采购 | E43: 30 | H43: =IFERROR(VLOOKUP(C43,参数!$B:$H,2,0),"") -> 办公 | I43: =IFERROR(VLOOKUP(C43,参数!$B:$H,4,0),"") -> 瓶 | J43: =IFERROR(VLOOKUP(C43,参数!B:H,3,FALSE),"") -> 0.6 | K43: 18 | L43: 3
A44: 43 | B44: 2015-03-16 | C44: 借支单 | D44: 出库 | E44: 22 | F44: 财务部 | H44: =IFERROR(VLOOKUP(C44,参数!$B:$H,2,0),"") -> 办公 | I44: =IFERROR(VLOOKUP(C44,参数!$B:$H,4,0),"") -> 瓶 | J44: =IFERROR(VLOOKUP(C44,参数!B:H,3,FALSE),"") -> 0.6 | K44: 13.2 | L44: 3
A45: 44 | B45: 2015-03-16 | C45: 胶水 | D45: 采购 | E45: 30 | H45: =IFERROR(VLOOKUP(C45,参数!$B:$H,2,0),"") -> 办公 | I45: =IFERROR(VLOOKUP(C45,参数!$B:$H,4,0),"") -> 盒 | J45: =IFERROR(VLOOKUP(C45,参数!B:H,3,FALSE),"") -> 0.6 | K45: 18 | L45: 3
A46: 45 | B46: 2015-03-16 | C46: 胶水 | D46: 出库 | E46: 10 | F46: 财务部 | H46: =IFERROR(VLOOKUP(C46,参数!$B:$H,2,0),"") -> 办公 | I46: =IFERROR(VLOOKUP(C46,参数!$B:$H,4,0),"") -> 盒 | J46: =IFERROR(VLOOKUP(C46,参数!B:H,3,FALSE),"") -> 0.6 | K46: 6 | L46: 3
A47: 46 | B47: 2015-03-16 | C47: 胶带 | D47: 采购 | E47: 20 | F47: 市场部 | H47: =IFERROR(VLOOKUP(C47,参数!$B:$H,2,0),"") -> 办公 | I47: =IFERROR(VLOOKUP(C47,参数!$B:$H,4,0),"") -> 包 | J47: =IFERROR(VLOOKUP(C47,参数!B:H,3,FALSE),"") -> 0.6 | K47: 12 | L47: 3
A48: 47 | B48: 2015-03-16 | C48: 胶带 | D48: 出库 | E48: 6 | F48: 市场部 | H48: =IFERROR(VLOOKUP(C48,参数!$B:$H,2,0),"") -> 办公 | I48: =IFERROR(VLOOKUP(C48,参数!$B:$H,4,0),"") -> 包 | J48: =IFERROR(VLOOKUP(C48,参数!B:H,3,FALSE),"") -> 0.6 | K48: 3.6 | L48: 3
A49: 48 | B49: 2015-03-16 | C49: 胶棒 | D49: 采购 | E49: 80 | F49: 市场部 | H49: =IFERROR(VLOOKUP(C49,参数!$B:$H,2,0),"") -> 办公 | I49: =IFERROR(VLOOKUP(C49,参数!$B:$H,4,0),"") -> 瓶 | J49: =IFERROR(VLOOKUP(C49,参数!B:H,3,FALSE),"") -> 0.6 | K49: 48 | L49: 3
A50: 49 | B50: 2015-03-16 | C50: 胶棒 | D50: 出库 | E50: 28 | F50: 市场部 | H50: =IFERROR(VLOOKUP(C50,参数!$B:$H,2,0),"") -> 办公 | I50: =IFERROR(VLOOKUP(C50,参数!$B:$H,4,0),"") -> 瓶 | J50: =IFERROR(VLOOKUP(C50,参数!B:H,3,FALSE),"") -> 0.6 | K50: 16.8 | L50: 3
A51: 50 | B51: 2015-03-16 | C51: 记号笔 | D51: 采购 | E51: 60 | H51: =IFERROR(VLOOKUP(C51,参数!$B:$H,2,0),"") -> 办公 | I51: =IFERROR(VLOOKUP(C51,参数!$B:$H,4,0),"") -> 盒 | J51: =IFERROR(VLOOKUP(C51,参数!B:H,3,FALSE),"") -> 0.6 | K51: 36 | L51: 3
A52: 51 | B52: 2015-03-16 | C52: 记号笔 | D52: 出库 | E52: 50 | F52: 服务部 | H52: =IFERROR(VLOOKUP(C52,参数!$B:$H,2,0),"") -> 办公 | I52: =IFERROR(VLOOKUP(C52,参数!$B:$H,4,0),"") -> 盒 | J52: =IFERROR(VLOOKUP(C52,参数!B:H,3,FALSE),"") -> 0.6 | K52: 30 | L52: 3
A53: 52 | B53: 2015-03-16 | C53: 计算器 | D53: 采购 | E53: 5 | H53: =IFERROR(VLOOKUP(C53,参数!$B:$H,2,0),"") -> 办公 | I53: =IFERROR(VLOOKUP(C53,参数!$B:$H,4,0),"") -> 包 | J53: =IFERROR(VLOOKUP(C53,参数!B:H,3,FALSE),"") -> 0.6 | K53: 3 | L53: 3
A54: 53 | B54: 2015-03-16 | C54: 计算器 | D54: 出库 | E54: 2 | F54: 机修部 | H54: =IFERROR(VLOOKUP(C54,参数!$B:$H,2,0),"") -> 办公 | I54: =IFERROR(VLOOKUP(C54,参数!$B:$H,4,0),"") -> 包 | J54: =IFERROR(VLOOKUP(C54,参数!B:H,3,FALSE),"") -> 0.6 | K54: 1.2 | L54: 3
A55: 54 | B55: 2015-03-16 | C55: 订书器 | D55: 采购 | E55: 20 | H55: =IFERROR(VLOOKUP(C55,参数!$B:$H,2,0),"") -> 办公 | I55: =IFERROR(VLOOKUP(C55,参数!$B:$H,4,0),"") -> 瓶 | J55: =IFERROR(VLOOKUP(C55,参数!B:H,3,FALSE),"") -> 0.6 | K55: 12 | L55: 3
A56: 55 | B56: 2015-03-16 | C56: 订书器 | D56: 出库 | E56: 11 | F56: 客服部 | H56: =IFERROR(VLOOKUP(C56,参数!$B:$H,2,0),"") -> 办公 | I56: =IFERROR(VLOOKUP(C56,参数!$B:$H,4,0),"") -> 瓶 | J56: =IFERROR(VLOOKUP(C56,参数!B:H,3,FALSE),"") -> 0.6 | K56: 6.6 | L56: 3
A57: 56 | B57: 2015-03-16 | C57: 黑档案盒 | D57: 采购 | E57: 30 | H57: =IFERROR(VLOOKUP(C57,参数!$B:$H,2,0),"") -> 办公 | I57: =IFERROR(VLOOKUP(C57,参数!$B:$H,4,0),"") -> 瓶 | J57: =IFERROR(VLOOKUP(C57,参数!B:H,3,FALSE),"") -> 0.6 | K57: 18 | L57: 3
A58: 57 | B58: 2015-03-16 | C58: 黑档案盒 | D58: 出库 | E58: 29 | F58: 市场部 | H58: =IFERROR(VLOOKUP(C58,参数!$B:$H,2,0),"") -> 办公 | I58: =IFERROR(VLOOKUP(C58,参数!$B:$H,4,0),"") -> 瓶 | J58: =IFERROR(VLOOKUP(C58,参数!B:H,3,FALSE),"") -> 0.6 | K58: 17.4 | L58: 3
A59: 58 | B59: 2015-03-16 | C59: 费用报销单 | D59: 采购 | E59: 20 | H59: =IFERROR(VLOOKUP(C59,参数!$B:$H,2,0),"") -> 办公 | I59: =IFERROR(VLOOKUP(C59,参数!$B:$H,4,0),"") -> 盒 | J59: =IFERROR(VLOOKUP(C59,参数!B:H,3,FALSE),"") -> 0.6 | K59: 12 | L59: 3
A60: 59 | B60: 2015-03-16 | C60: 费用报销单 | D60: 出库 | E60: 16 | F60: 钣喷部 | H60: =IFERROR(VLOOKUP(C60,参数!$B:$H,2,0),"") -> 办公 | I60: =IFERROR(VLOOKUP(C60,参数!$B:$H,4,0),"") -> 盒 | J60: =IFERROR(VLOOKUP(C60,参数!B:H,3,FALSE),"") -> 0.6 | K60: 9.6 | L60: 3
A61: 60 | B61: 2015-03-16 | C61: 档案盒 | D61: 采购 | E61: 16 | H61: =IFERROR(VLOOKUP(C61,参数!$B:$H,2,0),"") -> 办公 | I61: =IFERROR(VLOOKUP(C61,参数!$B:$H,4,0),"") -> 瓶 | J61: =IFERROR(VLOOKUP(C61,参数!B:H,3,FALSE),"") -> 0.6 | K61: 9.6 | L61: 3
A62: 61 | B62: 2015-03-16 | C62: 档案盒 | D62: 出库 | E62: 15 | F62: 服务部 | H62: =IFERROR(VLOOKUP(C62,参数!$B:$H,2,0),"") -> 办公 | I62: =IFERROR(VLOOKUP(C62,参数!$B:$H,4,0),"") -> 瓶 | J62: =IFERROR(VLOOKUP(C62,参数!B:H,3,FALSE),"") -> 0.6 | K62: 9 | L62: 3
A63: 62 | B63: 2015-03-16 | C63: 电卡 | D63: 采购 | E63: 1000 | H63: =IFERROR(VLOOKUP(C63,参数!$B:$H,2,0),"") -> 电卡 | I63: =IFERROR(VLOOKUP(C63,参数!$B:$H,4,0),"") -> 度 | J63: =IFERROR(VLOOKUP(C63,参数!B:H,3,FALSE),"") -> 0.55 | K63: 550 | L63: 3
A64: 63 | B64: 2015-03-16 | C64: 电卡 | D64: 出库 | E64: 50 | H64: =IFERROR(VLOOKUP(C64,参数!$B:$H,2,0),"") -> 电卡 | I64: =IFERROR(VLOOKUP(C64,参数!$B:$H,4,0),"") -> 度 | J64: =IFERROR(VLOOKUP(C64,参数!B:H,3,FALSE),"") -> 0.55 | K64: 27.5 | L64: 3
A65: 64 | B65: 2015-03-16 | C65: 油卡 | D65: 采购 | E65: 200 | H65: =IFERROR(VLOOKUP(C65,参数!$B:$H,2,0),"") -> 油卡 | I65: =IFERROR(VLOOKUP(C65,参数!$B:$H,4,0),"") -> 度 | J65: =IFERROR(VLOOKUP(C65,参数!B:H,3,FALSE),"") -> 5.5 | K65: 1100 | L65: 3
A66: 65 | B66: 2015-03-16 | C66: 油卡 | D66: 采购 | E66: 150 | H66: =IFERROR(VLOOKUP(C66,参数!$B:$H,2,0),"") -> 油卡 | I66: =IFERROR(VLOOKUP(C66,参数!$B:$H,4,0),"") -> 度 | J66: =IFERROR(VLOOKUP(C66,参数!B:H,3,FALSE),"") -> 5.5 | K66: 825 | L66: =VALUE(MONTH(B66)) -> 3
A67: 66 | B67: 2015-03-16 | C67: 电卡 | D67: 出库 | E67: 200 | H67: =IFERROR(VLOOKUP(C67,参数!$B:$H,2,0),"") -> 电卡 | I67: =IFERROR(VLOOKUP(C67,参数!$B:$H,4,0),"") -> 度 | J67: =IFERROR(VLOOKUP(C67,参数!B:H,3,FALSE),"") -> 0.55 | K67: =IFERROR(J67*E67,"") -> 110 | L67: 3
A68: 67 | B68: 2015-03-16 | C68: 电卡 | D68: 出库 | E68: 100 | H68: =IFERROR(VLOOKUP(C68,参数!$B:$H,2,0),"") -> 电卡 | I68: =IFERROR(VLOOKUP(C68,参数!$B:$H,4,0),"") -> 度 | J68: =IFERROR(VLOOKUP(C68,参数!B:H,3,FALSE),"") -> 0.55 | K68: =IFERROR(J68*E68,"") -> 55 | L68: 3
A69: 68 | B69: 2015-03-16 | C69: 电卡 | D69: 采购 | E69: 200 | H69: =IFERROR(VLOOKUP(C69,参数!$B:$H,2,0),"") -> 电卡 | I69: =IFERROR(VLOOKUP(C69,参数!$B:$H,4,0),"") -> 度 | J69: =IFERROR(VLOOKUP(C69,参数!B:H,3,FALSE),"") -> 0.55 | K69: 110 | L69: 3
A70: 69 | B70: 2015-03-16 | C70: 电卡 | D70: 出库 | E70: 100 | H70: =IFERROR(VLOOKUP(C70,参数!$B:$H,2,0),"") -> 电卡 | I70: =IFERROR(VLOOKUP(C70,参数!$B:$H,4,0),"") -> 度 | J70: =IFERROR(VLOOKUP(C70,参数!B:H,3,FALSE),"") -> 0.55 | K70: =IFERROR(J70*E70,"") -> 55 | L70: 3
A71: 70 | B71: 2015-03-16 | C71: 电卡 | D71: 采购 | E71: 300 | H71: =IFERROR(VLOOKUP(C71,参数!$B:$H,2,0),"") -> 电卡 | I71: =IFERROR(VLOOKUP(C71,参数!$B:$H,4,0),"") -> 度 | J71: =IFERROR(VLOOKUP(C71,参数!B:H,3,FALSE),"") -> 0.55 | K71: 165 | L71: 3
A72: 71 | B72: 2015-03-17 | C72: 油卡 | D72: 采购 | E72: 300 | H72: =IFERROR(VLOOKUP(C72,参数!$B:$H,2,0),"") -> 油卡 | I72: =IFERROR(VLOOKUP(C72,参数!$B:$H,4,0),"") -> 度 | J72: =IFERROR(VLOOKUP(C72,参数!B:H,3,FALSE),"") -> 5.5 | K72: 1650 | L72: 3
A73: 72 | B73: 2015-03-18 | C73: 油卡 | D73: 出库 | E73: 60 | H73: =IFERROR(VLOOKUP(C73,参数!$B:$H,2,0),"") -> 油卡 | I73: =IFERROR(VLOOKUP(C73,参数!$B:$H,4,0),"") -> 度 | J73: =IFERROR(VLOOKUP(C73,参数!B:H,3,FALSE),"") -> 5.5 | K73: 330 | L73: 3
A74: 73 | B74: 2015-03-19 | C74: 饼干 | D74: 采购 | E74: 60 | H74: =IFERROR(VLOOKUP(C74,参数!$B:$H,2,0),"") -> 食品 | I74: =IFERROR(VLOOKUP(C74,参数!$B:$H,4,0),"") -> 盒 | J74: =IFERROR(VLOOKUP(C74,参数!B:H,3,FALSE),"") -> 0.6 | K74: 36 | L74: 3
A75: 74 | B75: 2015-03-20 | C75: 饼干 | D75: 采购 | E75: 5000 | H75: =IFERROR(VLOOKUP(C75,参数!$B:$H,2,0),"") -> 食品 | I75: =IFERROR(VLOOKUP(C75,参数!$B:$H,4,0),"") -> 盒 | J75: =IFERROR(VLOOKUP(C75,参数!B:H,3,FALSE),"") -> 0.6 | K75: 3000 | L75: 3
A76: 75 | B76: 2015-03-21 | C76: 饼干 | D76: 出库 | E76: 3000 | H76: =IFERROR(VLOOKUP(C76,参数!$B:$H,2,0),"") -> 食品 | I76: =IFERROR(VLOOKUP(C76,参数!$B:$H,4,0),"") -> 盒 | J76: =IFERROR(VLOOKUP(C76,参数!B:H,3,FALSE),"") -> 0.6 | K76: 1800 | L76: 3
A77: 76 | B77: 2015-03-22 | C77: 9v电池 | D77: 采购 | E77: 2000 | H77: =IFERROR(VLOOKUP(C77,参数!$B:$H,2,0),"") -> 办公 | I77: =IFERROR(VLOOKUP(C77,参数!$B:$H,4,0),"") -> 包 | J77: =IFERROR(VLOOKUP(C77,参数!B:H,3,FALSE),"") -> 0.6 | K77: 1200 | L77: 3
A78: 77 | B78: 2015-03-23 | C78: 9v电池 | D78: 出库 | E78: 1500 | H78: =IFERROR(VLOOKUP(C78,参数!$B:$H,2,0),"") -> 办公 | I78: =IFERROR(VLOOKUP(C78,参数!$B:$H,4,0),"") -> 包 | J78: =IFERROR(VLOOKUP(C78,参数!B:H,3,FALSE),"") -> 0.6 | K78: 900 | L78: 3
A79: 78 | B79: 2015-03-24 | C79: 笤帚 | D79: 采购 | E79: 3000 | H79: =IFERROR(VLOOKUP(C79,参数!$B:$H,2,0),"") -> 劳保 | I79: =IFERROR(VLOOKUP(C79,参数!$B:$H,4,0),"") -> 支 | J79: =IFERROR(VLOOKUP(C79,参数!B:H,3,FALSE),"") -> 1.5 | K79: 4500 | L79: 3
A80: 79 | B80: 2015-03-25 | C80: 笤帚 | D80: 出库 | E80: 1000 | H80: =IFERROR(VLOOKUP(C80,参数!$B:$H,2,0),"") -> 劳保 | I80: =IFERROR(VLOOKUP(C80,参数!$B:$H,4,0),"") -> 支 | J80: =IFERROR(VLOOKUP(C80,参数!B:H,3,FALSE),"") -> 1.5 | K80: 1500 | L80: 3
A81: 80 | B81: 2015-03-26 | C81: 油卡 | D81: 出库 | E81: 500 | H81: =IFERROR(VLOOKUP(C81,参数!$B:$H,2,0),"") -> 油卡 | I81: =IFERROR(VLOOKUP(C81,参数!$B:$H,4,0),"") -> 度 | J81: =IFERROR(VLOOKUP(C81,参数!B:H,3,FALSE),"") -> 5.5 | K81: 2750 | L81: 3
A82: 81 | B82: 2015-01-01 | C82: 支出证明 | D82: 采购 | E82: 2000 | H82: =IFERROR(VLOOKUP(C82,参数!$B:$H,2,0),"") -> 办公 | I82: =IFERROR(VLOOKUP(C82,参数!$B:$H,4,0),"") -> 支 | J82: =IFERROR(VLOOKUP(C82,参数!B:H,3,FALSE),"") -> 1.5 | K82: 3000 | L82: 1
A83: 82 | B83: 2015-01-01 | C83: 支出证明 | D83: 出库 | E83: 600 | H83: =IFERROR(VLOOKUP(C83,参数!$B:$H,2,0),"") -> 办公 | I83: =IFERROR(VLOOKUP(C83,参数!$B:$H,4,0),"") -> 支 | J83: =IFERROR(VLOOKUP(C83,参数!B:H,3,FALSE),"") -> 1.5 | K83: 900 | L83: 1
A84: 83 | B84: 2015-02-02 | C84: 支出证明 | D84: 采购 | E84: 1500 | H84: =IFERROR(VLOOKUP(C84,参数!$B:$H,2,0),"") -> 办公 | I84: =IFERROR(VLOOKUP(C84,参数!$B:$H,4,0),"") -> 支 | J84: =IFERROR(VLOOKUP(C84,参数!B:H,3,FALSE),"") -> 1.5 | K84: 2250 | L84: 2
A85: 84 | B85: 2015-02-02 | C85: 支出证明 | D85: 出库 | E85: 800 | H85: =IFERROR(VLOOKUP(C85,参数!$B:$H,2,0),"") -> 办公 | I85: =IFERROR(VLOOKUP(C85,参数!$B:$H,4,0),"") -> 支 | J85: =IFERROR(VLOOKUP(C85,参数!B:H,3,FALSE),"") -> 1.5 | K85: 1200 | L85: 2
A86: 85 | B86: 2015-03-01 | C86: 支出证明 | D86: 采购 | E86: 1000 | H86: =IFERROR(VLOOKUP(C86,参数!$B:$H,2,0),"") -> 办公 | I86: =IFERROR(VLOOKUP(C86,参数!$B:$H,4,0),"") -> 支 | J86: =IFERROR(VLOOKUP(C86,参数!B:H,3,FALSE),"") -> 1.5 | K86: 1500 | L86: 3
A87: 86 | B87: 2015-03-01 | C87: 支出证明 | D87: 出库 | E87: 800 | H87: =IFERROR(VLOOKUP(C87,参数!$B:$H,2,0),"") -> 办公 | I87: =IFERROR(VLOOKUP(C87,参数!$B:$H,4,0),"") -> 支 | J87: =IFERROR(VLOOKUP(C87,参数!B:H,3,FALSE),"") -> 1.5 | K87: 1200 | L87: 3
A88: 87 | B88: 2015-04-02 | C88: 支出证明 | D88: 采购 | E88: 1000 | H88: =IFERROR(VLOOKUP(C88,参数!$B:$H,2,0),"") -> 办公 | I88: =IFERROR(VLOOKUP(C88,参数!$B:$H,4,0),"") -> 支 | J88: =IFERROR(VLOOKUP(C88,参数!B:H,3,FALSE),"") -> 1.5 | K88: 1500 | L88: 4
A89: 88 | B89: 2015-04-03 | C89: 支出证明 | D89: 出库 | E89: 800 | H89: =IFERROR(VLOOKUP(C89,参数!$B:$H,2,0),"") -> 办公 | I89: =IFERROR(VLOOKUP(C89,参数!$B:$H,4,0),"") -> 支 | J89: =IFERROR(VLOOKUP(C89,参数!B:H,3,FALSE),"") -> 1.5 | K89: 1200 | L89: 4
A90: 89 | B90: 2015-05-01 | C90: 支出证明 | D90: 采购 | E90: 1000 | H90: =IFERROR(VLOOKUP(C90,参数!$B:$H,2,0),"") -> 办公 | I90: =IFERROR(VLOOKUP(C90,参数!$B:$H,4,0),"") -> 支 | J90: =IFERROR(VLOOKUP(C90,参数!B:H,3,FALSE),"") -> 1.5 | K90: 1500 | L90: 5
A91: 90 | B91: 2015-05-01 | C91: 支出证明 | D91: 出库 | E91: 800 | H91: =IFERROR(VLOOKUP(C91,参数!$B:$H,2,0),"") -> 办公 | I91: =IFERROR(VLOOKUP(C91,参数!$B:$H,4,0),"") -> 支 | J91: =IFERROR(VLOOKUP(C91,参数!B:H,3,FALSE),"") -> 1.5 | K91: 1200 | L91: 5
A92: 91 | B92: 2015-06-01 | C92: 文件夹 | D92: 采购 | E92: 1000 | H92: =IFERROR(VLOOKUP(C92,参数!$B:$H,2,0),"") -> 办公 | I92: =IFERROR(VLOOKUP(C92,参数!$B:$H,4,0),"") -> 个 | J92: =IFERROR(VLOOKUP(C92,参数!B:H,3,FALSE),"") -> 1.5 | K92: 1500 | L92: 6
A93: 92 | B93: 2015-06-01 | C93: 文件夹 | D93: 出库 | E93: 800 | H93: =IFERROR(VLOOKUP(C93,参数!$B:$H,2,0),"") -> 办公 | I93: =IFERROR(VLOOKUP(C93,参数!$B:$H,4,0),"") -> 个 | J93: =IFERROR(VLOOKUP(C93,参数!B:H,3,FALSE),"") -> 1.5 | K93: 1200 | L93: 6
A94: 93 | B94: 2015-07-01 | C94: 拉链袋 | D94: 采购 | E94: 1000 | H94: =IFERROR(VLOOKUP(C94,参数!$B:$H,2,0),"") -> 办公 | I94: =IFERROR(VLOOKUP(C94,参数!$B:$H,4,0),"") -> 盒 | J94: =IFERROR(VLOOKUP(C94,参数!B:H,3,FALSE),"") -> 0.6 | K94: 600 | L94: 7
A95: 94 | B95: 2015-07-02 | C95: 拉链袋 | D95: 出库 | E95: 800 | H95: =IFERROR(VLOOKUP(C95,参数!$B:$H,2,0),"") -> 办公 | I95: =IFERROR(VLOOKUP(C95,参数!$B:$H,4,0),"") -> 盒 | J95: =IFERROR(VLOOKUP(C95,参数!B:H,3,FALSE),"") -> 0.6 | K95: 480 | L95: 7
A96: 95 | B96: 2015-08-01 | C96: 笔记本 | D96: 采购 | E96: 1000 | H96: =IFERROR(VLOOKUP(C96,参数!$B:$H,2,0),"") -> 办公 | I96: =IFERROR(VLOOKUP(C96,参数!$B:$H,4,0),"") -> 盒 | J96: =IFERROR(VLOOKUP(C96,参数!B:H,3,FALSE),"") -> 0.6 | K96: 600 | L96: 8
A97: 96 | B97: 2015-08-02 | C97: 笔记本 | D97: 出库 | E97: 800 | H97: =IFERROR(VLOOKUP(C97,参数!$B:$H,2,0),"") -> 办公 | I97: =IFERROR(VLOOKUP(C97,参数!$B:$H,4,0),"") -> 盒 | J97: =IFERROR(VLOOKUP(C97,参数!B:H,3,FALSE),"") -> 0.6 | K97: 480 | L97: 8
A98: 97 | B98: 2015-09-01 | C98: 胶棒 | D98: 采购 | E98: 801 | H98: =IFERROR(VLOOKUP(C98,参数!$B:$H,2,0),"") -> 办公 | I98: =IFERROR(VLOOKUP(C98,参数!$B:$H,4,0),"") -> 瓶 | J98: =IFERROR(VLOOKUP(C98,参数!B:H,3,FALSE),"") -> 0.6 | K98: 480.6 | L98: 9
A99: 98 | B99: 2015-09-01 | C99: 胶棒 | D99: 采购 | E99: 802 | H99: =IFERROR(VLOOKUP(C99,参数!$B:$H,2,0),"") -> 办公 | I99: =IFERROR(VLOOKUP(C99,参数!$B:$H,4,0),"") -> 瓶 | J99: =IFERROR(VLOOKUP(C99,参数!B:H,3,FALSE),"") -> 0.6 | K99: 481.2 | L99: 9
A100: 99 | B100: 2015-09-09 | C100: 胶棒 | D100: 出库 | E100: 803 | H100: =IFERROR(VLOOKUP(C100,参数!$B:$H,2,0),"") -> 办公 | I100: =IFERROR(VLOOKUP(C100,参数!$B:$H,4,0),"") -> 瓶 | J100: =IFERROR(VLOOKUP(C100,参数!B:H,3,FALSE),"") -> 0.6 | K100: 481.8 | L100: 9
A101: 100 | H101: =IFERROR(VLOOKUP(C101,参数!$B:$H,2,0),"") ->  | I101: =IFERROR(VLOOKUP(C101,参数!$B:$H,4,0),"") ->  | J101: =IFERROR(VLOOKUP(C101,参数!B:H,3,FALSE),"") ->  | K101: =IFERROR(J101*E101,"") ->  | L101: 1
A102: 101 | H102: =IFERROR(VLOOKUP(C102,参数!$B:$H,2,0),"") ->  | I102: =IFERROR(VLOOKUP(C102,参数!$B:$H,4,0),"") ->  | J102: =IFERROR(VLOOKUP(C102,参数!B:H,3,FALSE),"") ->  | L102: 1
A103: 102 | H103: =IFERROR(VLOOKUP(C103,参数!$B:$H,2,0),"") ->  | I103: =IFERROR(VLOOKUP(C103,参数!$B:$H,4,0),"") ->  | J103: =IFERROR(VLOOKUP(C103,参数!B:H,3,FALSE),"") ->  | L103: 1
A104: 103 | H104: =IFERROR(VLOOKUP(C104,参数!$B:$H,2,0),"") ->  | I104: =IFERROR(VLOOKUP(C104,参数!$B:$H,4,0),"") ->  | J104: =IFERROR(VLOOKUP(C104,参数!B:H,3,FALSE),"") ->  | L104: 1
A105: 104 | H105: =IFERROR(VLOOKUP(C105,参数!$B:$H,2,0),"") ->  | I105: =IFERROR(VLOOKUP(C105,参数!$B:$H,4,0),"") ->  | J105: =IFERROR(VLOOKUP(C105,参数!B:H,3,FALSE),"") ->  | L105: 1
A106: 105 | H106: =IFERROR(VLOOKUP(C106,参数!$B:$H,2,0),"") ->  | I106: =IFERROR(VLOOKUP(C106,参数!$B:$H,4,0),"") ->  | J106: =IFERROR(VLOOKUP(C106,参数!B:H,3,FALSE),"") ->  | L106: 1
A107: 106 | H107: =IFERROR(VLOOKUP(C107,参数!$B:$H,2,0),"") ->  | I107: =IFERROR(VLOOKUP(C107,参数!$B:$H,4,0),"") ->  | J107: =IFERROR(VLOOKUP(C107,参数!B:H,3,FALSE),"") ->  | L107: 1
A108: 107 | H108: =IFERROR(VLOOKUP(C108,参数!$B:$H,2,0),"") ->  | I108: =IFERROR(VLOOKUP(C108,参数!$B:$H,4,0),"") ->  | J108: =IFERROR(VLOOKUP(C108,参数!B:H,3,FALSE),"") ->  | L108: 1
A109: 108 | H109: =IFERROR(VLOOKUP(C109,参数!$B:$H,2,0),"") ->  | I109: =IFERROR(VLOOKUP(C109,参数!$B:$H,4,0),"") ->  | J109: =IFERROR(VLOOKUP(C109,参数!B:H,3,FALSE),"") ->  | L109: 1
A110: 109 | H110: =IFERROR(VLOOKUP(C110,参数!$B:$H,2,0),"") ->  | I110: =IFERROR(VLOOKUP(C110,参数!$B:$H,4,0),"") ->  | J110: =IFERROR(VLOOKUP(C110,参数!B:H,3,FALSE),"") ->  | L110: 1
A111: 110 | H111: =IFERROR(VLOOKUP(C111,参数!$B:$H,2,0),"") ->  | I111: =IFERROR(VLOOKUP(C111,参数!$B:$H,4,0),"") ->  | J111: =IFERROR(VLOOKUP(C111,参数!B:H,3,FALSE),"") ->  | L111: 1
A112: 111 | H112: =IFERROR(VLOOKUP(C112,参数!$B:$H,2,0),"") ->  | I112: =IFERROR(VLOOKUP(C112,参数!$B:$H,4,0),"") ->  | J112: =IFERROR(VLOOKUP(C112,参数!B:H,3,FALSE),"") ->  | L112: 1
A113: 112 | H113: =IFERROR(VLOOKUP(C113,参数!$B:$H,2,0),"") ->  | I113: =IFERROR(VLOOKUP(C113,参数!$B:$H,4,0),"") ->  | J113: =IFERROR(VLOOKUP(C113,参数!B:H,3,FALSE),"") ->  | L113: 1
A114: 113 | H114: =IFERROR(VLOOKUP(C114,参数!$B:$H,2,0),"") ->  | I114: =IFERROR(VLOOKUP(C114,参数!$B:$H,4,0),"") ->  | J114: =IFERROR(VLOOKUP(C114,参数!B:H,3,FALSE),"") ->  | L114: 1
A115: 114 | H115: =IFERROR(VLOOKUP(C115,参数!$B:$H,2,0),"") ->  | I115: =IFERROR(VLOOKUP(C115,参数!$B:$H,4,0),"") ->  | J115: =IFERROR(VLOOKUP(C115,参数!B:H,3,FALSE),"") ->  | L115: 1
A116: 115 | H116: =IFERROR(VLOOKUP(C116,参数!$B:$H,2,0),"") ->  | I116: =IFERROR(VLOOKUP(C116,参数!$B:$H,4,0),"") ->  | J116: =IFERROR(VLOOKUP(C116,参数!B:H,3,FALSE),"") ->  | L116: 1
A117: 116 | H117: =IFERROR(VLOOKUP(C117,参数!$B:$H,2,0),"") ->  | I117: =IFERROR(VLOOKUP(C117,参数!$B:$H,4,0),"") ->  | J117: =IFERROR(VLOOKUP(C117,参数!B:H,3,FALSE),"") ->  | L117: 1
A118: 117 | H118: =IFERROR(VLOOKUP(C118,参数!$B:$H,2,0),"") ->  | I118: =IFERROR(VLOOKUP(C118,参数!$B:$H,4,0),"") ->  | J118: =IFERROR(VLOOKUP(C118,参数!B:H,3,FALSE),"") ->  | L118: 1
A119: 118 | H119: =IFERROR(VLOOKUP(C119,参数!$B:$H,2,0),"") ->  | I119: =IFERROR(VLOOKUP(C119,参数!$B:$H,4,0),"") ->  | J119: =IFERROR(VLOOKUP(C119,参数!B:H,3,FALSE),"") ->  | L119: 1
A120: 119 | H120: =IFERROR(VLOOKUP(C120,参数!$B:$H,2,0),"") ->  | I120: =IFERROR(VLOOKUP(C120,参数!$B:$H,4,0),"") ->  | J120: =IFERROR(VLOOKUP(C120,参数!B:H,3,FALSE),"") ->  | L120: 1
A121: 120 | H121: =IFERROR(VLOOKUP(C121,参数!$B:$H,2,0),"") ->  | I121: =IFERROR(VLOOKUP(C121,参数!$B:$H,4,0),"") ->  | J121: =IFERROR(VLOOKUP(C121,参数!B:H,3,FALSE),"") ->  | L121: 1
A122: 121 | H122: =IFERROR(VLOOKUP(C122,参数!$B:$H,2,0),"") ->  | I122: =IFERROR(VLOOKUP(C122,参数!$B:$H,4,0),"") ->  | J122: =IFERROR(VLOOKUP(C122,参数!B:H,3,FALSE),"") ->  | L122: 1
A123: 122 | H123: =IFERROR(VLOOKUP(C123,参数!$B:$H,2,0),"") ->  | I123: =IFERROR(VLOOKUP(C123,参数!$B:$H,4,0),"") ->  | J123: =IFERROR(VLOOKUP(C123,参数!B:H,3,FALSE),"") ->  | L123: 1
A124: 123 | H124: =IFERROR(VLOOKUP(C124,参数!$B:$H,2,0),"") ->  | I124: =IFERROR(VLOOKUP(C124,参数!$B:$H,4,0),"") ->  | J124: =IFERROR(VLOOKUP(C124,参数!B:H,3,FALSE),"") ->  | L124: 1
A125: 124 | H125: =IFERROR(VLOOKUP(C125,参数!$B:$H,2,0),"") ->  | I125: =IFERROR(VLOOKUP(C125,参数!$B:$H,4,0),"") ->  | J125: =IFERROR(VLOOKUP(C125,参数!B:H,3,FALSE),"") ->  | L125: 1
A126: 125 | H126: =IFERROR(VLOOKUP(C126,参数!$B:$H,2,0),"") ->  | I126: =IFERROR(VLOOKUP(C126,参数!$B:$H,4,0),"") ->  | J126: =IFERROR(VLOOKUP(C126,参数!B:H,3,FALSE),"") ->  | L126: 1
A127: 126 | H127: =IFERROR(VLOOKUP(C127,参数!$B:$H,2,0),"") ->  | I127: =IFERROR(VLOOKUP(C127,参数!$B:$H,4,0),"") ->  | J127: =IFERROR(VLOOKUP(C127,参数!B:H,3,FALSE),"") ->  | L127: 1
A128: 127 | H128: =IFERROR(VLOOKUP(C128,参数!$B:$H,2,0),"") ->  | I128: =IFERROR(VLOOKUP(C128,参数!$B:$H,4,0),"") ->  | J128: =IFERROR(VLOOKUP(C128,参数!B:H,3,FALSE),"") ->  | L128: 1
A129: 128 | H129: =IFERROR(VLOOKUP(C129,参数!$B:$H,2,0),"") ->  | I129: =IFERROR(VLOOKUP(C129,参数!$B:$H,4,0),"") ->  | J129: =IFERROR(VLOOKUP(C129,参数!B:H,3,FALSE),"") ->  | L129: 1
A130: 129 | H130: =IFERROR(VLOOKUP(C130,参数!$B:$H,2,0),"") ->  | I130: =IFERROR(VLOOKUP(C130,参数!$B:$H,4,0),"") ->  | J130: =IFERROR(VLOOKUP(C130,参数!B:H,3,FALSE),"") ->  | L130: =VALUE(MONTH(B130)) -> 1
A131: 130 | H131: =IFERROR(VLOOKUP(C131,参数!$B:$H,2,0),"") ->  | I131: =IFERROR(VLOOKUP(C131,参数!$B:$H,4,0),"") ->  | J131: =IFERROR(VLOOKUP(C131,参数!B:H,3,FALSE),"") ->  | L131: 1
A132: 131 | H132: =IFERROR(VLOOKUP(C132,参数!$B:$H,2,0),"") ->  | I132: =IFERROR(VLOOKUP(C132,参数!$B:$H,4,0),"") ->  | J132: =IFERROR(VLOOKUP(C132,参数!B:H,3,FALSE),"") ->  | L132: 1
A133: 132 | H133: =IFERROR(VLOOKUP(C133,参数!$B:$H,2,0),"") ->  | I133: =IFERROR(VLOOKUP(C133,参数!$B:$H,4,0),"") ->  | J133: =IFERROR(VLOOKUP(C133,参数!B:H,3,FALSE),"") ->  | L133: 1
A134: 133 | H134: =IFERROR(VLOOKUP(C134,参数!$B:$H,2,0),"") ->  | I134: =IFERROR(VLOOKUP(C134,参数!$B:$H,4,0),"") ->  | J134: =IFERROR(VLOOKUP(C134,参数!B:H,3,FALSE),"") ->  | L134: 1
A135: 134 | H135: =IFERROR(VLOOKUP(C135,参数!$B:$H,2,0),"") ->  | I135: =IFERROR(VLOOKUP(C135,参数!$B:$H,4,0),"") ->  | J135: =IFERROR(VLOOKUP(C135,参数!B:H,3,FALSE),"") ->  | L135: 1
A136: 135 | H136: =IFERROR(VLOOKUP(C136,参数!$B:$H,2,0),"") ->  | I136: =IFERROR(VLOOKUP(C136,参数!$B:$H,4,0),"") ->  | J136: =IFERROR(VLOOKUP(C136,参数!B:H,3,FALSE),"") ->  | L136: 1
A137: 136 | H137: =IFERROR(VLOOKUP(C137,参数!$B:$H,2,0),"") ->  | I137: =IFERROR(VLOOKUP(C137,参数!$B:$H,4,0),"") ->  | J137: =IFERROR(VLOOKUP(C137,参数!B:H,3,FALSE),"") ->  | L137: 1
A138: 137 | H138: =IFERROR(VLOOKUP(C138,参数!$B:$H,2,0),"") ->  | I138: =IFERROR(VLOOKUP(C138,参数!$B:$H,4,0),"") ->  | J138: =IFERROR(VLOOKUP(C138,参数!B:H,3,FALSE),"") ->  | L138: 1
A139: 138 | H139: =IFERROR(VLOOKUP(C139,参数!$B:$H,2,0),"") ->  | I139: =IFERROR(VLOOKUP(C139,参数!$B:$H,4,0),"") ->  | J139: =IFERROR(VLOOKUP(C139,参数!B:H,3,FALSE),"") ->  | L139: 1
A140: 139 | H140: =IFERROR(VLOOKUP(C140,参数!$B:$H,2,0),"") ->  | I140: =IFERROR(VLOOKUP(C140,参数!$B:$H,4,0),"") ->  | J140: =IFERROR(VLOOKUP(C140,参数!B:H,3,FALSE),"") ->  | L140: 1
A141: 140 | H141: =IFERROR(VLOOKUP(C141,参数!$B:$H,2,0),"") ->  | I141: =IFERROR(VLOOKUP(C141,参数!$B:$H,4,0),"") ->  | J141: =IFERROR(VLOOKUP(C141,参数!B:H,3,FALSE),"") ->  | L141: 1
A142: 141 | H142: =IFERROR(VLOOKUP(C142,参数!$B:$H,2,0),"") ->  | I142: =IFERROR(VLOOKUP(C142,参数!$B:$H,4,0),"") ->  | J142: =IFERROR(VLOOKUP(C142,参数!B:H,3,FALSE),"") ->  | L142: 1
A143: 142 | H143: =IFERROR(VLOOKUP(C143,参数!$B:$H,2,0),"") ->  | I143: =IFERROR(VLOOKUP(C143,参数!$B:$H,4,0),"") ->  | J143: =IFERROR(VLOOKUP(C143,参数!B:H,3,FALSE),"") ->  | L143: 1
A144: 143 | H144: =IFERROR(VLOOKUP(C144,参数!$B:$H,2,0),"") ->  | I144: =IFERROR(VLOOKUP(C144,参数!$B:$H,4,0),"") ->  | J144: =IFERROR(VLOOKUP(C144,参数!B:H,3,FALSE),"") ->  | L144: 1
A145: 144 | H145: =IFERROR(VLOOKUP(C145,参数!$B:$H,2,0),"") ->  | I145: =IFERROR(VLOOKUP(C145,参数!$B:$H,4,0),"") ->  | J145: =IFERROR(VLOOKUP(C145,参数!B:H,3,FALSE),"") ->  | L145: 1
A146: 145 | H146: =IFERROR(VLOOKUP(C146,参数!$B:$H,2,0),"") ->  | I146: =IFERROR(VLOOKUP(C146,参数!$B:$H,4,0),"") ->  | J146: =IFERROR(VLOOKUP(C146,参数!B:H,3,FALSE),"") ->  | L146: 1
A147: 146 | H147: =IFERROR(VLOOKUP(C147,参数!$B:$H,2,0),"") ->  | I147: =IFERROR(VLOOKUP(C147,参数!$B:$H,4,0),"") ->  | J147: =IFERROR(VLOOKUP(C147,参数!B:H,3,FALSE),"") ->  | L147: 1
A148: 147 | H148: =IFERROR(VLOOKUP(C148,参数!$B:$H,2,0),"") ->  | I148: =IFERROR(VLOOKUP(C148,参数!$B:$H,4,0),"") ->  | J148: =IFERROR(VLOOKUP(C148,参数!B:H,3,FALSE),"") ->  | L148: 1
A149: 148 | H149: =IFERROR(VLOOKUP(C149,参数!$B:$H,2,0),"") ->  | I149: =IFERROR(VLOOKUP(C149,参数!$B:$H,4,0),"") ->  | J149: =IFERROR(VLOOKUP(C149,参数!B:H,3,FALSE),"") ->  | L149: 1
A150: 149 | H150: =IFERROR(VLOOKUP(C150,参数!$B:$H,2,0),"") ->  | I150: =IFERROR(VLOOKUP(C150,参数!$B:$H,4,0),"") ->  | J150: =IFERROR(VLOOKUP(C150,参数!B:H,3,FALSE),"") ->  | L150: 1
A151: 150 | H151: =IFERROR(VLOOKUP(C151,参数!$B:$H,2,0),"") ->  | I151: =IFERROR(VLOOKUP(C151,参数!$B:$H,4,0),"") ->  | J151: =IFERROR(VLOOKUP(C151,参数!B:H,3,FALSE),"") ->  | L151: 1
A152: 151 | H152: =IFERROR(VLOOKUP(C152,参数!$B:$H,2,0),"") ->  | I152: =IFERROR(VLOOKUP(C152,参数!$B:$H,4,0),"") ->  | J152: =IFERROR(VLOOKUP(C152,参数!B:H,3,FALSE),"") ->  | L152: 1
A153: 152 | H153: =IFERROR(VLOOKUP(C153,参数!$B:$H,2,0),"") ->  | I153: =IFERROR(VLOOKUP(C153,参数!$B:$H,4,0),"") ->  | J153: =IFERROR(VLOOKUP(C153,参数!B:H,3,FALSE),"") ->  | L153: 1
A154: 153 | H154: =IFERROR(VLOOKUP(C154,参数!$B:$H,2,0),"") ->  | I154: =IFERROR(VLOOKUP(C154,参数!$B:$H,4,0),"") ->  | J154: =IFERROR(VLOOKUP(C154,参数!B:H,3,FALSE),"") ->  | L154: 1
A155: 154 | H155: =IFERROR(VLOOKUP(C155,参数!$B:$H,2,0),"") ->  | I155: =IFERROR(VLOOKUP(C155,参数!$B:$H,4,0),"") ->  | J155: =IFERROR(VLOOKUP(C155,参数!B:H,3,FALSE),"") ->  | L155: 1
A156: 155 | H156: =IFERROR(VLOOKUP(C156,参数!$B:$H,2,0),"") ->  | I156: =IFERROR(VLOOKUP(C156,参数!$B:$H,4,0),"") ->  | J156: =IFERROR(VLOOKUP(C156,参数!B:H,3,FALSE),"") ->  | L156: 1
A157: 156 | H157: =IFERROR(VLOOKUP(C157,参数!$B:$H,2,0),"") ->  | I157: =IFERROR(VLOOKUP(C157,参数!$B:$H,4,0),"") ->  | J157: =IFERROR(VLOOKUP(C157,参数!B:H,3,FALSE),"") ->  | L157: 1
A158: 157 | H158: =IFERROR(VLOOKUP(C158,参数!$B:$H,2,0),"") ->  | I158: =IFERROR(VLOOKUP(C158,参数!$B:$H,4,0),"") ->  | J158: =IFERROR(VLOOKUP(C158,参数!B:H,3,FALSE),"") ->  | L158: 1
A159: 158 | H159: =IFERROR(VLOOKUP(C159,参数!$B:$H,2,0),"") ->  | I159: =IFERROR(VLOOKUP(C159,参数!$B:$H,4,0),"") ->  | J159: =IFERROR(VLOOKUP(C159,参数!B:H,3,FALSE),"") ->  | L159: 1
A160: 159 | H160: =IFERROR(VLOOKUP(C160,参数!$B:$H,2,0),"") ->  | I160: =IFERROR(VLOOKUP(C160,参数!$B:$H,4,0),"") ->  | J160: =IFERROR(VLOOKUP(C160,参数!B:H,3,FALSE),"") ->  | L160: 1
A161: 160 | H161: =IFERROR(VLOOKUP(C161,参数!$B:$H,2,0),"") ->  | I161: =IFERROR(VLOOKUP(C161,参数!$B:$H,4,0),"") ->  | J161: =IFERROR(VLOOKUP(C161,参数!B:H,3,FALSE),"") ->  | L161: 1
A162: 161 | H162: =IFERROR(VLOOKUP(C162,参数!$B:$H,2,0),"") ->  | I162: =IFERROR(VLOOKUP(C162,参数!$B:$H,4,0),"") ->  | J162: =IFERROR(VLOOKUP(C162,参数!B:H,3,FALSE),"") ->  | L162: 1
A163: 162 | H163: =IFERROR(VLOOKUP(C163,参数!$B:$H,2,0),"") ->  | I163: =IFERROR(VLOOKUP(C163,参数!$B:$H,4,0),"") ->  | J163: =IFERROR(VLOOKUP(C163,参数!B:H,3,FALSE),"") ->  | L163: 1
A164: 163 | H164: =IFERROR(VLOOKUP(C164,参数!$B:$H,2,0),"") ->  | I164: =IFERROR(VLOOKUP(C164,参数!$B:$H,4,0),"") ->  | J164: =IFERROR(VLOOKUP(C164,参数!B:H,3,FALSE),"") ->  | L164: 1
A165: 164 | H165: =IFERROR(VLOOKUP(C165,参数!$B:$H,2,0),"") ->  | I165: =IFERROR(VLOOKUP(C165,参数!$B:$H,4,0),"") ->  | J165: =IFERROR(VLOOKUP(C165,参数!B:H,3,FALSE),"") ->  | K165: =IFERROR(J165*E165,"") ->  | L165: 1
A166: 165 | H166: =IFERROR(VLOOKUP(C166,参数!$B:$H,2,0),"") ->  | I166: =IFERROR(VLOOKUP(C166,参数!$B:$H,4,0),"") ->  | J166: =IFERROR(VLOOKUP(C166,参数!B:H,3,FALSE),"") ->  | L166: 1
A167: 166 | H167: =IFERROR(VLOOKUP(C167,参数!$B:$H,2,0),"") ->  | I167: =IFERROR(VLOOKUP(C167,参数!$B:$H,4,0),"") ->  | J167: =IFERROR(VLOOKUP(C167,参数!B:H,3,FALSE),"") ->  | L167: 1
A168: 167 | H168: =IFERROR(VLOOKUP(C168,参数!$B:$H,2,0),"") ->  | I168: =IFERROR(VLOOKUP(C168,参数!$B:$H,4,0),"") ->  | J168: =IFERROR(VLOOKUP(C168,参数!B:H,3,FALSE),"") ->  | L168: 1
A169: 168 | H169: =IFERROR(VLOOKUP(C169,参数!$B:$H,2,0),"") ->  | I169: =IFERROR(VLOOKUP(C169,参数!$B:$H,4,0),"") ->  | J169: =IFERROR(VLOOKUP(C169,参数!B:H,3,FALSE),"") ->  | L169: 1
A170: 169 | H170: =IFERROR(VLOOKUP(C170,参数!$B:$H,2,0),"") ->  | I170: =IFERROR(VLOOKUP(C170,参数!$B:$H,4,0),"") ->  | J170: =IFERROR(VLOOKUP(C170,参数!B:H,3,FALSE),"") ->  | L170: 1
A171: 170 | H171: =IFERROR(VLOOKUP(C171,参数!$B:$H,2,0),"") ->  | I171: =IFERROR(VLOOKUP(C171,参数!$B:$H,4,0),"") ->  | J171: =IFERROR(VLOOKUP(C171,参数!B:H,3,FALSE),"") ->  | L171: 1
A172: 171 | H172: =IFERROR(VLOOKUP(C172,参数!$B:$H,2,0),"") ->  | I172: =IFERROR(VLOOKUP(C172,参数!$B:$H,4,0),"") ->  | J172: =IFERROR(VLOOKUP(C172,参数!B:H,3,FALSE),"") ->  | L172: 1
A173: 172 | H173: =IFERROR(VLOOKUP(C173,参数!$B:$H,2,0),"") ->  | I173: =IFERROR(VLOOKUP(C173,参数!$B:$H,4,0),"") ->  | J173: =IFERROR(VLOOKUP(C173,参数!B:H,3,FALSE),"") ->  | L173: 1
A174: 173 | H174: =IFERROR(VLOOKUP(C174,参数!$B:$H,2,0),"") ->  | I174: =IFERROR(VLOOKUP(C174,参数!$B:$H,4,0),"") ->  | J174: =IFERROR(VLOOKUP(C174,参数!B:H,3,FALSE),"") ->  | L174: 1
A175: 174 | H175: =IFERROR(VLOOKUP(C175,参数!$B:$H,2,0),"") ->  | I175: =IFERROR(VLOOKUP(C175,参数!$B:$H,4,0),"") ->  | J175: =IFERROR(VLOOKUP(C175,参数!B:H,3,FALSE),"") ->  | L175: 1
A176: 175 | H176: =IFERROR(VLOOKUP(C176,参数!$B:$H,2,0),"") ->  | I176: =IFERROR(VLOOKUP(C176,参数!$B:$H,4,0),"") ->  | J176: =IFERROR(VLOOKUP(C176,参数!B:H,3,FALSE),"") ->  | L176: 1
A177: 176 | H177: =IFERROR(VLOOKUP(C177,参数!$B:$H,2,0),"") ->  | I177: =IFERROR(VLOOKUP(C177,参数!$B:$H,4,0),"") ->  | J177: =IFERROR(VLOOKUP(C177,参数!B:H,3,FALSE),"") ->  | L177: 1
A178: 177 | H178: =IFERROR(VLOOKUP(C178,参数!$B:$H,2,0),"") ->  | I178: =IFERROR(VLOOKUP(C178,参数!$B:$H,4,0),"") ->  | J178: =IFERROR(VLOOKUP(C178,参数!B:H,3,FALSE),"") ->  | L178: 1
A179: 178 | H179: =IFERROR(VLOOKUP(C179,参数!$B:$H,2,0),"") ->  | I179: =IFERROR(VLOOKUP(C179,参数!$B:$H,4,0),"") ->  | J179: =IFERROR(VLOOKUP(C179,参数!B:H,3,FALSE),"") ->  | L179: 1
A180: 179 | H180: =IFERROR(VLOOKUP(C180,参数!$B:$H,2,0),"") ->  | I180: =IFERROR(VLOOKUP(C180,参数!$B:$H,4,0),"") ->  | J180: =IFERROR(VLOOKUP(C180,参数!B:H,3,FALSE),"") ->  | L180: 1
A181: 180 | H181: =IFERROR(VLOOKUP(C181,参数!$B:$H,2,0),"") ->  | I181: =IFERROR(VLOOKUP(C181,参数!$B:$H,4,0),"") ->  | J181: =IFERROR(VLOOKUP(C181,参数!B:H,3,FALSE),"") ->  | L181: 1
A182: 181 | H182: =IFERROR(VLOOKUP(C182,参数!$B:$H,2,0),"") ->  | I182: =IFERROR(VLOOKUP(C182,参数!$B:$H,4,0),"") ->  | J182: =IFERROR(VLOOKUP(C182,参数!B:H,3,FALSE),"") ->  | L182: 1
A183: 182 | H183: =IFERROR(VLOOKUP(C183,参数!$B:$H,2,0),"") ->  | I183: =IFERROR(VLOOKUP(C183,参数!$B:$H,4,0),"") ->  | J183: =IFERROR(VLOOKUP(C183,参数!B:H,3,FALSE),"") ->  | L183: 1
A184: 183 | H184: =IFERROR(VLOOKUP(C184,参数!$B:$H,2,0),"") ->  | I184: =IFERROR(VLOOKUP(C184,参数!$B:$H,4,0),"") ->  | J184: =IFERROR(VLOOKUP(C184,参数!B:H,3,FALSE),"") ->  | L184: 1
A185: 184 | H185: =IFERROR(VLOOKUP(C185,参数!$B:$H,2,0),"") ->  | I185: =IFERROR(VLOOKUP(C185,参数!$B:$H,4,0),"") ->  | J185: =IFERROR(VLOOKUP(C185,参数!B:H,3,FALSE),"") ->  | L185: 1
A186: 185 | H186: =IFERROR(VLOOKUP(C186,参数!$B:$H,2,0),"") ->  | I186: =IFERROR(VLOOKUP(C186,参数!$B:$H,4,0),"") ->  | J186: =IFERROR(VLOOKUP(C186,参数!B:H,3,FALSE),"") ->  | L186: 1
A187: 186 | H187: =IFERROR(VLOOKUP(C187,参数!$B:$H,2,0),"") ->  | I187: =IFERROR(VLOOKUP(C187,参数!$B:$H,4,0),"") ->  | J187: =IFERROR(VLOOKUP(C187,参数!B:H,3,FALSE),"") ->  | L187: 1
A188: 187 | H188: =IFERROR(VLOOKUP(C188,参数!$B:$H,2,0),"") ->  | I188: =IFERROR(VLOOKUP(C188,参数!$B:$H,4,0),"") ->  | J188: =IFERROR(VLOOKUP(C188,参数!B:H,3,FALSE),"") ->  | L188: 1
A189: 188 | H189: =IFERROR(VLOOKUP(C189,参数!$B:$H,2,0),"") ->  | I189: =IFERROR(VLOOKUP(C189,参数!$B:$H,4,0),"") ->  | J189: =IFERROR(VLOOKUP(C189,参数!B:H,3,FALSE),"") ->  | L189: 1
A190: 189 | H190: =IFERROR(VLOOKUP(C190,参数!$B:$H,2,0),"") ->  | I190: =IFERROR(VLOOKUP(C190,参数!$B:$H,4,0),"") ->  | J190: =IFERROR(VLOOKUP(C190,参数!B:H,3,FALSE),"") ->  | L190: 1
A191: 190 | H191: =IFERROR(VLOOKUP(C191,参数!$B:$H,2,0),"") ->  | I191: =IFERROR(VLOOKUP(C191,参数!$B:$H,4,0),"") ->  | J191: =IFERROR(VLOOKUP(C191,参数!B:H,3,FALSE),"") ->  | L191: 1
A192: 191 | H192: =IFERROR(VLOOKUP(C192,参数!$B:$H,2,0),"") ->  | I192: =IFERROR(VLOOKUP(C192,参数!$B:$H,4,0),"") ->  | J192: =IFERROR(VLOOKUP(C192,参数!B:H,3,FALSE),"") ->  | L192: 1
A193: 192 | H193: =IFERROR(VLOOKUP(C193,参数!$B:$H,2,0),"") ->  | I193: =IFERROR(VLOOKUP(C193,参数!$B:$H,4,0),"") ->  | J193: =IFERROR(VLOOKUP(C193,参数!B:H,3,FALSE),"") ->  | L193: 1
A194: 193 | H194: =IFERROR(VLOOKUP(C194,参数!$B:$H,2,0),"") ->  | I194: =IFERROR(VLOOKUP(C194,参数!$B:$H,4,0),"") ->  | J194: =IFERROR(VLOOKUP(C194,参数!B:H,3,FALSE),"") ->  | L194: =VALUE(MONTH(B194)) -> 1
A195: 194 | H195: =IFERROR(VLOOKUP(C195,参数!$B:$H,2,0),"") ->  | I195: =IFERROR(VLOOKUP(C195,参数!$B:$H,4,0),"") ->  | J195: =IFERROR(VLOOKUP(C195,参数!B:H,3,FALSE),"") ->  | L195: 1
A196: 195 | H196: =IFERROR(VLOOKUP(C196,参数!$B:$H,2,0),"") ->  | I196: =IFERROR(VLOOKUP(C196,参数!$B:$H,4,0),"") ->  | J196: =IFERROR(VLOOKUP(C196,参数!B:H,3,FALSE),"") ->  | L196: 1
A197: 196 | H197: =IFERROR(VLOOKUP(C197,参数!$B:$H,2,0),"") ->  | I197: =IFERROR(VLOOKUP(C197,参数!$B:$H,4,0),"") ->  | J197: =IFERROR(VLOOKUP(C197,参数!B:H,3,FALSE),"") ->  | L197: 1
A198: 197 | H198: =IFERROR(VLOOKUP(C198,参数!$B:$H,2,0),"") ->  | I198: =IFERROR(VLOOKUP(C198,参数!$B:$H,4,0),"") ->  | J198: =IFERROR(VLOOKUP(C198,参数!B:H,3,FALSE),"") ->  | L198: 1
A199: 198 | H199: =IFERROR(VLOOKUP(C199,参数!$B:$H,2,0),"") ->  | I199: =IFERROR(VLOOKUP(C199,参数!$B:$H,4,0),"") ->  | J199: =IFERROR(VLOOKUP(C199,参数!B:H,3,FALSE),"") ->  | L199: 1
A200: 199 | H200: =IFERROR(VLOOKUP(C200,参数!$B:$H,2,0),"") ->  | I200: =IFERROR(VLOOKUP(C200,参数!$B:$H,4,0),"") ->  | J200: =IFERROR(VLOOKUP(C200,参数!B:H,3,FALSE),"") ->  | L200: 1
... 13139 more rows

Sheet 分析 (hidden)
A1: 日历 | B1: 采购金额 | C1: 出库金额 | G1: 月历 | H1: 电费充值 | I1: 电费消耗 | J1: 油卡充值 | K1: 油卡消耗 | L1: 办公采购 | M1: 办公出库 | N1: 食品采购 | O1: 食品出库 | P1: 劳保采购 | Q1: 劳保出库 | R1: 其它采购 | S1: 其他出库 | W1: 部门 | X1: 办公用品 | Y1: 比例 | Z1: 部门辅助 | AC1: 部门比例 | AD1: K | AE1: 排名 | AF1: 部门 | AG1: 比例 | AL1: 累计采购额 | AM1: 累计出库额 | AN1: 本月采购额 | AO1: 本月出库额 | AP1: 累计电费充值 | AQ1: 累计电费消耗 | AR1: 累计油卡充值 | AS1: 累计油卡消耗
A2: =参数!A2 -> 2015-03-01 | B2: =SUMIFS(数据源!$K:$K,数据源!$B:$B,分析!A2,数据源!$D:$D,"采购") -> 1650 | C2: =SUMIFS(数据源!$K:$K,数据源!$B:$B,分析!A2,数据源!$D:$D,"出库") -> 1260 | G2: 1 | H2: =SUMIFS(数据源!$K:$K,数据源!$H:$H,"电卡",数据源!$D:$D,"采购",数据源!$L:$L,分析!$G2) -> 0 | I2: =SUMIFS(数据源!$K:$K,数据源!$H:$H,"电卡",数据源!$D:$D,"出库",数据源!$L:$L,分析!$G2) -> 0 | J2: =SUMIFS(数据源!$K:$K,数据源!$H:$H,"油卡",数据源!$D:$D,"采购",数据源!$L:$L,分析!$G2) -> 0 | K2: =SUMIFS(数据源!$K:$K,数据源!$H:$H,"油卡",数据源!$D:$D,"出库",数据源!$L:$L,分析!$G2) -> 0 | L2: =SUMIFS(数据源!$K:$K,数据源!$H:$H,"办公",数据源!$D:$D,"采购",数据源!$L:$L,分析!$G2) -> 3000 | M2: =SUMIFS(数据源!$K:$K,数据源!$H:$H,"办公",数据源!$D:$D,"出库",数据源!$L:$L,分析!$G2) -> 900 | N2: =SUMIFS(数据源!$K:$K,数据源!$H:$H,"食品",数据源!$D:$D,"采购",数据源!$L:$L,分析!$G2) -> 0 | O2: =SUMIFS(数据源!$K:$K,数据源!$H:$H,"食品",数据源!$D:$D,"出库",数据源!$L:$L,分析!$G2) -> 0 | P2: =SUMIFS(数据源!$K:$K,数据源!$H:$H,"劳保",数据源!$D:$D,"采购",数据源!$L:$L,分析!$G2) -> 0 | Q2: =SUMIFS(数据源!$K:$K,数据源!$H:$H,"劳保",数据源!$D:$D,"出库",数据源!$L:$L,分析!$G2) -> 0 | R2: =SUMIFS(数据源!$K:$K,数据源!$H:$H,"其它",数据源!$D:$D,"采购",数据源!$L:$L,分析!$G2) -> 0 | S2: =SUMIFS(数据源!$K:$K,数据源!$H:$H,"其它",数据源!$D:$D,"出库",数据源!$L:$L,分析!$G2) -> 0 | W2: 销售部 | X2: =SUMIFS(数据源!$K:$K,数据源!$H:$H,"办公",数据源!$D:$D,"出库",数据源!$F:$F,分析!W2) -> 45 | Y2: =IF(X2=0,"0",X2/$X$10) -> 0.07414730598 | Z2: =LEFT(W2,2) -> 销售 | AC2: =Y2+ROW()/10000 -> 0.07434730598 | AD2: 1 | AE2: =LARGE($AC$2:$AC$9,AD2) -> 0.2702961938 | AF2: =INDEX($W$2:$W$9,MATCH(AE2,$AC$2:$AC$9,0)) -> 机修车间 | AG2: =AE2 -> 0.2702961938 | AL2: =SUMIFS(数据源!$K:$K,数据源!$D:$D,"采购") -> 28296.2 | AM2: =SUMIFS(数据源!$K:$K,数据源!$D:$D,"出库") -> 16646 | AN2: =SUMIFS(数据源!$K:$K,数据源!$L:$L,参数!$N$2,数据源!$D:$D,"采购") -> 16384.4 | AO2: =SUMIFS(数据源!$K:$K,数据源!$L:$L,参数!$N$2,数据源!$D:$D,"出库") -> 9504.2 | AP2: =SUMIFS(数据源!$K:$K,数据源!$H:$H,"电卡",数据源!$D:$D,"采购") -> 825 | AQ2: =SUMIFS(数据源!$K:$K,数据源!$H:$H,"电卡",数据源!$D:$D,"出库") -> 247.5 | AR2: =SUMIFS(数据源!$K:$K,数据源!$H:$H,"油卡",数据源!$D:$D,"采购") -> 3575 | AS2: =SUMIFS(数据源!$K:$K,数据源!$H:$H,"油卡",数据源!$D:$D,"出库") -> 3080 | AW2: 充值 | AX2: 消耗
A3: =参数!A3 -> 2015-03-02 | B3: =SUMIFS(数据源!$K:$K,数据源!$B:$B,分析!A3,数据源!$D:$D,"采购") -> 300 | C3: =SUMIFS(数据源!$K:$K,数据源!$B:$B,分析!A3,数据源!$D:$D,"出库") -> 0 | G3: 2 | H3: =SUMIFS(数据源!$K:$K,数据源!$H:$H,"电卡",数据源!$D:$D,"采购",数据源!$L:$L,分析!$G3) -> 0 | I3: =SUMIFS(数据源!$K:$K,数据源!$H:$H,"电卡",数据源!$D:$D,"出库",数据源!$L:$L,分析!$G3) -> 0 | J3: =SUMIFS(数据源!$K:$K,数据源!$H:$H,"油卡",数据源!$D:$D,"采购",数据源!$L:$L,分析!$G3) -> 0 | K3: =SUMIFS(数据源!$K:$K,数据源!$H:$H,"油卡",数据源!$D:$D,"出库",数据源!$L:$L,分析!$G3) -> 0 | L3: =SUMIFS(数据源!$K:$K,数据源!$H:$H,"办公",数据源!$D:$D,"采购",数据源!$L:$L,分析!$G3) -> 2250 | M3: =SUMIFS(数据源!$K:$K,数据源!$H:$H,"办公",数据源!$D:$D,"出库",数据源!$L:$L,分析!$G3) -> 1200 | N3: =SUMIFS(数据源!$K:$K,数据源!$H:$H,"食品",数据源!$D:$D,"采购",数据源!$L:$L,分析!$G3) -> 0 | O3: =SUMIFS(数据源!$K:$K,数据源!$H:$H,"食品",数据源!$D:$D,"出库",数据源!$L:$L,分析!$G3) -> 0 | P3: =SUMIFS(数据源!$K:$K,数据源!$H:$H,"劳保",数据源!$D:$D,"采购",数据源!$L:$L,分析!$G3) -> 0 | Q3: =SUMIFS(数据源!$K:$K,数据源!$H:$H,"劳保",数据源!$D:$D,"出库",数据源!$L:$L,分析!$G3) -> 0 | R3: =SUMIFS(数据源!$K:$K,数据源!$H:$H,"其它",数据源!$D:$D,"采购",数据源!$L:$L,分析!$G3) -> 0 | S3: =SUMIFS(数据源!$K:$K,数据源!$H:$H,"其它",数据源!$D:$D,"出库",数据源!$L:$L,分析!$G3) -> 0 | W3: 服务部 | X3: =SUMIFS(数据源!$K:$K,数据源!$H:$H,"办公",数据源!$D:$D,"出库",数据源!$F:$F,分析!W3) -> 40.2 | Y3: =IF(X3=0,"0",X3/$X$10) -> 0.06623826001 | Z3: =LEFT(W3,2) -> 服务 | AC3: =Y3+ROW()/10000 -> 0.06653826001 | AD3: 2 | AE3: =LARGE($AC$2:$AC$9,AD3) -> 0.2387600099 | AF3: =INDEX($W$2:$W$9,MATCH(AE3,$AC$2:$AC$9,0)) -> 钣喷部 | AG3: =AE3 -> 0.2387600099 | AV3: 累计电卡充值 | AW3: =AP2 -> 825 | AX3: =AQ2 -> 247.5
A4: =参数!A4 -> 2015-03-03 | B4: =SUMIFS(数据源!$K:$K,数据源!$B:$B,分析!A4,数据源!$D:$D,"采购") -> 90 | C4: =SUMIFS(数据源!$K:$K,数据源!$B:$B,分析!A4,数据源!$D:$D,"出库") -> 0 | G4: 3 | H4: =SUMIFS(数据源!$K:$K,数据源!$H:$H,"电卡",数据源!$D:$D,"采购",数据源!$L:$L,分析!$G4) -> 825 | I4: =SUMIFS(数据源!$K:$K,数据源!$H:$H,"电卡",数据源!$D:$D,"出库",数据源!$L:$L,分析!$G4) -> 247.5 | J4: =SUMIFS(数据源!$K:$K,数据源!$H:$H,"油卡",数据源!$D:$D,"采购",数据源!$L:$L,分析!$G4) -> 3575 | K4: =SUMIFS(数据源!$K:$K,数据源!$H:$H,"油卡",数据源!$D:$D,"出库",数据源!$L:$L,分析!$G4) -> 3080 | L4: =SUMIFS(数据源!$K:$K,数据源!$H:$H,"办公",数据源!$D:$D,"采购",数据源!$L:$L,分析!$G4) -> 4136.4 | M4: =SUMIFS(数据源!$K:$K,数据源!$H:$H,"办公",数据源!$D:$D,"出库",数据源!$L:$L,分析!$G4) -> 2708.1 | N4: =SUMIFS(数据源!$K:$K,数据源!$H:$H,"食品",数据源!$D:$D,"采购",数据源!$L:$L,分析!$G4) -> 3072 | O4: =SUMIFS(数据源!$K:$K,数据源!$H:$H,"食品",数据源!$D:$D,"出库",数据源!$L:$L,分析!$G4) -> 1818 | P4: =SUMIFS(数据源!$K:$K,数据源!$H:$H,"劳保",数据源!$D:$D,"采购",数据源!$L:$L,分析!$G4) -> 4776 | Q4: =SUMIFS(数据源!$K:$K,数据源!$H:$H,"劳保",数据源!$D:$D,"出库",数据源!$L:$L,分析!$G4) -> 1650.6 | R4: =SUMIFS(数据源!$K:$K,数据源!$H:$H,"其它",数据源!$D:$D,"采购",数据源!$L:$L,分析!$G4) -> 0 | S4: =SUMIFS(数据源!$K:$K,数据源!$H:$H,"其它",数据源!$D:$D,"出库",数据源!$L:$L,分析!$G4) -> 0 | W4: 机修车间 | X4: =SUMIFS(数据源!$K:$K,数据源!$H:$H,"办公",数据源!$D:$D,"出库",数据源!$F:$F,分析!W4) -> 163.8 | Y4: 0.2698961938 | Z4: 机修 | AC4: 0.2702961938 | AD4: 3 | AE4: 0.1475116658 | AF4: 客服部 | AG4: 0.1475116658 | AV4: 累计油卡充值 | AW4: =AR2 -> 3575 | AX4: =AS2 -> 3080
A5: =参数!A5 -> 2015-03-04 | B5: =SUMIFS(数据源!$K:$K,数据源!$B:$B,分析!A5,数据源!$D:$D,"采购") -> 0 | C5: =SUMIFS(数据源!$K:$K,数据源!$B:$B,分析!A5,数据源!$D:$D,"出库") -> 0 | G5: 4 | H5: =SUMIFS(数据源!$K:$K,数据源!$H:$H,"电卡",数据源!$D:$D,"采购",数据源!$L:$L,分析!$G5) -> 0 | I5: =SUMIFS(数据源!$K:$K,数据源!$H:$H,"电卡",数据源!$D:$D,"出库",数据源!$L:$L,分析!$G5) -> 0 | J5: =SUMIFS(数据源!$K:$K,数据源!$H:$H,"油卡",数据源!$D:$D,"采购",数据源!$L:$L,分析!$G5) -> 0 | K5: =SUMIFS(数据源!$K:$K,数据源!$H:$H,"油卡",数据源!$D:$D,"出库",数据源!$L:$L,分析!$G5) -> 0 | L5: =SUMIFS(数据源!$K:$K,数据源!$H:$H,"办公",数据源!$D:$D,"采购",数据源!$L:$L,分析!$G5) -> 1500 | M5: =SUMIFS(数据源!$K:$K,数据源!$H:$H,"办公",数据源!$D:$D,"出库",数据源!$L:$L,分析!$G5) -> 1200 | N5: =SUMIFS(数据源!$K:$K,数据源!$H:$H,"食品",数据源!$D:$D,"采购",数据源!$L:$L,分析!$G5) -> 0 | O5: =SUMIFS(数据源!$K:$K,数据源!$H:$H,"食品",数据源!$D:$D,"出库",数据源!$L:$L,分析!$G5) -> 0 | P5: =SUMIFS(数据源!$K:$K,数据源!$H:$H,"劳保",数据源!$D:$D,"采购",数据源!$L:$L,分析!$G5) -> 0 | Q5: =SUMIFS(数据源!$K:$K,数据源!$H:$H,"劳保",数据源!$D:$D,"出库",数据源!$L:$L,分析!$G5) -> 0 | R5: =SUMIFS(数据源!$K:$K,数据源!$H:$H,"其它",数据源!$D:$D,"采购",数据源!$L:$L,分析!$G5) -> 0 | S5: =SUMIFS(数据源!$K:$K,数据源!$H:$H,"其它",数据源!$D:$D,"出库",数据源!$L:$L,分析!$G5) -> 0 | W5: 钣喷部 | X5: =SUMIFS(数据源!$K:$K,数据源!$H:$H,"办公",数据源!$D:$D,"出库",数据源!$F:$F,分析!W5) -> 144.6 | Y5: 0.2382600099 | Z5: 钣喷 | AC5: 0.2387600099 | AD5: 4 | AE5: 0.1429628275 | AF5: 财务部 | AG5: 0.1429628275
A6: =参数!A6 -> 2015-03-05 | B6: =SUMIFS(数据源!$K:$K,数据源!$B:$B,分析!A6,数据源!$D:$D,"采购") -> 0 | C6: =SUMIFS(数据源!$K:$K,数据源!$B:$B,分析!A6,数据源!$D:$D,"出库") -> 15 | G6: 5 | H6: =SUMIFS(数据源!$K:$K,数据源!$H:$H,"电卡",数据源!$D:$D,"采购",数据源!$L:$L,分析!$G6) -> 0 | I6: =SUMIFS(数据源!$K:$K,数据源!$H:$H,"电卡",数据源!$D:$D,"出库",数据源!$L:$L,分析!$G6) -> 0 | J6: =SUMIFS(数据源!$K:$K,数据源!$H:$H,"油卡",数据源!$D:$D,"采购",数据源!$L:$L,分析!$G6) -> 0 | K6: =SUMIFS(数据源!$K:$K,数据源!$H:$H,"油卡",数据源!$D:$D,"出库",数据源!$L:$L,分析!$G6) -> 0 | L6: =SUMIFS(数据源!$K:$K,数据源!$H:$H,"办公",数据源!$D:$D,"采购",数据源!$L:$L,分析!$G6) -> 1500 | M6: =SUMIFS(数据源!$K:$K,数据源!$H:$H,"办公",数据源!$D:$D,"出库",数据源!$L:$L,分析!$G6) -> 1200 | N6: =SUMIFS(数据源!$K:$K,数据源!$H:$H,"食品",数据源!$D:$D,"采购",数据源!$L:$L,分析!$G6) -> 0 | O6: =SUMIFS(数据源!$K:$K,数据源!$H:$H,"食品",数据源!$D:$D,"出库",数据源!$L:$L,分析!$G6) -> 0 | P6: =SUMIFS(数据源!$K:$K,数据源!$H:$H,"劳保",数据源!$D:$D,"采购",数据源!$L:$L,分析!$G6) -> 0 | Q6: =SUMIFS(数据源!$K:$K,数据源!$H:$H,"劳保",数据源!$D:$D,"出库",数据源!$L:$L,分析!$G6) -> 0 | R6: =SUMIFS(数据源!$K:$K,数据源!$H:$H,"其它",数据源!$D:$D,"采购",数据源!$L:$L,分析!$G6) -> 0 | S6: =SUMIFS(数据源!$K:$K,数据源!$H:$H,"其它",数据源!$D:$D,"出库",数据源!$L:$L,分析!$G6) -> 0 | W6: 财务部 | X6: =SUMIFS(数据源!$K:$K,数据源!$H:$H,"办公",数据源!$D:$D,"出库",数据源!$F:$F,分析!W6) -> 86.4 | Y6: 0.1423628275 | Z6: 财务 | AC6: 0.1429628275 | AD6: 5 | AE6: 0.07434730598 | AF6: 销售部 | AG6: 0.07434730598
A7: =参数!A7 -> 2015-03-06 | B7: =SUMIFS(数据源!$K:$K,数据源!$B:$B,分析!A7,数据源!$D:$D,"采购") -> 0 | C7: =SUMIFS(数据源!$K:$K,数据源!$B:$B,分析!A7,数据源!$D:$D,"出库") -> 0 | G7: 6 | H7: =SUMIFS(数据源!$K:$K,数据源!$H:$H,"电卡",数据源!$D:$D,"采购",数据源!$L:$L,分析!$G7) -> 0 | I7: =SUMIFS(数据源!$K:$K,数据源!$H:$H,"电卡",数据源!$D:$D,"出库",数据源!$L:$L,分析!$G7) -> 0 | J7: =SUMIFS(数据源!$K:$K,数据源!$H:$H,"油卡",数据源!$D:$D,"采购",数据源!$L:$L,分析!$G7) -> 0 | K7: =SUMIFS(数据源!$K:$K,数据源!$H:$H,"油卡",数据源!$D:$D,"出库",数据源!$L:$L,分析!$G7) -> 0 | L7: =SUMIFS(数据源!$K:$K,数据源!$H:$H,"办公",数据源!$D:$D,"采购",数据源!$L:$L,分析!$G7) -> 1500 | M7: =SUMIFS(数据源!$K:$K,数据源!$H:$H,"办公",数据源!$D:$D,"出库",数据源!$L:$L,分析!$G7) -> 1200 | N7: =SUMIFS(数据源!$K:$K,数据源!$H:$H,"食品",数据源!$D:$D,"采购",数据源!$L:$L,分析!$G7) -> 0 | O7: =SUMIFS(数据源!$K:$K,数据源!$H:$H,"食品",数据源!$D:$D,"出库",数据源!$L:$L,分析!$G7) -> 0 | P7: =SUMIFS(数据源!$K:$K,数据源!$H:$H,"劳保",数据源!$D:$D,"采购",数据源!$L:$L,分析!$G7) -> 0 | Q7: =SUMIFS(数据源!$K:$K,数据源!$H:$H,"劳保",数据源!$D:$D,"出库",数据源!$L:$L,分析!$G7) -> 0 | R7: =SUMIFS(数据源!$K:$K,数据源!$H:$H,"其它",数据源!$D:$D,"采购",数据源!$L:$L,分析!$G7) -> 0 | S7: =SUMIFS(数据源!$K:$K,数据源!$H:$H,"其它",数据源!$D:$D,"出库",数据源!$L:$L,分析!$G7) -> 0 | W7: 客服部 | X7: =SUMIFS(数据源!$K:$K,数据源!$H:$H,"办公",数据源!$D:$D,"出库",数据源!$F:$F,分析!W7) -> 89.1 | Y7: 0.1468116658 | Z7: 客服 | AC7: 0.1475116658 | AD7: 6 | AE7: 0.06653826001 | AF7: 服务部 | AG7: 0.06653826001
A8: =参数!A8 -> 2015-03-07 | B8: =SUMIFS(数据源!$K:$K,数据源!$B:$B,分析!A8,数据源!$D:$D,"采购") -> 0 | C8: =SUMIFS(数据源!$K:$K,数据源!$B:$B,分析!A8,数据源!$D:$D,"出库") -> 37.5 | G8: 7 | H8: =SUMIFS(数据源!$K:$K,数据源!$H:$H,"电卡",数据源!$D:$D,"采购",数据源!$L:$L,分析!$G8) -> 0 | I8: =SUMIFS(数据源!$K:$K,数据源!$H:$H,"电卡",数据源!$D:$D,"出库",数据源!$L:$L,分析!$G8) -> 0 | J8: =SUMIFS(数据源!$K:$K,数据源!$H:$H,"油卡",数据源!$D:$D,"采购",数据源!$L:$L,分析!$G8) -> 0 | K8: =SUMIFS(数据源!$K:$K,数据源!$H:$H,"油卡",数据源!$D:$D,"出库",数据源!$L:$L,分析!$G8) -> 0 | L8: =SUMIFS(数据源!$K:$K,数据源!$H:$H,"办公",数据源!$D:$D,"采购",数据源!$L:$L,分析!$G8) -> 600 | M8: =SUMIFS(数据源!$K:$K,数据源!$H:$H,"办公",数据源!$D:$D,"出库",数据源!$L:$L,分析!$G8) -> 480 | N8: =SUMIFS(数据源!$K:$K,数据源!$H:$H,"食品",数据源!$D:$D,"采购",数据源!$L:$L,分析!$G8) -> 0 | O8: =SUMIFS(数据源!$K:$K,数据源!$H:$H,"食品",数据源!$D:$D,"出库",数据源!$L:$L,分析!$G8) -> 0 | P8: =SUMIFS(数据源!$K:$K,数据源!$H:$H,"劳保",数据源!$D:$D,"采购",数据源!$L:$L,分析!$G8) -> 0 | Q8: =SUMIFS(数据源!$K:$K,数据源!$H:$H,"劳保",数据源!$D:$D,"出库",数据源!$L:$L,分析!$G8) -> 0 | R8: =SUMIFS(数据源!$K:$K,数据源!$H:$H,"其它",数据源!$D:$D,"采购",数据源!$L:$L,分析!$G8) -> 0 | S8: =SUMIFS(数据源!$K:$K,数据源!$H:$H,"其它",数据源!$D:$D,"出库",数据源!$L:$L,分析!$G8) -> 0 | W8: 市场部 | X8: =SUMIFS(数据源!$K:$K,数据源!$H:$H,"办公",数据源!$D:$D,"出库",数据源!$F:$F,分析!W8) -> 37.8 | Y8: 0.06228373702 | Z8: 市场 | AC8: 0.06308373702 | AD8: 7 | AE8: 0.06308373702 | AF8: 市场部 | AG8: 0.06308373702
A9: =参数!A9 -> 2015-03-08 | B9: =SUMIFS(数据源!$K:$K,数据源!$B:$B,分析!A9,数据源!$D:$D,"采购") -> 75 | C9: =SUMIFS(数据源!$K:$K,数据源!$B:$B,分析!A9,数据源!$D:$D,"出库") -> 0 | G9: 8 | H9: =SUMIFS(数据源!$K:$K,数据源!$H:$H,"电卡",数据源!$D:$D,"采购",数据源!$L:$L,分析!$G9) -> 0 | I9: =SUMIFS(数据源!$K:$K,数据源!$H:$H,"电卡",数据源!$D:$D,"出库",数据源!$L:$L,分析!$G9) -> 0 | J9: =SUMIFS(数据源!$K:$K,数据源!$H:$H,"油卡",数据源!$D:$D,"采购",数据源!$L:$L,分析!$G9) -> 0 | K9: =SUMIFS(数据源!$K:$K,数据源!$H:$H,"油卡",数据源!$D:$D,"出库",数据源!$L:$L,分析!$G9) -> 0 | L9: =SUMIFS(数据源!$K:$K,数据源!$H:$H,"办公",数据源!$D:$D,"采购",数据源!$L:$L,分析!$G9) -> 600 | M9: =SUMIFS(数据源!$K:$K,数据源!$H:$H,"办公",数据源!$D:$D,"出库",数据源!$L:$L,分析!$G9) -> 480 | N9: =SUMIFS(数据源!$K:$K,数据源!$H:$H,"食品",数据源!$D:$D,"采购",数据源!$L:$L,分析!$G9) -> 0 | O9: =SUMIFS(数据源!$K:$K,数据源!$H:$H,"食品",数据源!$D:$D,"出库",数据源!$L:$L,分析!$G9) -> 0 | P9: =SUMIFS(数据源!$K:$K,数据源!$H:$H,"劳保",数据源!$D:$D,"采购",数据源!$L:$L,分析!$G9) -> 0 | Q9: =SUMIFS(数据源!$K:$K,数据源!$H:$H,"劳保",数据源!$D:$D,"出库",数据源!$L:$L,分析!$G9) -> 0 | R9: =SUMIFS(数据源!$K:$K,数据源!$H:$H,"其它",数据源!$D:$D,"采购",数据源!$L:$L,分析!$G9) -> 0 | S9: =SUMIFS(数据源!$K:$K,数据源!$H:$H,"其它",数据源!$D:$D,"出库",数据源!$L:$L,分析!$G9) -> 0 | W9: 综合部 | X9: =SUMIFS(数据源!$K:$K,数据源!$H:$H,"办公",数据源!$D:$D,"出库",数据源!$F:$F,分析!W9) -> 0 | Y9: 0 | Z9: 综合 | AC9: 0.0009 | AD9: 8 | AE9: 0.0009 | AF9: 综合部 | AG9: 0.0009
A10: =参数!A10 -> 2015-03-09 | B10: =SUMIFS(数据源!$K:$K,数据源!$B:$B,分析!A10,数据源!$D:$D,"采购") -> 0 | C10: =SUMIFS(数据源!$K:$K,数据源!$B:$B,分析!A10,数据源!$D:$D,"出库") -> 30 | G10: 9 | H10: =SUMIFS(数据源!$K:$K,数据源!$H:$H,"电卡",数据源!$D:$D,"采购",数据源!$L:$L,分析!$G10) -> 0 | I10: =SUMIFS(数据源!$K:$K,数据源!$H:$H,"电卡",数据源!$D:$D,"出库",数据源!$L:$L,分析!$G10) -> 0 | J10: =SUMIFS(数据源!$K:$K,数据源!$H:$H,"油卡",数据源!$D:$D,"采购",数据源!$L:$L,分析!$G10) -> 0 | K10: =SUMIFS(数据源!$K:$K,数据源!$H:$H,"油卡",数据源!$D:$D,"出库",数据源!$L:$L,分析!$G10) -> 0 | L10: =SUMIFS(数据源!$K:$K,数据源!$H:$H,"办公",数据源!$D:$D,"采购",数据源!$L:$L,分析!$G10) -> 961.8 | M10: =SUMIFS(数据源!$K:$K,数据源!$H:$H,"办公",数据源!$D:$D,"出库",数据源!$L:$L,分析!$G10) -> 481.8 | N10: =SUMIFS(数据源!$K:$K,数据源!$H:$H,"食品",数据源!$D:$D,"采购",数据源!$L:$L,分析!$G10) -> 0 | O10: =SUMIFS(数据源!$K:$K,数据源!$H:$H,"食品",数据源!$D:$D,"出库",数据源!$L:$L,分析!$G10) -> 0 | P10: =SUMIFS(数据源!$K:$K,数据源!$H:$H,"劳保",数据源!$D:$D,"采购",数据源!$L:$L,分析!$G10) -> 0 | Q10: =SUMIFS(数据源!$K:$K,数据源!$H:$H,"劳保",数据源!$D:$D,"出库",数据源!$L:$L,分析!$G10) -> 0 | R10: =SUMIFS(数据源!$K:$K,数据源!$H:$H,"其它",数据源!$D:$D,"采购",数据源!$L:$L,分析!$G10) -> 0 | S10: =SUMIFS(数据源!$K:$K,数据源!$H:$H,"其它",数据源!$D:$D,"出库",数据源!$L:$L,分析!$G10) -> 0 | W10: 合计 | X10: =SUM(X2:X9) -> 606.9
A11: =参数!A11 -> 2015-03-10 | B11: =SUMIFS(数据源!$K:$K,数据源!$B:$B,分析!A11,数据源!$D:$D,"采购") -> 90 | C11: =SUMIFS(数据源!$K:$K,数据源!$B:$B,分析!A11,数据源!$D:$D,"出库") -> 0 | G11: 10 | H11: =SUMIFS(数据源!$K:$K,数据源!$H:$H,"电卡",数据源!$D:$D,"采购",数据源!$L:$L,分析!$G11) -> 0 | I11: =SUMIFS(数据源!$K:$K,数据源!$H:$H,"电卡",数据源!$D:$D,"出库",数据源!$L:$L,分析!$G11) -> 0 | J11: =SUMIFS(数据源!$K:$K,数据源!$H:$H,"油卡",数据源!$D:$D,"采购",数据源!$L:$L,分析!$G11) -> 0 | K11: =SUMIFS(数据源!$K:$K,数据源!$H:$H,"油卡",数据源!$D:$D,"出库",数据源!$L:$L,分析!$G11) -> 0 | L11: =SUMIFS(数据源!$K:$K,数据源!$H:$H,"办公",数据源!$D:$D,"采购",数据源!$L:$L,分析!$G11) -> 0 | M11: =SUMIFS(数据源!$K:$K,数据源!$H:$H,"办公",数据源!$D:$D,"出库",数据源!$L:$L,分析!$G11) -> 0 | N11: =SUMIFS(数据源!$K:$K,数据源!$H:$H,"食品",数据源!$D:$D,"采购",数据源!$L:$L,分析!$G11) -> 0 | O11: =SUMIFS(数据源!$K:$K,数据源!$H:$H,"食品",数据源!$D:$D,"出库",数据源!$L:$L,分析!$G11) -> 0 | P11: =SUMIFS(数据源!$K:$K,数据源!$H:$H,"劳保",数据源!$D:$D,"采购",数据源!$L:$L,分析!$G11) -> 0 | Q11: =SUMIFS(数据源!$K:$K,数据源!$H:$H,"劳保",数据源!$D:$D,"出库",数据源!$L:$L,分析!$G11) -> 0 | R11: =SUMIFS(数据源!$K:$K,数据源!$H:$H,"其它",数据源!$D:$D,"采购",数据源!$L:$L,分析!$G11) -> 0 | S11: =SUMIFS(数据源!$K:$K,数据源!$H:$H,"其它",数据源!$D:$D,"出库",数据源!$L:$L,分析!$G11) -> 0
A12: =参数!A12 -> 2015-03-11 | B12: =SUMIFS(数据源!$K:$K,数据源!$B:$B,分析!A12,数据源!$D:$D,"采购") -> 0 | C12: =SUMIFS(数据源!$K:$K,数据源!$B:$B,分析!A12,数据源!$D:$D,"出库") -> 45 | G12: 11 | H12: =SUMIFS(数据源!$K:$K,数据源!$H:$H,"电卡",数据源!$D:$D,"采购",数据源!$L:$L,分析!$G12) -> 0 | I12: =SUMIFS(数据源!$K:$K,数据源!$H:$H,"电卡",数据源!$D:$D,"出库",数据源!$L:$L,分析!$G12) -> 0 | J12: =SUMIFS(数据源!$K:$K,数据源!$H:$H,"油卡",数据源!$D:$D,"采购",数据源!$L:$L,分析!$G12) -> 0 | K12: =SUMIFS(数据源!$K:$K,数据源!$H:$H,"油卡",数据源!$D:$D,"出库",数据源!$L:$L,分析!$G12) -> 0 | L12: =SUMIFS(数据源!$K:$K,数据源!$H:$H,"办公",数据源!$D:$D,"采购",数据源!$L:$L,分析!$G12) -> 0 | M12: =SUMIFS(数据源!$K:$K,数据源!$H:$H,"办公",数据源!$D:$D,"出库",数据源!$L:$L,分析!$G12) -> 0 | N12: =SUMIFS(数据源!$K:$K,数据源!$H:$H,"食品",数据源!$D:$D,"采购",数据源!$L:$L,分析!$G12) -> 0 | O12: =SUMIFS(数据源!$K:$K,数据源!$H:$H,"食品",数据源!$D:$D,"出库",数据源!$L:$L,分析!$G12) -> 0 | P12: =SUMIFS(数据源!$K:$K,数据源!$H:$H,"劳保",数据源!$D:$D,"采购",数据源!$L:$L,分析!$G12) -> 0 | Q12: =SUMIFS(数据源!$K:$K,数据源!$H:$H,"劳保",数据源!$D:$D,"出库",数据源!$L:$L,分析!$G12) -> 0 | R12: =SUMIFS(数据源!$K:$K,数据源!$H:$H,"其它",数据源!$D:$D,"采购",数据源!$L:$L,分析!$G12) -> 0 | S12: =SUMIFS(数据源!$K:$K,数据源!$H:$H,"其它",数据源!$D:$D,"出库",数据源!$L:$L,分析!$G12) -> 0
A13: =参数!A13 -> 2015-03-12 | B13: =SUMIFS(数据源!$K:$K,数据源!$B:$B,分析!A13,数据源!$D:$D,"采购") -> 75 | C13: =SUMIFS(数据源!$K:$K,数据源!$B:$B,分析!A13,数据源!$D:$D,"出库") -> 0 | G13: 12 | H13: =SUMIFS(数据源!$K:$K,数据源!$H:$H,"电卡",数据源!$D:$D,"采购",数据源!$L:$L,分析!G13) -> 0 | I13: =SUMIFS(数据源!$K:$K,数据源!$H:$H,"电卡",数据源!$D:$D,"出库",数据源!$L:$L,分析!$G13) -> 0 | J13: =SUMIFS(数据源!$K:$K,数据源!$H:$H,"油卡",数据源!$D:$D,"采购",数据源!$L:$L,分析!$G13) -> 0 | K13: =SUMIFS(数据源!$K:$K,数据源!$H:$H,"油卡",数据源!$D:$D,"出库",数据源!$L:$L,分析!$G13) -> 0 | L13: =SUMIFS(数据源!$K:$K,数据源!$H:$H,"办公",数据源!$D:$D,"采购",数据源!$L:$L,分析!$G13) -> 0 | M13: =SUMIFS(数据源!$K:$K,数据源!$H:$H,"办公",数据源!$D:$D,"出库",数据源!$L:$L,分析!$G13) -> 0 | N13: =SUMIFS(数据源!$K:$K,数据源!$H:$H,"食品",数据源!$D:$D,"采购",数据源!$L:$L,分析!$G13) -> 0 | O13: =SUMIFS(数据源!$K:$K,数据源!$H:$H,"食品",数据源!$D:$D,"出库",数据源!$L:$L,分析!$G13) -> 0 | P13: =SUMIFS(数据源!$K:$K,数据源!$H:$H,"劳保",数据源!$D:$D,"采购",数据源!$L:$L,分析!$G13) -> 0 | Q13: =SUMIFS(数据源!$K:$K,数据源!$H:$H,"劳保",数据源!$D:$D,"出库",数据源!$L:$L,分析!$G13) -> 0 | R13: =SUMIFS(数据源!$K:$K,数据源!$H:$H,"其它",数据源!$D:$D,"采购",数据源!$L:$L,分析!$G13) -> 0 | S13: =SUMIFS(数据源!$K:$K,数据源!$H:$H,"其它",数据源!$D:$D,"出库",数据源!$L:$L,分析!$G13) -> 0
A14: =参数!A14 -> 2015-03-13 | B14: =SUMIFS(数据源!$K:$K,数据源!$B:$B,分析!A14,数据源!$D:$D,"采购") -> 0 | C14: =SUMIFS(数据源!$K:$K,数据源!$B:$B,分析!A14,数据源!$D:$D,"出库") -> 30 | G14: 合计 | H14: =SUM(H2:H13) -> 825 | I14: =SUM(I2:I13) -> 247.5 | J14: 3575 | K14: 3080 | L14: 16048.2 | M14: 9849.9 | N14: 3072 | O14: 1818 | P14: 4776 | Q14: 1650.6 | R14: 0 | S14: 0
A15: =参数!A15 -> 2015-03-14 | B15: =SUMIFS(数据源!$K:$K,数据源!$B:$B,分析!A15,数据源!$D:$D,"采购") -> 90 | C15: =SUMIFS(数据源!$K:$K,数据源!$B:$B,分析!A15,数据源!$D:$D,"出库") -> 0
A16: =参数!A16 -> 2015-03-15 | B16: =SUMIFS(数据源!$K:$K,数据源!$B:$B,分析!A16,数据源!$D:$D,"采购") -> 0 | C16: =SUMIFS(数据源!$K:$K,数据源!$B:$B,分析!A16,数据源!$D:$D,"出库") -> 60
A17: =参数!A17 -> 2015-03-16 | B17: =SUMIFS(数据源!$K:$K,数据源!$B:$B,分析!A17,数据源!$D:$D,"采购") -> 3628.4 | C17: =SUMIFS(数据源!$K:$K,数据源!$B:$B,分析!A17,数据源!$D:$D,"出库") -> 746.7
A18: =参数!A18 -> 2015-03-17 | B18: =SUMIFS(数据源!$K:$K,数据源!$B:$B,分析!A18,数据源!$D:$D,"采购") -> 1650 | C18: =SUMIFS(数据源!$K:$K,数据源!$B:$B,分析!A18,数据源!$D:$D,"出库") -> 0
A19: =参数!A19 -> 2015-03-18 | B19: =SUMIFS(数据源!$K:$K,数据源!$B:$B,分析!A19,数据源!$D:$D,"采购") -> 0 | C19: =SUMIFS(数据源!$K:$K,数据源!$B:$B,分析!A19,数据源!$D:$D,"出库") -> 330
A20: =参数!A20 -> 2015-03-19 | B20: =SUMIFS(数据源!$K:$K,数据源!$B:$B,分析!A20,数据源!$D:$D,"采购") -> 36 | C20: =SUMIFS(数据源!$K:$K,数据源!$B:$B,分析!A20,数据源!$D:$D,"出库") -> 0
A21: =参数!A21 -> 2015-03-20 | B21: =SUMIFS(数据源!$K:$K,数据源!$B:$B,分析!A21,数据源!$D:$D,"采购") -> 3000 | C21: =SUMIFS(数据源!$K:$K,数据源!$B:$B,分析!A21,数据源!$D:$D,"出库") -> 0
A22: =参数!A22 -> 2015-03-21 | B22: =SUMIFS(数据源!$K:$K,数据源!$B:$B,分析!A22,数据源!$D:$D,"采购") -> 0 | C22: =SUMIFS(数据源!$K:$K,数据源!$B:$B,分析!A22,数据源!$D:$D,"出库") -> 1800
A23: =参数!A23 -> 2015-03-22 | B23: =SUMIFS(数据源!$K:$K,数据源!$B:$B,分析!A23,数据源!$D:$D,"采购") -> 1200 | C23: =SUMIFS(数据源!$K:$K,数据源!$B:$B,分析!A23,数据源!$D:$D,"出库") -> 0
A24: =参数!A24 -> 2015-03-23 | B24: =SUMIFS(数据源!$K:$K,数据源!$B:$B,分析!A24,数据源!$D:$D,"采购") -> 0 | C24: =SUMIFS(数据源!$K:$K,数据源!$B:$B,分析!A24,数据源!$D:$D,"出库") -> 900
A25: =参数!A25 -> 2015-03-24 | B25: =SUMIFS(数据源!$K:$K,数据源!$B:$B,分析!A25,数据源!$D:$D,"采购") -> 4500 | C25: =SUMIFS(数据源!$K:$K,数据源!$B:$B,分析!A25,数据源!$D:$D,"出库") -> 0
A26: =参数!A26 -> 2015-03-25 | B26: =SUMIFS(数据源!$K:$K,数据源!$B:$B,分析!A26,数据源!$D:$D,"采购") -> 0 | C26: =SUMIFS(数据源!$K:$K,数据源!$B:$B,分析!A26,数据源!$D:$D,"出库") -> 1500
A27: =参数!A27 -> 2015-03-26 | B27: =SUMIFS(数据源!$K:$K,数据源!$B:$B,分析!A27,数据源!$D:$D,"采购") -> 0 | C27: =SUMIFS(数据源!$K:$K,数据源!$B:$B,分析!A27,数据源!$D:$D,"出库") -> 2750
A28: =参数!A28 -> 2015-03-27 | B28: =SUMIFS(数据源!$K:$K,数据源!$B:$B,分析!A28,数据源!$D:$D,"采购") -> 0 | C28: =SUMIFS(数据源!$K:$K,数据源!$B:$B,分析!A28,数据源!$D:$D,"出库") -> 0
A29: =参数!A29 -> 2015-03-28 | B29: =SUMIFS(数据源!$K:$K,数据源!$B:$B,分析!A29,数据源!$D:$D,"采购") -> 0 | C29: =SUMIFS(数据源!$K:$K,数据源!$B:$B,分析!A29,数据源!$D:$D,"出库") -> 0
A30: =参数!A30 -> 2015-03-29 | B30: =SUMIFS(数据源!$K:$K,数据源!$B:$B,分析!A30,数据源!$D:$D,"采购") -> 0 | C30: =SUMIFS(数据源!$K:$K,数据源!$B:$B,分析!A30,数据源!$D:$D,"出库") -> 0
A31: =参数!A31 -> 2015-03-30 | B31: =SUMIFS(数据源!$K:$K,数据源!$B:$B,分析!A31,数据源!$D:$D,"采购") -> 0 | C31: =SUMIFS(数据源!$K:$K,数据源!$B:$B,分析!A31,数据源!$D:$D,"出库") -> 0
A32: =参数!A32 -> 2015-03-31 | B32: =SUMIFS(数据源!$K:$K,数据源!$B:$B,分析!A32,数据源!$D:$D,"采购") -> 0 | C32: =SUMIFS(数据源!$K:$K,数据源!$B:$B,分析!A32,数据源!$D:$D,"出库") -> 0

Sheet 计算 (hidden)
B1: 采购金额 | C1: 出库金额 | D1: 库存金额 | E1: 采购数量 | F1: 出库数量 | G1: 库存数量 | I1: 销售部 | J1: 服务部 | K1: 机修车间 | L1: 钣喷部 | M1: 财务部 | N1: 客服部 | O1: 其他 | P1: MAX | Q1: 最大部门 | Y1: 出库金额辅助1 | Z1: 排名 | AA1: K值 | AB1: 品名 | AC1: 采购辅助 | AD1: 出库辅助 | AE1: 库存
A2: =参数!B2 -> 支出证明 | B2: =SUMIFS(合计,品名,计算!A2,出入库,"采购",日期辅助,参数!$N$2) -> 1650 | C2: =SUMIFS(合计,品名,计算!A2,出入库,"出库",日期辅助,参数!$N$2) -> 1215 | D2: =SUMIFS(合计,品名,计算!A2,出入库,"采购")-SUMIFS(合计,品名,计算!A2,出入库,"出库") -> 4185 | E2: =SUMIFS(数量,品名,计算!A2,出入库,"采购",日期辅助,参数!$N$2) -> 1100 | F2: =SUMIFS(数量,品名,计算!A2,出入库,"出库",日期辅助,参数!$N$2) -> 810 | G2: =SUMIFS(数量,品名,计算!A2,出入库,"采购")-SUMIFS(数量,品名,计算!A2,出入库,"出库") -> 2790 | I2: =SUMIFS(数量,品名,计算!A2,部门,计算!$I$1,出入库,"出库") -> 0 | J2: =SUMIFS(数量,品名,计算!A2,部门,计算!$J$1,出入库,"出库") -> 0 | K2: =SUMIFS(数量,品名,计算!A2,部门,计算!$K$1,出入库,"出库") -> 10 | L2: =SUMIFS(数量,品名,计算!A2,部门,计算!$L$1,出入库,"出库") -> 0 | M2: =SUMIFS(数量,品名,计算!A2,部门,计算!$M$1,出入库,"出库") -> 0 | N2: =SUMIFS(数量,品名,计算!A2,部门,计算!$N$1,出入库,"出库")+0.006 -> 0.006 | O2: =SUMIFS(数量,品名,计算!A2,部门,计算!$O$1,出入库,"出库")+0.007 -> 0.007 | P2: =MAX(I2:O2) -> 10 | Q2: =HLOOKUP(P2,$I2:$O$62,62-ROW(R1),FALSE) -> 机修车间 | Y2: =C2+ROW()/10000 -> 1215.0002 | Z2: 1 | AA2: =LARGE($Y$2:$Y$60,Z2) -> 1800.0044 | AB2: =INDEX($A$2:$A$60,MATCH(AA2,$Y$2:$Y$60,0)) -> 饼干 | AC2: =VLOOKUP(AB2,$A$1:$C$60,2,FALSE) -> 3036 | AD2: =VLOOKUP(AB2,$A$1:$C$60,3,FALSE) -> 1800 | AE2: =AC2-AD2 -> 1236
A3: =参数!B3 -> 圆珠笔 | B3: =SUMIFS(合计,品名,计算!A3,出入库,"采购",日期辅助,参数!$N$2) -> 300 | C3: =SUMIFS(合计,品名,计算!A3,出入库,"出库",日期辅助,参数!$N$2) -> 60 | D3: =SUMIFS(合计,品名,计算!A3,出入库,"采购")-SUMIFS(合计,品名,计算!A3,出入库,"出库") -> 240 | E3: =SUMIFS(数量,品名,计算!A3,出入库,"采购",日期辅助,参数!$N$2) -> 200 | F3: =SUMIFS(数量,品名,计算!A3,出入库,"出库",日期辅助,参数!$N$2) -> 40 | G3: =SUMIFS(数量,品名,计算!A3,出入库,"采购")-SUMIFS(数量,品名,计算!A3,出入库,"出库") -> 160 | I3: =SUMIFS(数量,品名,计算!A3,部门,计算!$I$1,出入库,"出库")+0.001 -> 30.001 | J3: =SUMIFS(数量,品名,计算!A3,部门,计算!$J$1,出入库,"出库")+0.002 -> 0.002 | K3: =SUMIFS(数量,品名,计算!A3,部门,计算!$K$1,出入库,"出库")+0.003 -> 0.003 | L3: =SUMIFS(数量,品名,计算!A3,部门,计算!$L$1,出入库,"出库")+0.004 -> 10.004 | M3: =SUMIFS(数量,品名,计算!A3,部门,计算!$M$1,出入库,"出库")+0.005 -> 0.005 | N3: =SUMIFS(数量,品名,计算!A3,部门,计算!$N$1,出入库,"出库")+0.006 -> 0.006 | O3: =SUMIFS(数量,品名,计算!A3,部门,计算!$O$1,出入库,"出库")+0.007 -> 0.007 | P3: =MAX(I3:O3) -> 30.001 | Q3: =HLOOKUP(P3,$I3:$O$62,62-ROW(R2),FALSE) -> 销售部 | Y3: =C3+ROW()/10000 -> 60.0003 | Z3: 2 | AA3: =LARGE($Y$2:$Y$60,Z3) -> 1515.0009 | AB3: =INDEX($A$2:$A$60,MATCH(AA3,$Y$2:$Y$60,0)) -> 笤帚 | AC3: =VLOOKUP(AB3,$A$1:$C$60,2,FALSE) -> 4530 | AD3: =VLOOKUP(AB3,$A$1:$C$60,3,FALSE) -> 1515 | AE3: =AC3-AD3 -> 3015
A4: =参数!B4 -> 印油 | B4: =SUMIFS(合计,品名,计算!A4,出入库,"采购",日期辅助,参数!$N$2) -> 90 | C4: =SUMIFS(合计,品名,计算!A4,出入库,"出库",日期辅助,参数!$N$2) -> 37.5 | D4: =SUMIFS(合计,品名,计算!A4,出入库,"采购")-SUMIFS(合计,品名,计算!A4,出入库,"出库") -> 52.5 | E4: =SUMIFS(数量,品名,计算!A4,出入库,"采购",日期辅助,参数!$N$2) -> 60 | F4: =SUMIFS(数量,品名,计算!A4,出入库,"出库",日期辅助,参数!$N$2) -> 25 | G4: =SUMIFS(数量,品名,计算!A4,出入库,"采购")-SUMIFS(数量,品名,计算!A4,出入库,"出库") -> 35 | I4: =SUMIFS(数量,品名,计算!A4,部门,计算!$I$1,出入库,"出库")+0.001 -> 0.001 | J4: =SUMIFS(数量,品名,计算!A4,部门,计算!$J$1,出入库,"出库")+0.002 -> 0.002 | K4: =SUMIFS(数量,品名,计算!A4,部门,计算!$K$1,出入库,"出库")+0.003 -> 0.003 | L4: =SUMIFS(数量,品名,计算!A4,部门,计算!$L$1,出入库,"出库")+0.004 -> 0.004 | M4: =SUMIFS(数量,品名,计算!A4,部门,计算!$M$1,出入库,"出库")+0.005 -> 0.005 | N4: =SUMIFS(数量,品名,计算!A4,部门,计算!$N$1,出入库,"出库")+0.006 -> 25.006 | O4: =SUMIFS(数量,品名,计算!A4,部门,计算!$O$1,出入库,"出库")+0.007 -> 0.007 | P4: 25.006 | Q4: =HLOOKUP(P4,$I4:$O$62,62-ROW(R3),FALSE) -> 客服部 | Y4: 37.5004 | Z4: 3 | AA4: 1215.0002 | AB4: 支出证明 | AC4: 1650 | AD4: 1215 | AE4: 435
A5: =参数!B5 -> 燕尾夹 | B5: =SUMIFS(合计,品名,计算!A5,出入库,"采购",日期辅助,参数!$N$2) -> 75 | C5: =SUMIFS(合计,品名,计算!A5,出入库,"出库",日期辅助,参数!$N$2) -> 30 | D5: =SUMIFS(合计,品名,计算!A5,出入库,"采购")-SUMIFS(合计,品名,计算!A5,出入库,"出库") -> 45 | E5: =SUMIFS(数量,品名,计算!A5,出入库,"采购",日期辅助,参数!$N$2) -> 50 | F5: =SUMIFS(数量,品名,计算!A5,出入库,"出库",日期辅助,参数!$N$2) -> 20 | G5: =SUMIFS(数量,品名,计算!A5,出入库,"采购")-SUMIFS(数量,品名,计算!A5,出入库,"出库") -> 30 | I5: =SUMIFS(数量,品名,计算!A5,部门,计算!$I$1,出入库,"出库")+0.001 -> 0.001 | J5: =SUMIFS(数量,品名,计算!A5,部门,计算!$J$1,出入库,"出库")+0.002 -> 0.002 | K5: =SUMIFS(数量,品名,计算!A5,部门,计算!$K$1,出入库,"出库")+0.003 -> 0.003 | L5: =SUMIFS(数量,品名,计算!A5,部门,计算!$L$1,出入库,"出库")+0.004 -> 20.004 | M5: =SUMIFS(数量,品名,计算!A5,部门,计算!$M$1,出入库,"出库")+0.005 -> 0.005 | N5: =SUMIFS(数量,品名,计算!A5,部门,计算!$N$1,出入库,"出库")+0.006 -> 0.006 | O5: =SUMIFS(数量,品名,计算!A5,部门,计算!$O$1,出入库,"出库")+0.007 -> 0.007 | P5: 20.004 | Q5: =HLOOKUP(P5,$I5:$O$62,62-ROW(R4),FALSE) -> 钣喷部 | Y5: 30.0005 | Z5: 4 | AA5: 900.0051 | AB5: 9v电池 | AC5: 1200 | AD5: 900 | AE5: 300
A6: =参数!B6 -> 洗衣粉 | B6: =SUMIFS(合计,品名,计算!A6,出入库,"采购",日期辅助,参数!$N$2) -> 90 | C6: =SUMIFS(合计,品名,计算!A6,出入库,"出库",日期辅助,参数!$N$2) -> 45 | D6: =SUMIFS(合计,品名,计算!A6,出入库,"采购")-SUMIFS(合计,品名,计算!A6,出入库,"出库") -> 45 | E6: =SUMIFS(数量,品名,计算!A6,出入库,"采购",日期辅助,参数!$N$2) -> 60 | F6: =SUMIFS(数量,品名,计算!A6,出入库,"出库",日期辅助,参数!$N$2) -> 30 | G6: =SUMIFS(数量,品名,计算!A6,出入库,"采购")-SUMIFS(数量,品名,计算!A6,出入库,"出库") -> 30 | I6: =SUMIFS(数量,品名,计算!A6,部门,计算!$I$1,出入库,"出库")+0.001 -> 0.001 | J6: =SUMIFS(数量,品名,计算!A6,部门,计算!$J$1,出入库,"出库")+0.002 -> 30.002 | K6: =SUMIFS(数量,品名,计算!A6,部门,计算!$K$1,出入库,"出库")+0.003 -> 0.003 | L6: =SUMIFS(数量,品名,计算!A6,部门,计算!$L$1,出入库,"出库")+0.004 -> 0.004 | M6: =SUMIFS(数量,品名,计算!A6,部门,计算!$M$1,出入库,"出库")+0.005 -> 0.005 | N6: =SUMIFS(数量,品名,计算!A6,部门,计算!$N$1,出入库,"出库")+0.006 -> 0.006 | O6: =SUMIFS(数量,品名,计算!A6,部门,计算!$O$1,出入库,"出库")+0.007 -> 0.007 | P6: 30.002 | Q6: =HLOOKUP(P6,$I6:$O$62,62-ROW(R5),FALSE) -> 服务部 | Y6: 45.0006 | Z6: 5 | AA6: 90.0016 | AB6: 色带 | AC6: 180 | AD6: 90 | AE6: 90
A7: =参数!B7 -> 文件夹 | B7: =SUMIFS(合计,品名,计算!A7,出入库,"采购",日期辅助,参数!$N$2) -> 75 | C7: =SUMIFS(合计,品名,计算!A7,出入库,"出库",日期辅助,参数!$N$2) -> 30 | D7: =SUMIFS(合计,品名,计算!A7,出入库,"采购")-SUMIFS(合计,品名,计算!A7,出入库,"出库") -> 345 | E7: =SUMIFS(数量,品名,计算!A7,出入库,"采购",日期辅助,参数!$N$2) -> 50 | F7: =SUMIFS(数量,品名,计算!A7,出入库,"出库",日期辅助,参数!$N$2) -> 20 | G7: =SUMIFS(数量,品名,计算!A7,出入库,"采购")-SUMIFS(数量,品名,计算!A7,出入库,"出库") -> 230 | I7: =SUMIFS(数量,品名,计算!A7,部门,计算!$I$1,出入库,"出库")+0.001 -> 0.001 | J7: =SUMIFS(数量,品名,计算!A7,部门,计算!$J$1,出入库,"出库")+0.002 -> 0.002 | K7: =SUMIFS(数量,品名,计算!A7,部门,计算!$K$1,出入库,"出库")+0.003 -> 0.003 | L7: =SUMIFS(数量,品名,计算!A7,部门,计算!$L$1,出入库,"出库")+0.004 -> 0.004 | M7: =SUMIFS(数量,品名,计算!A7,部门,计算!$M$1,出入库,"出库")+0.005 -> 0.005 | N7: =SUMIFS(数量,品名,计算!A7,部门,计算!$N$1,出入库,"出库")+0.006 -> 20.006 | O7: =SUMIFS(数量,品名,计算!A7,部门,计算!$O$1,出入库,"出库")+0.007 -> 0.007 | P7: 20.006 | Q7: =HLOOKUP(P7,$I7:$O$62,62-ROW(R6),FALSE) -> 客服部 | Y7: 30.0007 | Z7: 6 | AA7: 90.001 | AB7: 条码纸 | AC7: 120 | AD7: 90 | AE7: 30
A8: =参数!B8 -> 卫生纸 | B8: =SUMIFS(合计,品名,计算!A8,出入库,"采购",日期辅助,参数!$N$2) -> 90 | C8: =SUMIFS(合计,品名,计算!A8,出入库,"出库",日期辅助,参数!$N$2) -> 60 | D8: =SUMIFS(合计,品名,计算!A8,出入库,"采购")-SUMIFS(合计,品名,计算!A8,出入库,"出库") -> 30 | E8: =SUMIFS(数量,品名,计算!A8,出入库,"采购",日期辅助,参数!$N$2) -> 60 | F8: =SUMIFS(数量,品名,计算!A8,出入库,"出库",日期辅助,参数!$N$2) -> 40 | G8: =SUMIFS(数量,品名,计算!A8,出入库,"采购")-SUMIFS(数量,品名,计算!A8,出入库,"出库") -> 20 | I8: =SUMIFS(数量,品名,计算!A8,部门,计算!$I$1,出入库,"出库")+0.001 -> 0.001 | J8: =SUMIFS(数量,品名,计算!A8,部门,计算!$J$1,出入库,"出库")+0.002 -> 0.002 | K8: =SUMIFS(数量,品名,计算!A8,部门,计算!$K$1,出入库,"出库")+0.003 -> 40.003 | L8: =SUMIFS(数量,品名,计算!A8,部门,计算!$L$1,出入库,"出库")+0.004 -> 0.004 | M8: =SUMIFS(数量,品名,计算!A8,部门,计算!$M$1,出入库,"出库")+0.005 -> 0.005 | N8: =SUMIFS(数量,品名,计算!A8,部门,计算!$N$1,出入库,"出库")+0.006 -> 0.006 | O8: =SUMIFS(数量,品名,计算!A8,部门,计算!$O$1,出入库,"出库")+0.007 -> 0.007 | P8: 40.003 | Q8: =HLOOKUP(P8,$I8:$O$62,62-ROW(R7),FALSE) -> 机修车间 | Y8: 60.0008 | Z8: 7 | AA8: 60.0008 | AB8: 卫生纸 | AC8: 90 | AD8: 60 | AE8: 30
A9: =参数!B9 -> 笤帚 | B9: =SUMIFS(合计,品名,计算!A9,出入库,"采购",日期辅助,参数!$N$2) -> 4530 | C9: =SUMIFS(合计,品名,计算!A9,出入库,"出库",日期辅助,参数!$N$2) -> 1515 | D9: =SUMIFS(合计,品名,计算!A9,出入库,"采购")-SUMIFS(合计,品名,计算!A9,出入库,"出库") -> 3015 | E9: =SUMIFS(数量,品名,计算!A9,出入库,"采购",日期辅助,参数!$N$2) -> 3020 | F9: =SUMIFS(数量,品名,计算!A9,出入库,"出库",日期辅助,参数!$N$2) -> 1010 | G9: =SUMIFS(数量,品名,计算!A9,出入库,"采购")-SUMIFS(数量,品名,计算!A9,出入库,"出库") -> 2010 | I9: =SUMIFS(数量,品名,计算!A9,部门,计算!$I$1,出入库,"出库")+0.001 -> 0.001 | J9: =SUMIFS(数量,品名,计算!A9,部门,计算!$J$1,出入库,"出库")+0.002 -> 0.002 | K9: =SUMIFS(数量,品名,计算!A9,部门,计算!$K$1,出入库,"出库")+0.003 -> 0.003 | L9: =SUMIFS(数量,品名,计算!A9,部门,计算!$L$1,出入库,"出库")+0.004 -> 0.004 | M9: =SUMIFS(数量,品名,计算!A9,部门,计算!$M$1,出入库,"出库")+0.005 -> 10.005 | N9: =SUMIFS(数量,品名,计算!A9,部门,计算!$N$1,出入库,"出库")+0.006 -> 0.006 | O9: =SUMIFS(数量,品名,计算!A9,部门,计算!$O$1,出入库,"出库")+0.007 -> 0.007 | P9: 10.005 | Q9: =HLOOKUP(P9,$I9:$O$62,62-ROW(R8),FALSE) -> 财务部 | Y9: 1515.0009 | Z9: 8 | AA9: 60.0003 | AB9: 圆珠笔 | AC9: 300 | AD9: 60 | AE9: 240
A10: =参数!B10 -> 条码纸 | B10: =SUMIFS(合计,品名,计算!A10,出入库,"采购",日期辅助,参数!$N$2) -> 120 | C10: =SUMIFS(合计,品名,计算!A10,出入库,"出库",日期辅助,参数!$N$2) -> 90 | D10: =SUMIFS(合计,品名,计算!A10,出入库,"采购")-SUMIFS(合计,品名,计算!A10,出入库,"出库") -> 30 | E10: =SUMIFS(数量,品名,计算!A10,出入库,"采购",日期辅助,参数!$N$2) -> 200 | F10: =SUMIFS(数量,品名,计算!A10,出入库,"出库",日期辅助,参数!$N$2) -> 150 | G10: =SUMIFS(数量,品名,计算!A10,出入库,"采购")-SUMIFS(数量,品名,计算!A10,出入库,"出库") -> 50 | I10: =SUMIFS(数量,品名,计算!A10,部门,计算!$I$1,出入库,"出库")+0.001 -> 0.001 | J10: =SUMIFS(数量,品名,计算!A10,部门,计算!$J$1,出入库,"出库")+0.002 -> 0.002 | K10: =SUMIFS(数量,品名,计算!A10,部门,计算!$K$1,出入库,"出库")+0.003 -> 150.003 | L10: =SUMIFS(数量,品名,计算!A10,部门,计算!$L$1,出入库,"出库")+0.004 -> 0.004 | M10: =SUMIFS(数量,品名,计算!A10,部门,计算!$M$1,出入库,"出库")+0.005 -> 0.005 | N10: =SUMIFS(数量,品名,计算!A10,部门,计算!$N$1,出入库,"出库")+0.006 -> 0.006 | O10: =SUMIFS(数量,品名,计算!A10,部门,计算!$O$1,出入库,"出库")+0.007 -> 0.007 | P10: 150.003 | Q10: =HLOOKUP(P10,$I10:$O$62,62-ROW(R9),FALSE) -> 机修车间 | Y10: 90.001 | Z10: 9 | AA10: 58.802 | AB10: 拉链袋 | AC10: 60 | AD10: 58.8 | AE10: 1.2
A11: =参数!B11 -> 糖 | B11: =SUMIFS(合计,品名,计算!A11,出入库,"采购",日期辅助,参数!$N$2) -> 36 | C11: =SUMIFS(合计,品名,计算!A11,出入库,"出库",日期辅助,参数!$N$2) -> 18 | D11: =SUMIFS(合计,品名,计算!A11,出入库,"采购")-SUMIFS(合计,品名,计算!A11,出入库,"出库") -> 18 | E11: =SUMIFS(数量,品名,计算!A11,出入库,"采购",日期辅助,参数!$N$2) -> 60 | F11: =SUMIFS(数量,品名,计算!A11,出入库,"出库",日期辅助,参数!$N$2) -> 30 | G11: =SUMIFS(数量,品名,计算!A11,出入库,"采购")-SUMIFS(数量,品名,计算!A11,出入库,"出库") -> 30 | I11: =SUMIFS(数量,品名,计算!A11,部门,计算!$I$1,出入库,"出库")+0.001 -> 0.001 | J11: =SUMIFS(数量,品名,计算!A11,部门,计算!$J$1,出入库,"出库")+0.002 -> 30.002 | K11: =SUMIFS(数量,品名,计算!A11,部门,计算!$K$1,出入库,"出库")+0.003 -> 0.003 | L11: =SUMIFS(数量,品名,计算!A11,部门,计算!$L$1,出入库,"出库")+0.004 -> 0.004 | M11: =SUMIFS(数量,品名,计算!A11,部门,计算!$M$1,出入库,"出库")+0.005 -> 0.005 | N11: =SUMIFS(数量,品名,计算!A11,部门,计算!$N$1,出入库,"出库")+0.006 -> 0.006 | O11: =SUMIFS(数量,品名,计算!A11,部门,计算!$O$1,出入库,"出库")+0.007 -> 0.007 | P11: 30.002 | Q11: =HLOOKUP(P11,$I11:$O$62,62-ROW(R10),FALSE) -> 服务部 | Y11: 18.0011 | Z11: 10 | AA11: 45.0006 | AB11: 洗衣粉 | AC11: 90 | AD11: 45 | AE11: 45
A12: =参数!B12 -> 碳带 | B12: =SUMIFS(合计,品名,计算!A12,出入库,"采购",日期辅助,参数!$N$2) -> 60 | C12: =SUMIFS(合计,品名,计算!A12,出入库,"出库",日期辅助,参数!$N$2) -> 15 | D12: =SUMIFS(合计,品名,计算!A12,出入库,"采购")-SUMIFS(合计,品名,计算!A12,出入库,"出库") -> 45 | E12: =SUMIFS(数量,品名,计算!A12,出入库,"采购",日期辅助,参数!$N$2) -> 100 | F12: =SUMIFS(数量,品名,计算!A12,出入库,"出库",日期辅助,参数!$N$2) -> 25 | G12: =SUMIFS(数量,品名,计算!A12,出入库,"采购")-SUMIFS(数量,品名,计算!A12,出入库,"出库") -> 75 | I12: =SUMIFS(数量,品名,计算!A12,部门,计算!$I$1,出入库,"出库")+0.001 -> 0.001 | J12: =SUMIFS(数量,品名,计算!A12,部门,计算!$J$1,出入库,"出库")+0.002 -> 0.002 | K12: =SUMIFS(数量,品名,计算!A12,部门,计算!$K$1,出入库,"出库")+0.003 -> 0.003 | L12: =SUMIFS(数量,品名,计算!A12,部门,计算!$L$1,出入库,"出库")+0.004 -> 0.004 | M12: =SUMIFS(数量,品名,计算!A12,部门,计算!$M$1,出入库,"出库")+0.005 -> 0.005 | N12: =SUMIFS(数量,品名,计算!A12,部门,计算!$N$1,出入库,"出库")+0.006 -> 25.006 | O12: =SUMIFS(数量,品名,计算!A12,部门,计算!$O$1,出入库,"出库")+0.007 -> 0.007 | P12: 25.006 | Q12: =HLOOKUP(P12,$I12:$O$62,62-ROW(R11),FALSE) -> 客服部 | Y12: 15.0012 | Z12: 11 | AA12: 37.5004 | AB12: 印油 | AC12: 90 | AD12: 37.5 | AE12: 52.5
A13: =参数!B13 -> 手套 | B13: =SUMIFS(合计,品名,计算!A13,出入库,"采购",日期辅助,参数!$N$2) -> 30 | C13: =SUMIFS(合计,品名,计算!A13,出入库,"出库",日期辅助,参数!$N$2) -> 12.6 | D13: =SUMIFS(合计,品名,计算!A13,出入库,"采购")-SUMIFS(合计,品名,计算!A13,出入库,"出库") -> 17.4 | E13: =SUMIFS(数量,品名,计算!A13,出入库,"采购",日期辅助,参数!$N$2) -> 50 | F13: =SUMIFS(数量,品名,计算!A13,出入库,"出库",日期辅助,参数!$N$2) -> 21 | G13: =SUMIFS(数量,品名,计算!A13,出入库,"采购")-SUMIFS(数量,品名,计算!A13,出入库,"出库") -> 29 | I13: =SUMIFS(数量,品名,计算!A13,部门,计算!$I$1,出入库,"出库")+0.001 -> 0.001 | J13: =SUMIFS(数量,品名,计算!A13,部门,计算!$J$1,出入库,"出库")+0.002 -> 0.002 | K13: =SUMIFS(数量,品名,计算!A13,部门,计算!$K$1,出入库,"出库")+0.003 -> 21.003 | L13: =SUMIFS(数量,品名,计算!A13,部门,计算!$L$1,出入库,"出库")+0.004 -> 0.004 | M13: =SUMIFS(数量,品名,计算!A13,部门,计算!$M$1,出入库,"出库")+0.005 -> 0.005 | N13: =SUMIFS(数量,品名,计算!A13,部门,计算!$N$1,出入库,"出库")+0.006 -> 0.006 | O13: =SUMIFS(数量,品名,计算!A13,部门,计算!$O$1,出入库,"出库")+0.007 -> 0.007 | P13: 21.003 | Q13: =HLOOKUP(P13,$I13:$O$62,62-ROW(R12),FALSE) -> 机修车间 | Y13: 12.6013 | Z13: 12 | AA13: 30.0026 | AB13: 记号笔 | AC13: 36 | AD13: 30 | AE13: 6
A14: =参数!B14 -> 收银纸 | B14: =SUMIFS(合计,品名,计算!A14,出入库,"采购",日期辅助,参数!$N$2) -> 36 | C14: =SUMIFS(合计,品名,计算!A14,出入库,"出库",日期辅助,参数!$N$2) -> 16.8 | D14: =SUMIFS(合计,品名,计算!A14,出入库,"采购")-SUMIFS(合计,品名,计算!A14,出入库,"出库") -> 19.2 | E14: =SUMIFS(数量,品名,计算!A14,出入库,"采购",日期辅助,参数!$N$2) -> 60 | F14: =SUMIFS(数量,品名,计算!A14,出入库,"出库",日期辅助,参数!$N$2) -> 28 | G14: =SUMIFS(数量,品名,计算!A14,出入库,"采购")-SUMIFS(数量,品名,计算!A14,出入库,"出库") -> 32 | I14: =SUMIFS(数量,品名,计算!A14,部门,计算!$I$1,出入库,"出库")+0.001 -> 0.001 | J14: =SUMIFS(数量,品名,计算!A14,部门,计算!$J$1,出入库,"出库")+0.002 -> 0.002 | K14: =SUMIFS(数量,品名,计算!A14,部门,计算!$K$1,出入库,"出库")+0.003 -> 0.003 | L14: =SUMIFS(数量,品名,计算!A14,部门,计算!$L$1,出入库,"出库")+0.004 -> 0.004 | M14: =SUMIFS(数量,品名,计算!A14,部门,计算!$M$1,出入库,"出库")+0.005 -> 28.005 | N14: =SUMIFS(数量,品名,计算!A14,部门,计算!$N$1,出入库,"出库")+0.006 -> 0.006 | O14: =SUMIFS(数量,品名,计算!A14,部门,计算!$O$1,出入库,"出库")+0.007 -> 0.007 | P14: 28.005 | Q14: =HLOOKUP(P14,$I14:$O$62,62-ROW(R13),FALSE) -> 财务部 | Y14: 16.8014 | Z14: 13 | AA14: 30.0007 | AB14: 文件夹 | AC14: 75 | AD14: 30 | AE14: 45
A15: =参数!B15 -> 收据 | B15: =SUMIFS(合计,品名,计算!A15,出入库,"采购",日期辅助,参数!$N$2) -> 36 | C15: =SUMIFS(合计,品名,计算!A15,出入库,"出库",日期辅助,参数!$N$2) -> 15.6 | D15: =SUMIFS(合计,品名,计算!A15,出入库,"采购")-SUMIFS(合计,品名,计算!A15,出入库,"出库") -> 20.4 | E15: =SUMIFS(数量,品名,计算!A15,出入库,"采购",日期辅助,参数!$N$2) -> 60 | F15: =SUMIFS(数量,品名,计算!A15,出入库,"出库",日期辅助,参数!$N$2) -> 26 | G15: =SUMIFS(数量,品名,计算!A15,出入库,"采购")-SUMIFS(数量,品名,计算!A15,出入库,"出库") -> 34 | I15: =SUMIFS(数量,品名,计算!A15,部门,计算!$I$1,出入库,"出库")+0.001 -> 0.001 | J15: =SUMIFS(数量,品名,计算!A15,部门,计算!$J$1,出入库,"出库")+0.002 -> 0.002 | K15: =SUMIFS(数量,品名,计算!A15,部门,计算!$K$1,出入库,"出库")+0.003 -> 0.003 | L15: =SUMIFS(数量,品名,计算!A15,部门,计算!$L$1,出入库,"出库")+0.004 -> 0.004 | M15: =SUMIFS(数量,品名,计算!A15,部门,计算!$M$1,出入库,"出库")+0.005 -> 26.005 | N15: =SUMIFS(数量,品名,计算!A15,部门,计算!$N$1,出入库,"出库")+0.006 -> 0.006 | O15: =SUMIFS(数量,品名,计算!A15,部门,计算!$O$1,出入库,"出库")+0.007 -> 0.007 | P15: 26.005 | Q15: =HLOOKUP(P15,$I15:$O$62,62-ROW(R14),FALSE) -> 财务部 | Y15: 15.6015 | Z15: 14 | AA15: 30.0005 | AB15: 燕尾夹 | AC15: 75 | AD15: 30 | AE15: 45
A16: =参数!B16 -> 色带 | B16: =SUMIFS(合计,品名,计算!A16,出入库,"采购",日期辅助,参数!$N$2) -> 180 | C16: =SUMIFS(合计,品名,计算!A16,出入库,"出库",日期辅助,参数!$N$2) -> 90 | D16: =SUMIFS(合计,品名,计算!A16,出入库,"采购")-SUMIFS(合计,品名,计算!A16,出入库,"出库") -> 90 | E16: =SUMIFS(数量,品名,计算!A16,出入库,"采购",日期辅助,参数!$N$2) -> 300 | F16: =SUMIFS(数量,品名,计算!A16,出入库,"出库",日期辅助,参数!$N$2) -> 150 | G16: =SUMIFS(数量,品名,计算!A16,出入库,"采购")-SUMIFS(数量,品名,计算!A16,出入库,"出库") -> 150 | I16: =SUMIFS(数量,品名,计算!A16,部门,计算!$I$1,出入库,"出库")+0.001 -> 0.001 | J16: =SUMIFS(数量,品名,计算!A16,部门,计算!$J$1,出入库,"出库")+0.002 -> 0.002 | K16: =SUMIFS(数量,品名,计算!A16,部门,计算!$K$1,出入库,"出库")+0.003 -> 0.003 | L16: =SUMIFS(数量,品名,计算!A16,部门,计算!$L$1,出入库,"出库")+0.004 -> 150.004 | M16: =SUMIFS(数量,品名,计算!A16,部门,计算!$M$1,出入库,"出库")+0.005 -> 0.005 | N16: =SUMIFS(数量,品名,计算!A16,部门,计算!$N$1,出入库,"出库")+0.006 -> 0.006 | O16: =SUMIFS(数量,品名,计算!A16,部门,计算!$O$1,出入库,"出库")+0.007 -> 0.007 | P16: 150.004 | Q16: =HLOOKUP(P16,$I16:$O$62,62-ROW(R15),FALSE) -> 钣喷部 | Y16: 90.0016 | Z16: 15 | AA16: 18.0021 | AB16: 垃圾袋 | AC16: 36 | AD16: 18 | AE16: 18
A17: =参数!B17 -> 曲别针 | B17: =SUMIFS(合计,品名,计算!A17,出入库,"采购",日期辅助,参数!$N$2) -> 30 | C17: =SUMIFS(合计,品名,计算!A17,出入库,"出库",日期辅助,参数!$N$2) -> 18 | D17: =SUMIFS(合计,品名,计算!A17,出入库,"采购")-SUMIFS(合计,品名,计算!A17,出入库,"出库") -> 12 | E17: =SUMIFS(数量,品名,计算!A17,出入库,"采购",日期辅助,参数!$N$2) -> 50 | F17: =SUMIFS(数量,品名,计算!A17,出入库,"出库",日期辅助,参数!$N$2) -> 30 | G17: =SUMIFS(数量,品名,计算!A17,出入库,"采购")-SUMIFS(数量,品名,计算!A17,出入库,"出库") -> 20 | I17: =SUMIFS(数量,品名,计算!A17,部门,计算!$I$1,出入库,"出库")+0.001 -> 0.001 | J17: =SUMIFS(数量,品名,计算!A17,部门,计算!$J$1,出入库,"出库")+0.002 -> 0.002 | K17: =SUMIFS(数量,品名,计算!A17,部门,计算!$K$1,出入库,"出库")+0.003 -> 0.003 | L17: =SUMIFS(数量,品名,计算!A17,部门,计算!$L$1,出入库,"出库")+0.004 -> 0.004 | M17: =SUMIFS(数量,品名,计算!A17,部门,计算!$M$1,出入库,"出库")+0.005 -> 30.005 | N17: =SUMIFS(数量,品名,计算!A17,部门,计算!$N$1,出入库,"出库")+0.006 -> 0.006 | O17: =SUMIFS(数量,品名,计算!A17,部门,计算!$O$1,出入库,"出库")+0.007 -> 0.007 | P17: 30.005 | Q17: =HLOOKUP(P17,$I17:$O$62,62-ROW(R16),FALSE) -> 财务部 | Y17: 18.0017 | Z17: 16 | AA17: 18.0017 | AB17: 曲别针 | AC17: 30 | AD17: 18 | AE17: 12
A18: =参数!B18 -> 皮筋 | B18: =SUMIFS(合计,品名,计算!A18,出入库,"采购",日期辅助,参数!$N$2) -> 34.8 | C18: =SUMIFS(合计,品名,计算!A18,出入库,"出库",日期辅助,参数!$N$2) -> 16.8 | D18: =SUMIFS(合计,品名,计算!A18,出入库,"采购")-SUMIFS(合计,品名,计算!A18,出入库,"出库") -> 18 | E18: =SUMIFS(数量,品名,计算!A18,出入库,"采购",日期辅助,参数!$N$2) -> 58 | F18: =SUMIFS(数量,品名,计算!A18,出入库,"出库",日期辅助,参数!$N$2) -> 28 | G18: =SUMIFS(数量,品名,计算!A18,出入库,"采购")-SUMIFS(数量,品名,计算!A18,出入库,"出库") -> 30 | I18: =SUMIFS(数量,品名,计算!A18,部门,计算!$I$1,出入库,"出库")+0.001 -> 0.001 | J18: =SUMIFS(数量,品名,计算!A18,部门,计算!$J$1,出入库,"出库")+0.002 -> 0.002 | K18: =SUMIFS(数量,品名,计算!A18,部门,计算!$K$1,出入库,"出库")+0.003 -> 0.003 | L18: =SUMIFS(数量,品名,计算!A18,部门,计算!$L$1,出入库,"出库")+0.004 -> 0.004 | M18: =SUMIFS(数量,品名,计算!A18,部门,计算!$M$1,出入库,"出库")+0.005 -> 28.005 | N18: =SUMIFS(数量,品名,计算!A18,部门,计算!$N$1,出入库,"出库")+0.006 -> 0.006 | O18: =SUMIFS(数量,品名,计算!A18,部门,计算!$O$1,出入库,"出库")+0.007 -> 0.007 | P18: 28.005 | Q18: =HLOOKUP(P18,$I18:$O$62,62-ROW(R17),FALSE) -> 财务部 | Y18: 16.8018 | Z18: 17 | AA18: 18.0011 | AB18: 糖 | AC18: 36 | AD18: 18 | AE18: 18
A19: =参数!B19 -> 墨水 | B19: =SUMIFS(合计,品名,计算!A19,出入库,"采购",日期辅助,参数!$N$2) -> 3 | C19: =SUMIFS(合计,品名,计算!A19,出入库,"出库",日期辅助,参数!$N$2) -> 1.2 | D19: =SUMIFS(合计,品名,计算!A19,出入库,"采购")-SUMIFS(合计,品名,计算!A19,出入库,"出库") -> 1.8 | E19: =SUMIFS(数量,品名,计算!A19,出入库,"采购",日期辅助,参数!$N$2) -> 5 | F19: =SUMIFS(数量,品名,计算!A19,出入库,"出库",日期辅助,参数!$N$2) -> 2 | G19: =SUMIFS(数量,品名,计算!A19,出入库,"采购")-SUMIFS(数量,品名,计算!A19,出入库,"出库") -> 3 | I19: =SUMIFS(数量,品名,计算!A19,部门,计算!$I$1,出入库,"出库")+0.001 -> 0.001 | J19: =SUMIFS(数量,品名,计算!A19,部门,计算!$J$1,出入库,"出库")+0.002 -> 2.002 | K19: =SUMIFS(数量,品名,计算!A19,部门,计算!$K$1,出入库,"出库")+0.003 -> 0.003 | L19: =SUMIFS(数量,品名,计算!A19,部门,计算!$L$1,出入库,"出库")+0.004 -> 0.004 | M19: =SUMIFS(数量,品名,计算!A19,部门,计算!$M$1,出入库,"出库")+0.005 -> 0.005 | N19: =SUMIFS(数量,品名,计算!A19,部门,计算!$N$1,出入库,"出库")+0.006 -> 0.006 | O19: =SUMIFS(数量,品名,计算!A19,部门,计算!$O$1,出入库,"出库")+0.007 -> 0.007 | P19: 2.002 | Q19: =HLOOKUP(P19,$I19:$O$62,62-ROW(R18),FALSE) -> 服务部 | Y19: 1.2019 | Z19: 18 | AA19: 17.4028 | AB19: 黑档案盒 | AC19: 18 | AD19: 17.4 | AE19: 0.6
A20: =参数!B20 -> 拉链袋 | B20: =SUMIFS(合计,品名,计算!A20,出入库,"采购",日期辅助,参数!$N$2) -> 60 | C20: =SUMIFS(合计,品名,计算!A20,出入库,"出库",日期辅助,参数!$N$2) -> 58.8 | D20: =SUMIFS(合计,品名,计算!A20,出入库,"采购")-SUMIFS(合计,品名,计算!A20,出入库,"出库") -> 121.2 | E20: =SUMIFS(数量,品名,计算!A20,出入库,"采购",日期辅助,参数!$N$2) -> 100 | F20: =SUMIFS(数量,品名,计算!A20,出入库,"出库",日期辅助,参数!$N$2) -> 98 | G20: =SUMIFS(数量,品名,计算!A20,出入库,"采购")-SUMIFS(数量,品名,计算!A20,出入库,"出库") -> 202 | I20: =SUMIFS(数量,品名,计算!A20,部门,计算!$I$1,出入库,"出库")+0.001 -> 0.001 | J20: =SUMIFS(数量,品名,计算!A20,部门,计算!$J$1,出入库,"出库")+0.002 -> 0.002 | K20: =SUMIFS(数量,品名,计算!A20,部门,计算!$K$1,出入库,"出库")+0.003 -> 98.003 | L20: =SUMIFS(数量,品名,计算!A20,部门,计算!$L$1,出入库,"出库")+0.004 -> 0.004 | M20: =SUMIFS(数量,品名,计算!A20,部门,计算!$M$1,出入库,"出库")+0.005 -> 0.005 | N20: =SUMIFS(数量,品名,计算!A20,部门,计算!$N$1,出入库,"出库")+0.006 -> 0.006 | O20: =SUMIFS(数量,品名,计算!A20,部门,计算!$O$1,出入库,"出库")+0.007 -> 0.007 | P20: 98.003 | Q20: =HLOOKUP(P20,$I20:$O$62,62-ROW(R19),FALSE) -> 机修车间 | Y20: 58.802 | Z20: 19 | AA20: 16.8025 | AB20: 胶棒 | AC20: 48 | AD20: 16.8 | AE20: 31.2
A21: =参数!B21 -> 垃圾袋 | B21: =SUMIFS(合计,品名,计算!A21,出入库,"采购",日期辅助,参数!$N$2) -> 36 | C21: =SUMIFS(合计,品名,计算!A21,出入库,"出库",日期辅助,参数!$N$2) -> 18 | D21: =SUMIFS(合计,品名,计算!A21,出入库,"采购")-SUMIFS(合计,品名,计算!A21,出入库,"出库") -> 18 | E21: =SUMIFS(数量,品名,计算!A21,出入库,"采购",日期辅助,参数!$N$2) -> 60 | F21: =SUMIFS(数量,品名,计算!A21,出入库,"出库",日期辅助,参数!$N$2) -> 30 | G21: =SUMIFS(数量,品名,计算!A21,出入库,"采购")-SUMIFS(数量,品名,计算!A21,出入库,"出库") -> 30 | I21: =SUMIFS(数量,品名,计算!A21,部门,计算!$I$1,出入库,"出库")+0.001 -> 0.001 | J21: =SUMIFS(数量,品名,计算!A21,部门,计算!$J$1,出入库,"出库")+0.002 -> 0.002 | K21: =SUMIFS(数量,品名,计算!A21,部门,计算!$K$1,出入库,"出库")+0.003 -> 0.003 | L21: =SUMIFS(数量,品名,计算!A21,部门,计算!$L$1,出入库,"出库")+0.004 -> 0.004 | M21: =SUMIFS(数量,品名,计算!A21,部门,计算!$M$1,出入库,"出库")+0.005 -> 0.005 | N21: =SUMIFS(数量,品名,计算!A21,部门,计算!$N$1,出入库,"出库")+0.006 -> 0.006 | O21: =SUMIFS(数量,品名,计算!A21,部门,计算!$O$1,出入库,"出库")+0.007 -> 0.007 | P21: 0.007 | Q21: =HLOOKUP(P21,$I21:$O$62,62-ROW(R20),FALSE) -> 其他 | Y21: 18.0021 | Z21: 20 | AA21: 16.8018 | AB21: 皮筋 | AC21: 34.8 | AD21: 16.8 | AE21: 18
A22: =参数!B22 -> 借支单 | B22: =SUMIFS(合计,品名,计算!A22,出入库,"采购",日期辅助,参数!$N$2) -> 18 | C22: =SUMIFS(合计,品名,计算!A22,出入库,"出库",日期辅助,参数!$N$2) -> 13.2 | D22: =SUMIFS(合计,品名,计算!A22,出入库,"采购")-SUMIFS(合计,品名,计算!A22,出入库,"出库") -> 4.8 | E22: =SUMIFS(数量,品名,计算!A22,出入库,"采购",日期辅助,参数!$N$2) -> 30 | F22: =SUMIFS(数量,品名,计算!A22,出入库,"出库",日期辅助,参数!$N$2) -> 22 | G22: =SUMIFS(数量,品名,计算!A22,出入库,"采购")-SUMIFS(数量,品名,计算!A22,出入库,"出库") -> 8 | I22: =SUMIFS(数量,品名,计算!A22,部门,计算!$I$1,出入库,"出库")+0.001 -> 0.001 | J22: =SUMIFS(数量,品名,计算!A22,部门,计算!$J$1,出入库,"出库")+0.002 -> 0.002 | K22: =SUMIFS(数量,品名,计算!A22,部门,计算!$K$1,出入库,"出库")+0.003 -> 0.003 | L22: =SUMIFS(数量,品名,计算!A22,部门,计算!$L$1,出入库,"出库")+0.004 -> 0.004 | M22: =SUMIFS(数量,品名,计算!A22,部门,计算!$M$1,出入库,"出库")+0.005 -> 22.005 | N22: =SUMIFS(数量,品名,计算!A22,部门,计算!$N$1,出入库,"出库")+0.006 -> 0.006 | O22: =SUMIFS(数量,品名,计算!A22,部门,计算!$O$1,出入库,"出库")+0.007 -> 0.007 | P22: 22.005 | Q22: =HLOOKUP(P22,$I22:$O$62,62-ROW(R21),FALSE) -> 财务部 | Y22: 13.2022 | Z22: 21 | AA22: 16.8014 | AB22: 收银纸 | AC22: 36 | AD22: 16.8 | AE22: 19.2
A23: =参数!B23 -> 胶水 | B23: =SUMIFS(合计,品名,计算!A23,出入库,"采购",日期辅助,参数!$N$2) -> 18 | C23: =SUMIFS(合计,品名,计算!A23,出入库,"出库",日期辅助,参数!$N$2) -> 6 | D23: =SUMIFS(合计,品名,计算!A23,出入库,"采购")-SUMIFS(合计,品名,计算!A23,出入库,"出库") -> 12 | E23: =SUMIFS(数量,品名,计算!A23,出入库,"采购",日期辅助,参数!$N$2) -> 30 | F23: =SUMIFS(数量,品名,计算!A23,出入库,"出库",日期辅助,参数!$N$2) -> 10 | G23: =SUMIFS(数量,品名,计算!A23,出入库,"采购")-SUMIFS(数量,品名,计算!A23,出入库,"出库") -> 20 | I23: =SUMIFS(数量,品名,计算!A23,部门,计算!$I$1,出入库,"出库")+0.001 -> 0.001 | J23: =SUMIFS(数量,品名,计算!A23,部门,计算!$J$1,出入库,"出库")+0.002 -> 0.002 | K23: =SUMIFS(数量,品名,计算!A23,部门,计算!$K$1,出入库,"出库")+0.003 -> 0.003 | L23: =SUMIFS(数量,品名,计算!A23,部门,计算!$L$1,出入库,"出库")+0.004 -> 0.004 | M23: =SUMIFS(数量,品名,计算!A23,部门,计算!$M$1,出入库,"出库")+0.005 -> 10.005 | N23: =SUMIFS(数量,品名,计算!A23,部门,计算!$N$1,出入库,"出库")+0.006 -> 0.006 | O23: =SUMIFS(数量,品名,计算!A23,部门,计算!$O$1,出入库,"出库")+0.007 -> 0.007 | P23: 10.005 | Q23: =HLOOKUP(P23,$I23:$O$62,62-ROW(R22),FALSE) -> 财务部 | Y23: 6.0023 | Z23: 22 | AA23: 15.6015 | AB23: 收据 | AC23: 36 | AD23: 15.6 | AE23: 20.4
A24: =参数!B24 -> 胶带 | B24: =SUMIFS(合计,品名,计算!A24,出入库,"采购",日期辅助,参数!$N$2) -> 12 | C24: =SUMIFS(合计,品名,计算!A24,出入库,"出库",日期辅助,参数!$N$2) -> 3.6 | D24: =SUMIFS(合计,品名,计算!A24,出入库,"采购")-SUMIFS(合计,品名,计算!A24,出入库,"出库") -> 8.4 | E24: =SUMIFS(数量,品名,计算!A24,出入库,"采购",日期辅助,参数!$N$2) -> 20 | F24: =SUMIFS(数量,品名,计算!A24,出入库,"出库",日期辅助,参数!$N$2) -> 6 | G24: =SUMIFS(数量,品名,计算!A24,出入库,"采购")-SUMIFS(数量,品名,计算!A24,出入库,"出库") -> 14 | I24: =SUMIFS(数量,品名,计算!A24,部门,计算!$I$1,出入库,"出库")+0.001 -> 0.001 | J24: =SUMIFS(数量,品名,计算!A24,部门,计算!$J$1,出入库,"出库")+0.002 -> 0.002 | K24: =SUMIFS(数量,品名,计算!A24,部门,计算!$K$1,出入库,"出库")+0.003 -> 0.003 | L24: =SUMIFS(数量,品名,计算!A24,部门,计算!$L$1,出入库,"出库")+0.004 -> 0.004 | M24: =SUMIFS(数量,品名,计算!A24,部门,计算!$M$1,出入库,"出库")+0.005 -> 0.005 | N24: =SUMIFS(数量,品名,计算!A24,部门,计算!$N$1,出入库,"出库")+0.006 -> 0.006 | O24: =SUMIFS(数量,品名,计算!A24,部门,计算!$O$1,出入库,"出库")+0.007 -> 0.007 | P24: 0.007 | Q24: =HLOOKUP(P24,$I24:$O$62,62-ROW(R23),FALSE) -> 其他 | Y24: 3.6024 | Z24: 23 | AA24: 15.0012 | AB24: 碳带 | AC24: 60 | AD24: 15 | AE24: 45
A25: =参数!B25 -> 胶棒 | B25: =SUMIFS(合计,品名,计算!A25,出入库,"采购",日期辅助,参数!$N$2) -> 48 | C25: =SUMIFS(合计,品名,计算!A25,出入库,"出库",日期辅助,参数!$N$2) -> 16.8 | D25: =SUMIFS(合计,品名,计算!A25,出入库,"采购")-SUMIFS(合计,品名,计算!A25,出入库,"出库") -> 511.2 | E25: =SUMIFS(数量,品名,计算!A25,出入库,"采购",日期辅助,参数!$N$2) -> 80 | F25: =SUMIFS(数量,品名,计算!A25,出入库,"出库",日期辅助,参数!$N$2) -> 28 | G25: =SUMIFS(数量,品名,计算!A25,出入库,"采购")-SUMIFS(数量,品名,计算!A25,出入库,"出库") -> 852 | I25: =SUMIFS(数量,品名,计算!A25,部门,计算!$I$1,出入库,"出库")+0.001 -> 0.001 | J25: =SUMIFS(数量,品名,计算!A25,部门,计算!$J$1,出入库,"出库")+0.002 -> 0.002 | K25: =SUMIFS(数量,品名,计算!A25,部门,计算!$K$1,出入库,"出库")+0.003 -> 0.003 | L25: =SUMIFS(数量,品名,计算!A25,部门,计算!$L$1,出入库,"出库")+0.004 -> 0.004 | M25: =SUMIFS(数量,品名,计算!A25,部门,计算!$M$1,出入库,"出库")+0.005 -> 0.005 | N25: =SUMIFS(数量,品名,计算!A25,部门,计算!$N$1,出入库,"出库")+0.006 -> 0.006 | O25: =SUMIFS(数量,品名,计算!A25,部门,计算!$O$1,出入库,"出库")+0.007 -> 0.007 | P25: 0.007 | Q25: =HLOOKUP(P25,$I25:$O$62,62-ROW(R24),FALSE) -> 其他 | Y25: 16.8025 | Z25: 24 | AA25: 13.2022 | AB25: 借支单 | AC25: 18 | AD25: 13.2 | AE25: 4.8
A26: =参数!B26 -> 记号笔 | B26: =SUMIFS(合计,品名,计算!A26,出入库,"采购",日期辅助,参数!$N$2) -> 36 | C26: =SUMIFS(合计,品名,计算!A26,出入库,"出库",日期辅助,参数!$N$2) -> 30 | D26: =SUMIFS(合计,品名,计算!A26,出入库,"采购")-SUMIFS(合计,品名,计算!A26,出入库,"出库") -> 6 | E26: =SUMIFS(数量,品名,计算!A26,出入库,"采购",日期辅助,参数!$N$2) -> 60 | F26: =SUMIFS(数量,品名,计算!A26,出入库,"出库",日期辅助,参数!$N$2) -> 50 | G26: =SUMIFS(数量,品名,计算!A26,出入库,"采购")-SUMIFS(数量,品名,计算!A26,出入库,"出库") -> 10 | I26: =SUMIFS(数量,品名,计算!A26,部门,计算!$I$1,出入库,"出库")+0.001 -> 0.001 | J26: =SUMIFS(数量,品名,计算!A26,部门,计算!$J$1,出入库,"出库")+0.002 -> 50.002 | K26: =SUMIFS(数量,品名,计算!A26,部门,计算!$K$1,出入库,"出库")+0.003 -> 0.003 | L26: =SUMIFS(数量,品名,计算!A26,部门,计算!$L$1,出入库,"出库")+0.004 -> 0.004 | M26: =SUMIFS(数量,品名,计算!A26,部门,计算!$M$1,出入库,"出库")+0.005 -> 0.005 | N26: =SUMIFS(数量,品名,计算!A26,部门,计算!$N$1,出入库,"出库")+0.006 -> 0.006 | O26: =SUMIFS(数量,品名,计算!A26,部门,计算!$O$1,出入库,"出库")+0.007 -> 0.007 | P26: 50.002 | Q26: =HLOOKUP(P26,$I26:$O$62,62-ROW(R25),FALSE) -> 服务部 | Y26: 30.0026 | Z26: 25 | AA26: 12.6013 | AB26: 手套 | AC26: 30 | AD26: 12.6 | AE26: 17.4
A27: =参数!B27 -> 计算器 | B27: =SUMIFS(合计,品名,计算!A27,出入库,"采购",日期辅助,参数!$N$2) -> 3 | C27: =SUMIFS(合计,品名,计算!A27,出入库,"出库",日期辅助,参数!$N$2) -> 1.2 | D27: =SUMIFS(合计,品名,计算!A27,出入库,"采购")-SUMIFS(合计,品名,计算!A27,出入库,"出库") -> 1.8 | E27: =SUMIFS(数量,品名,计算!A27,出入库,"采购",日期辅助,参数!$N$2) -> 5 | F27: =SUMIFS(数量,品名,计算!A27,出入库,"出库",日期辅助,参数!$N$2) -> 2 | G27: =SUMIFS(数量,品名,计算!A27,出入库,"采购")-SUMIFS(数量,品名,计算!A27,出入库,"出库") -> 3 | I27: =SUMIFS(数量,品名,计算!A27,部门,计算!$I$1,出入库,"出库")+0.001 -> 0.001 | J27: =SUMIFS(数量,品名,计算!A27,部门,计算!$J$1,出入库,"出库")+0.002 -> 0.002 | K27: =SUMIFS(数量,品名,计算!A27,部门,计算!$K$1,出入库,"出库")+0.003 -> 0.003 | L27: =SUMIFS(数量,品名,计算!A27,部门,计算!$L$1,出入库,"出库")+0.004 -> 0.004 | M27: =SUMIFS(数量,品名,计算!A27,部门,计算!$M$1,出入库,"出库")+0.005 -> 0.005 | N27: =SUMIFS(数量,品名,计算!A27,部门,计算!$N$1,出入库,"出库")+0.006 -> 0.006 | O27: =SUMIFS(数量,品名,计算!A27,部门,计算!$O$1,出入库,"出库")+0.007 -> 0.007 | P27: 0.007 | Q27: =HLOOKUP(P27,$I27:$O$62,62-ROW(R26),FALSE) -> 其他 | Y27: 1.2027 | Z27: 26 | AA27: 9.6029 | AB27: 费用报销单 | AC27: 12 | AD27: 9.6 | AE27: 2.4
A28: =参数!B28 -> 黑档案盒 | B28: =SUMIFS(合计,品名,计算!A28,出入库,"采购",日期辅助,参数!$N$2) -> 18 | C28: =SUMIFS(合计,品名,计算!A28,出入库,"出库",日期辅助,参数!$N$2) -> 17.4 | D28: =SUMIFS(合计,品名,计算!A28,出入库,"采购")-SUMIFS(合计,品名,计算!A28,出入库,"出库") -> 0.6 | E28: =SUMIFS(数量,品名,计算!A28,出入库,"采购",日期辅助,参数!$N$2) -> 30 | F28: =SUMIFS(数量,品名,计算!A28,出入库,"出库",日期辅助,参数!$N$2) -> 29 | G28: =SUMIFS(数量,品名,计算!A28,出入库,"采购")-SUMIFS(数量,品名,计算!A28,出入库,"出库") -> 1 | I28: =SUMIFS(数量,品名,计算!A28,部门,计算!$I$1,出入库,"出库")+0.001 -> 0.001 | J28: =SUMIFS(数量,品名,计算!A28,部门,计算!$J$1,出入库,"出库")+0.002 -> 0.002 | K28: =SUMIFS(数量,品名,计算!A28,部门,计算!$K$1,出入库,"出库")+0.003 -> 0.003 | L28: =SUMIFS(数量,品名,计算!A28,部门,计算!$L$1,出入库,"出库")+0.004 -> 0.004 | M28: =SUMIFS(数量,品名,计算!A28,部门,计算!$M$1,出入库,"出库")+0.005 -> 0.005 | N28: =SUMIFS(数量,品名,计算!A28,部门,计算!$N$1,出入库,"出库")+0.006 -> 0.006 | O28: =SUMIFS(数量,品名,计算!A28,部门,计算!$O$1,出入库,"出库")+0.007 -> 0.007 | P28: 0.007 | Q28: =HLOOKUP(P28,$I28:$O$62,62-ROW(R27),FALSE) -> 其他 | Y28: 17.4028 | Z28: 27 | AA28: 9.0034 | AB28: 档案盒 | AC28: 9.6 | AD28: 9 | AE28: 0.6
A29: =参数!B29 -> 费用报销单 | B29: =SUMIFS(合计,品名,计算!A29,出入库,"采购",日期辅助,参数!$N$2) -> 12 | C29: =SUMIFS(合计,品名,计算!A29,出入库,"出库",日期辅助,参数!$N$2) -> 9.6 | D29: =SUMIFS(合计,品名,计算!A29,出入库,"采购")-SUMIFS(合计,品名,计算!A29,出入库,"出库") -> 2.4 | E29: =SUMIFS(数量,品名,计算!A29,出入库,"采购",日期辅助,参数!$N$2) -> 20 | F29: =SUMIFS(数量,品名,计算!A29,出入库,"出库",日期辅助,参数!$N$2) -> 16 | G29: =SUMIFS(数量,品名,计算!A29,出入库,"采购")-SUMIFS(数量,品名,计算!A29,出入库,"出库") -> 4 | I29: =SUMIFS(数量,品名,计算!A29,部门,计算!$I$1,出入库,"出库")+0.001 -> 0.001 | J29: =SUMIFS(数量,品名,计算!A29,部门,计算!$J$1,出入库,"出库")+0.002 -> 0.002 | K29: =SUMIFS(数量,品名,计算!A29,部门,计算!$K$1,出入库,"出库")+0.003 -> 0.003 | L29: =SUMIFS(数量,品名,计算!A29,部门,计算!$L$1,出入库,"出库")+0.004 -> 16.004 | M29: =SUMIFS(数量,品名,计算!A29,部门,计算!$M$1,出入库,"出库")+0.005 -> 0.005 | N29: =SUMIFS(数量,品名,计算!A29,部门,计算!$N$1,出入库,"出库")+0.006 -> 0.006 | O29: =SUMIFS(数量,品名,计算!A29,部门,计算!$O$1,出入库,"出库")+0.007 -> 0.007 | P29: 16.004 | Q29: =HLOOKUP(P29,$I29:$O$62,62-ROW(R28),FALSE) -> 钣喷部 | Y29: 9.6029 | Z29: 28 | AA29: 6.6031 | AB29: 订书器 | AC29: 12 | AD29: 6.6 | AE29: 5.4
A30: =参数!B30 -> 方托 | B30: =SUMIFS(合计,品名,计算!A30,出入库,"采购",日期辅助,参数!$N$2) -> 0 | C30: =SUMIFS(合计,品名,计算!A30,出入库,"出库",日期辅助,参数!$N$2) -> 0 | D30: =SUMIFS(合计,品名,计算!A30,出入库,"采购")-SUMIFS(合计,品名,计算!A30,出入库,"出库") -> 0 | E30: =SUMIFS(数量,品名,计算!A30,出入库,"采购",日期辅助,参数!$N$2) -> 0 | F30: =SUMIFS(数量,品名,计算!A30,出入库,"出库",日期辅助,参数!$N$2) -> 0 | G30: =SUMIFS(数量,品名,计算!A30,出入库,"采购")-SUMIFS(数量,品名,计算!A30,出入库,"出库") -> 0 | I30: =SUMIFS(数量,品名,计算!A30,部门,计算!$I$1,出入库,"出库")+0.001 -> 0.001 | J30: =SUMIFS(数量,品名,计算!A30,部门,计算!$J$1,出入库,"出库")+0.002 -> 0.002 | K30: =SUMIFS(数量,品名,计算!A30,部门,计算!$K$1,出入库,"出库")+0.003 -> 0.003 | L30: =SUMIFS(数量,品名,计算!A30,部门,计算!$L$1,出入库,"出库")+0.004 -> 0.004 | M30: =SUMIFS(数量,品名,计算!A30,部门,计算!$M$1,出入库,"出库")+0.005 -> 0.005 | N30: =SUMIFS(数量,品名,计算!A30,部门,计算!$N$1,出入库,"出库")+0.006 -> 0.006 | O30: =SUMIFS(数量,品名,计算!A30,部门,计算!$O$1,出入库,"出库")+0.007 -> 0.007 | P30: 0.007 | Q30: =HLOOKUP(P30,$I30:$O$62,62-ROW(R29),FALSE) -> 其他 | Y30: 0.003 | Z30: 29 | AA30: 6.0023 | AB30: 胶水 | AC30: 18 | AD30: 6 | AE30: 12
A31: =参数!B31 -> 订书器 | B31: =SUMIFS(合计,品名,计算!A31,出入库,"采购",日期辅助,参数!$N$2) -> 12 | C31: =SUMIFS(合计,品名,计算!A31,出入库,"出库",日期辅助,参数!$N$2) -> 6.6 | D31: =SUMIFS(合计,品名,计算!A31,出入库,"采购")-SUMIFS(合计,品名,计算!A31,出入库,"出库") -> 5.4 | E31: =SUMIFS(数量,品名,计算!A31,出入库,"采购",日期辅助,参数!$N$2) -> 20 | F31: =SUMIFS(数量,品名,计算!A31,出入库,"出库",日期辅助,参数!$N$2) -> 11 | G31: =SUMIFS(数量,品名,计算!A31,出入库,"采购")-SUMIFS(数量,品名,计算!A31,出入库,"出库") -> 9 | I31: =SUMIFS(数量,品名,计算!A31,部门,计算!$I$1,出入库,"出库")+0.001 -> 0.001 | J31: =SUMIFS(数量,品名,计算!A31,部门,计算!$J$1,出入库,"出库")+0.002 -> 0.002 | K31: =SUMIFS(数量,品名,计算!A31,部门,计算!$K$1,出入库,"出库")+0.003 -> 0.003 | L31: =SUMIFS(数量,品名,计算!A31,部门,计算!$L$1,出入库,"出库")+0.004 -> 0.004 | M31: =SUMIFS(数量,品名,计算!A31,部门,计算!$M$1,出入库,"出库")+0.005 -> 0.005 | N31: =SUMIFS(数量,品名,计算!A31,部门,计算!$N$1,出入库,"出库")+0.006 -> 11.006 | O31: =SUMIFS(数量,品名,计算!A31,部门,计算!$O$1,出入库,"出库")+0.007 -> 0.007 | P31: 11.006 | Q31: =HLOOKUP(P31,$I31:$O$62,62-ROW(R30),FALSE) -> 客服部 | Y31: 6.6031 | Z31: 30 | AA31: 3.6024 | AB31: 胶带 | AC31: 12 | AD31: 3.6 | AE31: 8.4
A32: =参数!B32 -> 订书钉 | B32: =SUMIFS(合计,品名,计算!A32,出入库,"采购",日期辅助,参数!$N$2) -> 0 | C32: =SUMIFS(合计,品名,计算!A32,出入库,"出库",日期辅助,参数!$N$2) -> 0 | D32: =SUMIFS(合计,品名,计算!A32,出入库,"采购")-SUMIFS(合计,品名,计算!A32,出入库,"出库") -> 0 | E32: =SUMIFS(数量,品名,计算!A32,出入库,"采购",日期辅助,参数!$N$2) -> 0 | F32: =SUMIFS(数量,品名,计算!A32,出入库,"出库",日期辅助,参数!$N$2) -> 0 | G32: =SUMIFS(数量,品名,计算!A32,出入库,"采购")-SUMIFS(数量,品名,计算!A32,出入库,"出库") -> 0 | I32: =SUMIFS(数量,品名,计算!A32,部门,计算!$I$1,出入库,"出库")+0.001 -> 0.001 | J32: =SUMIFS(数量,品名,计算!A32,部门,计算!$J$1,出入库,"出库")+0.002 -> 0.002 | K32: =SUMIFS(数量,品名,计算!A32,部门,计算!$K$1,出入库,"出库")+0.003 -> 0.003 | L32: =SUMIFS(数量,品名,计算!A32,部门,计算!$L$1,出入库,"出库")+0.004 -> 0.004 | M32: =SUMIFS(数量,品名,计算!A32,部门,计算!$M$1,出入库,"出库")+0.005 -> 0.005 | N32: =SUMIFS(数量,品名,计算!A32,部门,计算!$N$1,出入库,"出库")+0.006 -> 0.006 | O32: =SUMIFS(数量,品名,计算!A32,部门,计算!$O$1,出入库,"出库")+0.007 -> 0.007 | P32: 0.007 | Q32: =HLOOKUP(P32,$I32:$O$62,62-ROW(R31),FALSE) -> 其他 | Y32: 0.0032 | Z32: 31 | AA32: 1.2027 | AB32: 计算器 | AC32: 3 | AD32: 1.2 | AE32: 1.8
A33: =参数!B33 -> 电池 | B33: =SUMIFS(合计,品名,计算!A33,出入库,"采购",日期辅助,参数!$N$2) -> 0 | C33: =SUMIFS(合计,品名,计算!A33,出入库,"出库",日期辅助,参数!$N$2) -> 0 | D33: =SUMIFS(合计,品名,计算!A33,出入库,"采购")-SUMIFS(合计,品名,计算!A33,出入库,"出库") -> 0 | E33: =SUMIFS(数量,品名,计算!A33,出入库,"采购",日期辅助,参数!$N$2) -> 0 | F33: =SUMIFS(数量,品名,计算!A33,出入库,"出库",日期辅助,参数!$N$2) -> 0 | G33: =SUMIFS(数量,品名,计算!A33,出入库,"采购")-SUMIFS(数量,品名,计算!A33,出入库,"出库") -> 0 | I33: =SUMIFS(数量,品名,计算!A33,部门,计算!$I$1,出入库,"出库")+0.001 -> 0.001 | J33: =SUMIFS(数量,品名,计算!A33,部门,计算!$J$1,出入库,"出库")+0.002 -> 0.002 | K33: =SUMIFS(数量,品名,计算!A33,部门,计算!$K$1,出入库,"出库")+0.003 -> 0.003 | L33: =SUMIFS(数量,品名,计算!A33,部门,计算!$L$1,出入库,"出库")+0.004 -> 0.004 | M33: =SUMIFS(数量,品名,计算!A33,部门,计算!$M$1,出入库,"出库")+0.005 -> 0.005 | N33: =SUMIFS(数量,品名,计算!A33,部门,计算!$N$1,出入库,"出库")+0.006 -> 0.006 | O33: =SUMIFS(数量,品名,计算!A33,部门,计算!$O$1,出入库,"出库")+0.007 -> 0.007 | P33: 0.007 | Q33: =HLOOKUP(P33,$I33:$O$62,62-ROW(R32),FALSE) -> 其他 | Y33: 0.0033 | Z33: 32 | AA33: 1.2019 | AB33: 墨水 | AC33: 3 | AD33: 1.2 | AE33: 1.8
A34: =参数!B34 -> 档案盒 | B34: =SUMIFS(合计,品名,计算!A34,出入库,"采购",日期辅助,参数!$N$2) -> 9.6 | C34: =SUMIFS(合计,品名,计算!A34,出入库,"出库",日期辅助,参数!$N$2) -> 9 | D34: =SUMIFS(合计,品名,计算!A34,出入库,"采购")-SUMIFS(合计,品名,计算!A34,出入库,"出库") -> 0.6 | E34: =SUMIFS(数量,品名,计算!A34,出入库,"采购",日期辅助,参数!$N$2) -> 16 | F34: =SUMIFS(数量,品名,计算!A34,出入库,"出库",日期辅助,参数!$N$2) -> 15 | G34: =SUMIFS(数量,品名,计算!A34,出入库,"采购")-SUMIFS(数量,品名,计算!A34,出入库,"出库") -> 1 | I34: =SUMIFS(数量,品名,计算!A34,部门,计算!$I$1,出入库,"出库")+0.001 -> 0.001 | J34: =SUMIFS(数量,品名,计算!A34,部门,计算!$J$1,出入库,"出库")+0.002 -> 15.002 | K34: =SUMIFS(数量,品名,计算!A34,部门,计算!$K$1,出入库,"出库")+0.003 -> 0.003 | L34: =SUMIFS(数量,品名,计算!A34,部门,计算!$L$1,出入库,"出库")+0.004 -> 0.004 | M34: =SUMIFS(数量,品名,计算!A34,部门,计算!$M$1,出入库,"出库")+0.005 -> 0.005 | N34: =SUMIFS(数量,品名,计算!A34,部门,计算!$N$1,出入库,"出库")+0.006 -> 0.006 | O34: =SUMIFS(数量,品名,计算!A34,部门,计算!$O$1,出入库,"出库")+0.007 -> 0.007 | P34: 15.002 | Q34: =HLOOKUP(P34,$I34:$O$62,62-ROW(R33),FALSE) -> 服务部 | Y34: 9.0034 | Z34: 33 | AA34: 0.0054 | AB34: 自定义 | AC34: 0 | AD34: 0 | AE34: 0
A35: =参数!B35 -> 档案袋 | B35: =SUMIFS(合计,品名,计算!A35,出入库,"采购",日期辅助,参数!$N$2) -> 0 | C35: =SUMIFS(合计,品名,计算!A35,出入库,"出库",日期辅助,参数!$N$2) -> 0 | D35: =SUMIFS(合计,品名,计算!A35,出入库,"采购")-SUMIFS(合计,品名,计算!A35,出入库,"出库") -> 0 | E35: =SUMIFS(数量,品名,计算!A35,出入库,"采购",日期辅助,参数!$N$2) -> 0 | F35: =SUMIFS(数量,品名,计算!A35,出入库,"出库",日期辅助,参数!$N$2) -> 0 | G35: =SUMIFS(数量,品名,计算!A35,出入库,"采购")-SUMIFS(数量,品名,计算!A35,出入库,"出库") -> 0 | I35: =SUMIFS(数量,品名,计算!A35,部门,计算!$I$1,出入库,"出库")+0.001 -> 0.001 | J35: =SUMIFS(数量,品名,计算!A35,部门,计算!$J$1,出入库,"出库")+0.002 -> 0.002 | K35: =SUMIFS(数量,品名,计算!A35,部门,计算!$K$1,出入库,"出库")+0.003 -> 0.003 | L35: =SUMIFS(数量,品名,计算!A35,部门,计算!$L$1,出入库,"出库")+0.004 -> 0.004 | M35: =SUMIFS(数量,品名,计算!A35,部门,计算!$M$1,出入库,"出库")+0.005 -> 0.005 | N35: =SUMIFS(数量,品名,计算!A35,部门,计算!$N$1,出入库,"出库")+0.006 -> 0.006 | O35: =SUMIFS(数量,品名,计算!A35,部门,计算!$O$1,出入库,"出库")+0.007 -> 0.007 | P35: 0.007 | Q35: =HLOOKUP(P35,$I35:$O$62,62-ROW(R34),FALSE) -> 其他 | Y35: 0.0035 | Z35: 34 | AA35: 0.0053 | AB35: 自定义 | AC35: 0 | AD35: 0 | AE35: 0
A36: =参数!B36 -> 大盘纸 | B36: =SUMIFS(合计,品名,计算!A36,出入库,"采购",日期辅助,参数!$N$2) -> 0 | C36: =SUMIFS(合计,品名,计算!A36,出入库,"出库",日期辅助,参数!$N$2) -> 0 | D36: =SUMIFS(合计,品名,计算!A36,出入库,"采购")-SUMIFS(合计,品名,计算!A36,出入库,"出库") -> 0 | E36: =SUMIFS(数量,品名,计算!A36,出入库,"采购",日期辅助,参数!$N$2) -> 0 | F36: =SUMIFS(数量,品名,计算!A36,出入库,"出库",日期辅助,参数!$N$2) -> 0 | G36: =SUMIFS(数量,品名,计算!A36,出入库,"采购")-SUMIFS(数量,品名,计算!A36,出入库,"出库") -> 0 | I36: =SUMIFS(数量,品名,计算!A36,部门,计算!$I$1,出入库,"出库")+0.001 -> 0.001 | J36: =SUMIFS(数量,品名,计算!A36,部门,计算!$J$1,出入库,"出库")+0.002 -> 0.002 | K36: =SUMIFS(数量,品名,计算!A36,部门,计算!$K$1,出入库,"出库")+0.003 -> 0.003 | L36: =SUMIFS(数量,品名,计算!A36,部门,计算!$L$1,出入库,"出库")+0.004 -> 0.004 | M36: =SUMIFS(数量,品名,计算!A36,部门,计算!$M$1,出入库,"出库")+0.005 -> 0.005 | N36: =SUMIFS(数量,品名,计算!A36,部门,计算!$N$1,出入库,"出库")+0.006 -> 0.006 | O36: =SUMIFS(数量,品名,计算!A36,部门,计算!$O$1,出入库,"出库")+0.007 -> 0.007 | P36: 0.007 | Q36: =HLOOKUP(P36,$I36:$O$62,62-ROW(R35),FALSE) -> 其他 | Y36: 0.0036 | Z36: 35 | AA36: 0.0052 | AB36: 2联 | AC36: 0 | AD36: 0 | AE36: 0
A37: =参数!B37 -> 创可贴 | B37: =SUMIFS(合计,品名,计算!A37,出入库,"采购",日期辅助,参数!$N$2) -> 0 | C37: =SUMIFS(合计,品名,计算!A37,出入库,"出库",日期辅助,参数!$N$2) -> 0 | D37: =SUMIFS(合计,品名,计算!A37,出入库,"采购")-SUMIFS(合计,品名,计算!A37,出入库,"出库") -> 0 | E37: =SUMIFS(数量,品名,计算!A37,出入库,"采购",日期辅助,参数!$N$2) -> 0 | F37: =SUMIFS(数量,品名,计算!A37,出入库,"出库",日期辅助,参数!$N$2) -> 0 | G37: =SUMIFS(数量,品名,计算!A37,出入库,"采购")-SUMIFS(数量,品名,计算!A37,出入库,"出库") -> 0 | I37: =SUMIFS(数量,品名,计算!A37,部门,计算!$I$1,出入库,"出库")+0.001 -> 0.001 | J37: =SUMIFS(数量,品名,计算!A37,部门,计算!$J$1,出入库,"出库")+0.002 -> 0.002 | K37: =SUMIFS(数量,品名,计算!A37,部门,计算!$K$1,出入库,"出库")+0.003 -> 0.003 | L37: =SUMIFS(数量,品名,计算!A37,部门,计算!$L$1,出入库,"出库")+0.004 -> 0.004 | M37: =SUMIFS(数量,品名,计算!A37,部门,计算!$M$1,出入库,"出库")+0.005 -> 0.005 | N37: =SUMIFS(数量,品名,计算!A37,部门,计算!$N$1,出入库,"出库")+0.006 -> 0.006 | O37: =SUMIFS(数量,品名,计算!A37,部门,计算!$O$1,出入库,"出库")+0.007 -> 0.007 | P37: 0.007 | Q37: =HLOOKUP(P37,$I37:$O$62,62-ROW(R36),FALSE) -> 其他 | Y37: 0.0037 | Z37: 36 | AA37: 0.005 | AB37: A4 | AC37: 0 | AD37: 0 | AE37: 0
A38: =参数!B38 -> 出库单 | B38: =SUMIFS(合计,品名,计算!A38,出入库,"采购",日期辅助,参数!$N$2) -> 0 | C38: =SUMIFS(合计,品名,计算!A38,出入库,"出库",日期辅助,参数!$N$2) -> 0 | D38: =SUMIFS(合计,品名,计算!A38,出入库,"采购")-SUMIFS(合计,品名,计算!A38,出入库,"出库") -> 0 | E38: =SUMIFS(数量,品名,计算!A38,出入库,"采购",日期辅助,参数!$N$2) -> 0 | F38: =SUMIFS(数量,品名,计算!A38,出入库,"出库",日期辅助,参数!$N$2) -> 0 | G38: =SUMIFS(数量,品名,计算!A38,出入库,"采购")-SUMIFS(数量,品名,计算!A38,出入库,"出库") -> 0 | I38: =SUMIFS(数量,品名,计算!A38,部门,计算!$I$1,出入库,"出库")+0.001 -> 0.001 | J38: =SUMIFS(数量,品名,计算!A38,部门,计算!$J$1,出入库,"出库")+0.002 -> 0.002 | K38: =SUMIFS(数量,品名,计算!A38,部门,计算!$K$1,出入库,"出库")+0.003 -> 0.003 | L38: =SUMIFS(数量,品名,计算!A38,部门,计算!$L$1,出入库,"出库")+0.004 -> 0.004 | M38: =SUMIFS(数量,品名,计算!A38,部门,计算!$M$1,出入库,"出库")+0.005 -> 0.005 | N38: =SUMIFS(数量,品名,计算!A38,部门,计算!$N$1,出入库,"出库")+0.006 -> 0.006 | O38: =SUMIFS(数量,品名,计算!A38,部门,计算!$O$1,出入库,"出库")+0.007 -> 0.007 | P38: 0.007 | Q38: =HLOOKUP(P38,$I38:$O$62,62-ROW(R37),FALSE) -> 其他 | Y38: 0.0038 | Z38: 37 | AA38: 0.0049 | AB38: 白板笔 | AC38: 0 | AD38: 0 | AE38: 0
A39: =参数!B39 -> 抽杆文件夹 | B39: =SUMIFS(合计,品名,计算!A39,出入库,"采购",日期辅助,参数!$N$2) -> 0 | C39: =SUMIFS(合计,品名,计算!A39,出入库,"出库",日期辅助,参数!$N$2) -> 0 | D39: =SUMIFS(合计,品名,计算!A39,出入库,"采购")-SUMIFS(合计,品名,计算!A39,出入库,"出库") -> 0 | E39: =SUMIFS(数量,品名,计算!A39,出入库,"采购",日期辅助,参数!$N$2) -> 0 | F39: =SUMIFS(数量,品名,计算!A39,出入库,"出库",日期辅助,参数!$N$2) -> 0 | G39: =SUMIFS(数量,品名,计算!A39,出入库,"采购")-SUMIFS(数量,品名,计算!A39,出入库,"出库") -> 0 | I39: =SUMIFS(数量,品名,计算!A39,部门,计算!$I$1,出入库,"出库")+0.001 -> 0.001 | J39: =SUMIFS(数量,品名,计算!A39,部门,计算!$J$1,出入库,"出库")+0.002 -> 0.002 | K39: =SUMIFS(数量,品名,计算!A39,部门,计算!$K$1,出入库,"出库")+0.003 -> 0.003 | L39: =SUMIFS(数量,品名,计算!A39,部门,计算!$L$1,出入库,"出库")+0.004 -> 0.004 | M39: =SUMIFS(数量,品名,计算!A39,部门,计算!$M$1,出入库,"出库")+0.005 -> 0.005 | N39: =SUMIFS(数量,品名,计算!A39,部门,计算!$N$1,出入库,"出库")+0.006 -> 0.006 | O39: =SUMIFS(数量,品名,计算!A39,部门,计算!$O$1,出入库,"出库")+0.007 -> 0.007 | P39: 0.007 | Q39: =HLOOKUP(P39,$I39:$O$62,62-ROW(R38),FALSE) -> 其他 | Y39: 0.0039 | Z39: 38 | AA39: 0.0048 | AB39: 笔 | AC39: 0 | AD39: 0 | AE39: 0
A40: =参数!B40 -> 尘推油 | B40: =SUMIFS(合计,品名,计算!A40,出入库,"采购",日期辅助,参数!$N$2) -> 0 | C40: =SUMIFS(合计,品名,计算!A40,出入库,"出库",日期辅助,参数!$N$2) -> 0 | D40: =SUMIFS(合计,品名,计算!A40,出入库,"采购")-SUMIFS(合计,品名,计算!A40,出入库,"出库") -> 0 | E40: =SUMIFS(数量,品名,计算!A40,出入库,"采购",日期辅助,参数!$N$2) -> 0 | F40: =SUMIFS(数量,品名,计算!A40,出入库,"出库",日期辅助,参数!$N$2) -> 0 | G40: =SUMIFS(数量,品名,计算!A40,出入库,"采购")-SUMIFS(数量,品名,计算!A40,出入库,"出库") -> 0 | I40: =SUMIFS(数量,品名,计算!A40,部门,计算!$I$1,出入库,"出库")+0.001 -> 0.001 | J40: =SUMIFS(数量,品名,计算!A40,部门,计算!$J$1,出入库,"出库")+0.002 -> 0.002 | K40: =SUMIFS(数量,品名,计算!A40,部门,计算!$K$1,出入库,"出库")+0.003 -> 0.003 | L40: =SUMIFS(数量,品名,计算!A40,部门,计算!$L$1,出入库,"出库")+0.004 -> 0.004 | M40: =SUMIFS(数量,品名,计算!A40,部门,计算!$M$1,出入库,"出库")+0.005 -> 0.005 | N40: =SUMIFS(数量,品名,计算!A40,部门,计算!$N$1,出入库,"出库")+0.006 -> 0.006 | O40: =SUMIFS(数量,品名,计算!A40,部门,计算!$O$1,出入库,"出库")+0.007 -> 0.007 | P40: 0.007 | Q40: =HLOOKUP(P40,$I40:$O$62,62-ROW(R39),FALSE) -> 其他 | Y40: 0.004 | Z40: 39 | AA40: 0.0047 | AB40: 笔记本 | AC40: 0 | AD40: 0 | AE40: 0
A41: =参数!B41 -> 车牌色带 | B41: =SUMIFS(合计,品名,计算!A41,出入库,"采购",日期辅助,参数!$N$2) -> 0 | C41: =SUMIFS(合计,品名,计算!A41,出入库,"出库",日期辅助,参数!$N$2) -> 0 | D41: =SUMIFS(合计,品名,计算!A41,出入库,"采购")-SUMIFS(合计,品名,计算!A41,出入库,"出库") -> 0 | E41: =SUMIFS(数量,品名,计算!A41,出入库,"采购",日期辅助,参数!$N$2) -> 0 | F41: =SUMIFS(数量,品名,计算!A41,出入库,"出库",日期辅助,参数!$N$2) -> 0 | G41: =SUMIFS(数量,品名,计算!A41,出入库,"采购")-SUMIFS(数量,品名,计算!A41,出入库,"出库") -> 0 | I41: =SUMIFS(数量,品名,计算!A41,部门,计算!$I$1,出入库,"出库")+0.001 -> 0.001 | J41: =SUMIFS(数量,品名,计算!A41,部门,计算!$J$1,出入库,"出库")+0.002 -> 0.002 | K41: =SUMIFS(数量,品名,计算!A41,部门,计算!$K$1,出入库,"出库")+0.003 -> 0.003 | L41: =SUMIFS(数量,品名,计算!A41,部门,计算!$L$1,出入库,"出库")+0.004 -> 0.004 | M41: =SUMIFS(数量,品名,计算!A41,部门,计算!$M$1,出入库,"出库")+0.005 -> 0.005 | N41: =SUMIFS(数量,品名,计算!A41,部门,计算!$N$1,出入库,"出库")+0.006 -> 0.006 | O41: =SUMIFS(数量,品名,计算!A41,部门,计算!$O$1,出入库,"出库")+0.007 -> 0.007 | P41: 0.007 | Q41: =HLOOKUP(P41,$I41:$O$62,62-ROW(R40),FALSE) -> 其他 | Y41: 0.0041 | Z41: 40 | AA41: 0.0046 | AB41: 笔芯 | AC41: 0 | AD41: 0 | AE41: 0
A42: =参数!B42 -> 插排 | B42: =SUMIFS(合计,品名,计算!A42,出入库,"采购",日期辅助,参数!$N$2) -> 0 | C42: =SUMIFS(合计,品名,计算!A42,出入库,"出库",日期辅助,参数!$N$2) -> 0 | D42: =SUMIFS(合计,品名,计算!A42,出入库,"采购")-SUMIFS(合计,品名,计算!A42,出入库,"出库") -> 0 | E42: =SUMIFS(数量,品名,计算!A42,出入库,"采购",日期辅助,参数!$N$2) -> 0 | F42: =SUMIFS(数量,品名,计算!A42,出入库,"出库",日期辅助,参数!$N$2) -> 0 | G42: =SUMIFS(数量,品名,计算!A42,出入库,"采购")-SUMIFS(数量,品名,计算!A42,出入库,"出库") -> 0 | I42: =SUMIFS(数量,品名,计算!A42,部门,计算!$I$1,出入库,"出库")+0.001 -> 0.001 | J42: =SUMIFS(数量,品名,计算!A42,部门,计算!$J$1,出入库,"出库")+0.002 -> 0.002 | K42: =SUMIFS(数量,品名,计算!A42,部门,计算!$K$1,出入库,"出库")+0.003 -> 0.003 | L42: =SUMIFS(数量,品名,计算!A42,部门,计算!$L$1,出入库,"出库")+0.004 -> 0.004 | M42: =SUMIFS(数量,品名,计算!A42,部门,计算!$M$1,出入库,"出库")+0.005 -> 0.005 | N42: =SUMIFS(数量,品名,计算!A42,部门,计算!$N$1,出入库,"出库")+0.006 -> 0.006 | O42: =SUMIFS(数量,品名,计算!A42,部门,计算!$O$1,出入库,"出库")+0.007 -> 0.007 | P42: 0.007 | Q42: =HLOOKUP(P42,$I42:$O$62,62-ROW(R41),FALSE) -> 其他 | Y42: 0.0042 | Z42: 41 | AA42: 0.0045 | AB42: 便利贴 | AC42: 0 | AD42: 0 | AE42: 0
A43: =参数!B43 -> 簸箕 | B43: =SUMIFS(合计,品名,计算!A43,出入库,"采购",日期辅助,参数!$N$2) -> 0 | C43: =SUMIFS(合计,品名,计算!A43,出入库,"出库",日期辅助,参数!$N$2) -> 0 | D43: =SUMIFS(合计,品名,计算!A43,出入库,"采购")-SUMIFS(合计,品名,计算!A43,出入库,"出库") -> 0 | E43: =SUMIFS(数量,品名,计算!A43,出入库,"采购",日期辅助,参数!$N$2) -> 0 | F43: =SUMIFS(数量,品名,计算!A43,出入库,"出库",日期辅助,参数!$N$2) -> 0 | G43: =SUMIFS(数量,品名,计算!A43,出入库,"采购")-SUMIFS(数量,品名,计算!A43,出入库,"出库") -> 0 | I43: =SUMIFS(数量,品名,计算!A43,部门,计算!$I$1,出入库,"出库")+0.001 -> 0.001 | J43: =SUMIFS(数量,品名,计算!A43,部门,计算!$J$1,出入库,"出库")+0.002 -> 0.002 | K43: =SUMIFS(数量,品名,计算!A43,部门,计算!$K$1,出入库,"出库")+0.003 -> 0.003 | L43: =SUMIFS(数量,品名,计算!A43,部门,计算!$L$1,出入库,"出库")+0.004 -> 0.004 | M43: =SUMIFS(数量,品名,计算!A43,部门,计算!$M$1,出入库,"出库")+0.005 -> 0.005 | N43: =SUMIFS(数量,品名,计算!A43,部门,计算!$N$1,出入库,"出库")+0.006 -> 0.006 | O43: =SUMIFS(数量,品名,计算!A43,部门,计算!$O$1,出入库,"出库")+0.007 -> 0.007 | P43: 0.007 | Q43: =HLOOKUP(P43,$I43:$O$62,62-ROW(R42),FALSE) -> 其他 | Y43: 0.0043 | Z43: 42 | AA43: 0.0043 | AB43: 簸箕 | AC43: 0 | AD43: 0 | AE43: 0
A44: =参数!B44 -> 饼干 | B44: =SUMIFS(合计,品名,计算!A44,出入库,"采购",日期辅助,参数!$N$2) -> 3036 | C44: =SUMIFS(合计,品名,计算!A44,出入库,"出库",日期辅助,参数!$N$2) -> 1800 | D44: =SUMIFS(合计,品名,计算!A44,出入库,"采购")-SUMIFS(合计,品名,计算!A44,出入库,"出库") -> 1236 | E44: =SUMIFS(数量,品名,计算!A44,出入库,"采购",日期辅助,参数!$N$2) -> 5060 | F44: =SUMIFS(数量,品名,计算!A44,出入库,"出库",日期辅助,参数!$N$2) -> 3000 | G44: =SUMIFS(数量,品名,计算!A44,出入库,"采购")-SUMIFS(数量,品名,计算!A44,出入库,"出库") -> 2060 | I44: =SUMIFS(数量,品名,计算!A44,部门,计算!$I$1,出入库,"出库")+0.001 -> 0.001 | J44: =SUMIFS(数量,品名,计算!A44,部门,计算!$J$1,出入库,"出库")+0.002 -> 0.002 | K44: =SUMIFS(数量,品名,计算!A44,部门,计算!$K$1,出入库,"出库")+0.003 -> 0.003 | L44: =SUMIFS(数量,品名,计算!A44,部门,计算!$L$1,出入库,"出库")+0.004 -> 0.004 | M44: =SUMIFS(数量,品名,计算!A44,部门,计算!$M$1,出入库,"出库")+0.005 -> 0.005 | N44: =SUMIFS(数量,品名,计算!A44,部门,计算!$N$1,出入库,"出库")+0.006 -> 0.006 | O44: =SUMIFS(数量,品名,计算!A44,部门,计算!$O$1,出入库,"出库")+0.007 -> 0.007 | P44: 0.007 | Q44: =HLOOKUP(P44,$I44:$O$62,62-ROW(R43),FALSE) -> 其他 | Y44: 1800.0044 | Z44: 43 | AA44: 0.0042 | AB44: 插排 | AC44: 0 | AD44: 0 | AE44: 0
A45: =参数!B45 -> 便利贴 | B45: =SUMIFS(合计,品名,计算!A45,出入库,"采购",日期辅助,参数!$N$2) -> 0 | C45: =SUMIFS(合计,品名,计算!A45,出入库,"出库",日期辅助,参数!$N$2) -> 0 | D45: =SUMIFS(合计,品名,计算!A45,出入库,"采购")-SUMIFS(合计,品名,计算!A45,出入库,"出库") -> 0 | E45: =SUMIFS(数量,品名,计算!A45,出入库,"采购",日期辅助,参数!$N$2) -> 0 | F45: =SUMIFS(数量,品名,计算!A45,出入库,"出库",日期辅助,参数!$N$2) -> 0 | G45: =SUMIFS(数量,品名,计算!A45,出入库,"采购")-SUMIFS(数量,品名,计算!A45,出入库,"出库") -> 0 | I45: =SUMIFS(数量,品名,计算!A45,部门,计算!$I$1,出入库,"出库")+0.001 -> 0.001 | J45: =SUMIFS(数量,品名,计算!A45,部门,计算!$J$1,出入库,"出库")+0.002 -> 0.002 | K45: =SUMIFS(数量,品名,计算!A45,部门,计算!$K$1,出入库,"出库")+0.003 -> 0.003 | L45: =SUMIFS(数量,品名,计算!A45,部门,计算!$L$1,出入库,"出库")+0.004 -> 0.004 | M45: =SUMIFS(数量,品名,计算!A45,部门,计算!$M$1,出入库,"出库")+0.005 -> 0.005 | N45: =SUMIFS(数量,品名,计算!A45,部门,计算!$N$1,出入库,"出库")+0.006 -> 0.006 | O45: =SUMIFS(数量,品名,计算!A45,部门,计算!$O$1,出入库,"出库")+0.007 -> 0.007 | P45: 0.007 | Q45: =HLOOKUP(P45,$I45:$O$62,62-ROW(R44),FALSE) -> 其他 | Y45: 0.0045 | Z45: 44 | AA45: 0.0041 | AB45: 车牌色带 | AC45: 0 | AD45: 0 | AE45: 0
A46: =参数!B46 -> 笔芯 | B46: =SUMIFS(合计,品名,计算!A46,出入库,"采购",日期辅助,参数!$N$2) -> 0 | C46: =SUMIFS(合计,品名,计算!A46,出入库,"出库",日期辅助,参数!$N$2) -> 0 | D46: =SUMIFS(合计,品名,计算!A46,出入库,"采购")-SUMIFS(合计,品名,计算!A46,出入库,"出库") -> 0 | E46: =SUMIFS(数量,品名,计算!A46,出入库,"采购",日期辅助,参数!$N$2) -> 0 | F46: =SUMIFS(数量,品名,计算!A46,出入库,"出库",日期辅助,参数!$N$2) -> 0 | G46: =SUMIFS(数量,品名,计算!A46,出入库,"采购")-SUMIFS(数量,品名,计算!A46,出入库,"出库") -> 0 | I46: =SUMIFS(数量,品名,计算!A46,部门,计算!$I$1,出入库,"出库")+0.001 -> 0.001 | J46: =SUMIFS(数量,品名,计算!A46,部门,计算!$J$1,出入库,"出库")+0.002 -> 0.002 | K46: =SUMIFS(数量,品名,计算!A46,部门,计算!$K$1,出入库,"出库")+0.003 -> 0.003 | L46: =SUMIFS(数量,品名,计算!A46,部门,计算!$L$1,出入库,"出库")+0.004 -> 0.004 | M46: =SUMIFS(数量,品名,计算!A46,部门,计算!$M$1,出入库,"出库")+0.005 -> 0.005 | N46: =SUMIFS(数量,品名,计算!A46,部门,计算!$N$1,出入库,"出库")+0.006 -> 0.006 | O46: =SUMIFS(数量,品名,计算!A46,部门,计算!$O$1,出入库,"出库")+0.007 -> 0.007 | P46: 0.007 | Q46: =HLOOKUP(P46,$I46:$O$62,62-ROW(R45),FALSE) -> 其他 | Y46: 0.0046 | Z46: 45 | AA46: 0.004 | AB46: 尘推油 | AC46: 0 | AD46: 0 | AE46: 0
A47: =参数!B47 -> 笔记本 | B47: =SUMIFS(合计,品名,计算!A47,出入库,"采购",日期辅助,参数!$N$2) -> 0 | C47: =SUMIFS(合计,品名,计算!A47,出入库,"出库",日期辅助,参数!$N$2) -> 0 | D47: =SUMIFS(合计,品名,计算!A47,出入库,"采购")-SUMIFS(合计,品名,计算!A47,出入库,"出库") -> 120 | E47: =SUMIFS(数量,品名,计算!A47,出入库,"采购",日期辅助,参数!$N$2) -> 0 | F47: =SUMIFS(数量,品名,计算!A47,出入库,"出库",日期辅助,参数!$N$2) -> 0 | G47: =SUMIFS(数量,品名,计算!A47,出入库,"采购")-SUMIFS(数量,品名,计算!A47,出入库,"出库") -> 200 | I47: =SUMIFS(数量,品名,计算!A47,部门,计算!$I$1,出入库,"出库")+0.001 -> 0.001 | J47: =SUMIFS(数量,品名,计算!A47,部门,计算!$J$1,出入库,"出库")+0.002 -> 0.002 | K47: =SUMIFS(数量,品名,计算!A47,部门,计算!$K$1,出入库,"出库")+0.003 -> 0.003 | L47: =SUMIFS(数量,品名,计算!A47,部门,计算!$L$1,出入库,"出库")+0.004 -> 0.004 | M47: =SUMIFS(数量,品名,计算!A47,部门,计算!$M$1,出入库,"出库")+0.005 -> 0.005 | N47: =SUMIFS(数量,品名,计算!A47,部门,计算!$N$1,出入库,"出库")+0.006 -> 0.006 | O47: =SUMIFS(数量,品名,计算!A47,部门,计算!$O$1,出入库,"出库")+0.007 -> 0.007 | P47: 0.007 | Q47: =HLOOKUP(P47,$I47:$O$62,62-ROW(R46),FALSE) -> 其他 | Y47: 0.0047 | Z47: 46 | AA47: 0.0039 | AB47: 抽杆文件夹 | AC47: 0 | AD47: 0 | AE47: 0
A48: =参数!B48 -> 笔 | B48: =SUMIFS(合计,品名,计算!A48,出入库,"采购",日期辅助,参数!$N$2) -> 0 | C48: =SUMIFS(合计,品名,计算!A48,出入库,"出库",日期辅助,参数!$N$2) -> 0 | D48: =SUMIFS(合计,品名,计算!A48,出入库,"采购")-SUMIFS(合计,品名,计算!A48,出入库,"出库") -> 0 | E48: =SUMIFS(数量,品名,计算!A48,出入库,"采购",日期辅助,参数!$N$2) -> 0 | F48: =SUMIFS(数量,品名,计算!A48,出入库,"出库",日期辅助,参数!$N$2) -> 0 | G48: =SUMIFS(数量,品名,计算!A48,出入库,"采购")-SUMIFS(数量,品名,计算!A48,出入库,"出库") -> 0 | I48: =SUMIFS(数量,品名,计算!A48,部门,计算!$I$1,出入库,"出库")+0.001 -> 0.001 | J48: =SUMIFS(数量,品名,计算!A48,部门,计算!$J$1,出入库,"出库")+0.002 -> 0.002 | K48: =SUMIFS(数量,品名,计算!A48,部门,计算!$K$1,出入库,"出库")+0.003 -> 0.003 | L48: =SUMIFS(数量,品名,计算!A48,部门,计算!$L$1,出入库,"出库")+0.004 -> 0.004 | M48: =SUMIFS(数量,品名,计算!A48,部门,计算!$M$1,出入库,"出库")+0.005 -> 0.005 | N48: =SUMIFS(数量,品名,计算!A48,部门,计算!$N$1,出入库,"出库")+0.006 -> 0.006 | O48: =SUMIFS(数量,品名,计算!A48,部门,计算!$O$1,出入库,"出库")+0.007 -> 0.007 | P48: 0.007 | Q48: =HLOOKUP(P48,$I48:$O$62,62-ROW(R47),FALSE) -> 其他 | Y48: 0.0048 | Z48: 47 | AA48: 0.0038 | AB48: 出库单 | AC48: 0 | AD48: 0 | AE48: 0
A49: =参数!B49 -> 白板笔 | B49: =SUMIFS(合计,品名,计算!A49,出入库,"采购",日期辅助,参数!$N$2) -> 0 | C49: =SUMIFS(合计,品名,计算!A49,出入库,"出库",日期辅助,参数!$N$2) -> 0 | D49: =SUMIFS(合计,品名,计算!A49,出入库,"采购")-SUMIFS(合计,品名,计算!A49,出入库,"出库") -> 0 | E49: =SUMIFS(数量,品名,计算!A49,出入库,"采购",日期辅助,参数!$N$2) -> 0 | F49: =SUMIFS(数量,品名,计算!A49,出入库,"出库",日期辅助,参数!$N$2) -> 0 | G49: =SUMIFS(数量,品名,计算!A49,出入库,"采购")-SUMIFS(数量,品名,计算!A49,出入库,"出库") -> 0 | I49: =SUMIFS(数量,品名,计算!A49,部门,计算!$I$1,出入库,"出库")+0.001 -> 0.001 | J49: =SUMIFS(数量,品名,计算!A49,部门,计算!$J$1,出入库,"出库")+0.002 -> 0.002 | K49: =SUMIFS(数量,品名,计算!A49,部门,计算!$K$1,出入库,"出库")+0.003 -> 0.003 | L49: =SUMIFS(数量,品名,计算!A49,部门,计算!$L$1,出入库,"出库")+0.004 -> 0.004 | M49: =SUMIFS(数量,品名,计算!A49,部门,计算!$M$1,出入库,"出库")+0.005 -> 0.005 | N49: =SUMIFS(数量,品名,计算!A49,部门,计算!$N$1,出入库,"出库")+0.006 -> 0.006 | O49: =SUMIFS(数量,品名,计算!A49,部门,计算!$O$1,出入库,"出库")+0.007 -> 0.007 | P49: 0.007 | Q49: =HLOOKUP(P49,$I49:$O$62,62-ROW(R48),FALSE) -> 其他 | Y49: 0.0049 | Z49: 48 | AA49: 0.0037 | AB49: 创可贴 | AC49: 0 | AD49: 0 | AE49: 0
A50: =参数!B50 -> A4 | B50: =SUMIFS(合计,品名,计算!A50,出入库,"采购",日期辅助,参数!$N$2) -> 0 | C50: =SUMIFS(合计,品名,计算!A50,出入库,"出库",日期辅助,参数!$N$2) -> 0 | D50: =SUMIFS(合计,品名,计算!A50,出入库,"采购")-SUMIFS(合计,品名,计算!A50,出入库,"出库") -> 0 | E50: =SUMIFS(数量,品名,计算!A50,出入库,"采购",日期辅助,参数!$N$2) -> 0 | F50: =SUMIFS(数量,品名,计算!A50,出入库,"出库",日期辅助,参数!$N$2) -> 0 | G50: =SUMIFS(数量,品名,计算!A50,出入库,"采购")-SUMIFS(数量,品名,计算!A50,出入库,"出库") -> 0 | I50: =SUMIFS(数量,品名,计算!A50,部门,计算!$I$1,出入库,"出库")+0.001 -> 0.001 | J50: =SUMIFS(数量,品名,计算!A50,部门,计算!$J$1,出入库,"出库")+0.002 -> 0.002 | K50: =SUMIFS(数量,品名,计算!A50,部门,计算!$K$1,出入库,"出库")+0.003 -> 0.003 | L50: =SUMIFS(数量,品名,计算!A50,部门,计算!$L$1,出入库,"出库")+0.004 -> 0.004 | M50: =SUMIFS(数量,品名,计算!A50,部门,计算!$M$1,出入库,"出库")+0.005 -> 0.005 | N50: =SUMIFS(数量,品名,计算!A50,部门,计算!$N$1,出入库,"出库")+0.006 -> 0.006 | O50: =SUMIFS(数量,品名,计算!A50,部门,计算!$O$1,出入库,"出库")+0.007 -> 0.007 | P50: 0.007 | Q50: =HLOOKUP(P50,$I50:$O$62,62-ROW(R49),FALSE) -> 其他 | Y50: 0.005 | Z50: 49 | AA50: 0.0036 | AB50: 大盘纸 | AC50: 0 | AD50: 0 | AE50: 0
A51: =参数!B51 -> 9v电池 | B51: =SUMIFS(合计,品名,计算!A51,出入库,"采购",日期辅助,参数!$N$2) -> 1200 | C51: =SUMIFS(合计,品名,计算!A51,出入库,"出库",日期辅助,参数!$N$2) -> 900 | D51: =SUMIFS(合计,品名,计算!A51,出入库,"采购")-SUMIFS(合计,品名,计算!A51,出入库,"出库") -> 300 | E51: =SUMIFS(数量,品名,计算!A51,出入库,"采购",日期辅助,参数!$N$2) -> 2000 | F51: =SUMIFS(数量,品名,计算!A51,出入库,"出库",日期辅助,参数!$N$2) -> 1500 | G51: =SUMIFS(数量,品名,计算!A51,出入库,"采购")-SUMIFS(数量,品名,计算!A51,出入库,"出库") -> 500 | I51: =SUMIFS(数量,品名,计算!A51,部门,计算!$I$1,出入库,"出库")+0.001 -> 0.001 | J51: =SUMIFS(数量,品名,计算!A51,部门,计算!$J$1,出入库,"出库")+0.002 -> 0.002 | K51: =SUMIFS(数量,品名,计算!A51,部门,计算!$K$1,出入库,"出库")+0.003 -> 0.003 | L51: =SUMIFS(数量,品名,计算!A51,部门,计算!$L$1,出入库,"出库")+0.004 -> 0.004 | M51: =SUMIFS(数量,品名,计算!A51,部门,计算!$M$1,出入库,"出库")+0.005 -> 0.005 | N51: =SUMIFS(数量,品名,计算!A51,部门,计算!$N$1,出入库,"出库")+0.006 -> 0.006 | O51: =SUMIFS(数量,品名,计算!A51,部门,计算!$O$1,出入库,"出库")+0.007 -> 0.007 | P51: 0.007 | Q51: =HLOOKUP(P51,$I51:$O$62,62-ROW(R50),FALSE) -> 其他 | Y51: 900.0051 | Z51: 50 | AA51: 0.0035 | AB51: 档案袋 | AC51: 0 | AD51: 0 | AE51: 0
A52: =参数!B52 -> 2联 | B52: =SUMIFS(合计,品名,计算!A52,出入库,"采购",日期辅助,参数!$N$2) -> 0 | C52: =SUMIFS(合计,品名,计算!A52,出入库,"出库",日期辅助,参数!$N$2) -> 0 | D52: =SUMIFS(合计,品名,计算!A52,出入库,"采购")-SUMIFS(合计,品名,计算!A52,出入库,"出库") -> 0 | E52: =SUMIFS(数量,品名,计算!A52,出入库,"采购",日期辅助,参数!$N$2) -> 0 | F52: =SUMIFS(数量,品名,计算!A52,出入库,"出库",日期辅助,参数!$N$2) -> 0 | G52: =SUMIFS(数量,品名,计算!A52,出入库,"采购")-SUMIFS(数量,品名,计算!A52,出入库,"出库") -> 0 | I52: =SUMIFS(数量,品名,计算!A52,部门,计算!$I$1,出入库,"出库")+0.001 -> 0.001 | J52: =SUMIFS(数量,品名,计算!A52,部门,计算!$J$1,出入库,"出库")+0.002 -> 0.002 | K52: =SUMIFS(数量,品名,计算!A52,部门,计算!$K$1,出入库,"出库")+0.003 -> 0.003 | L52: =SUMIFS(数量,品名,计算!A52,部门,计算!$L$1,出入库,"出库")+0.004 -> 0.004 | M52: =SUMIFS(数量,品名,计算!A52,部门,计算!$M$1,出入库,"出库")+0.005 -> 0.005 | N52: =SUMIFS(数量,品名,计算!A52,部门,计算!$N$1,出入库,"出库")+0.006 -> 0.006 | O52: =SUMIFS(数量,品名,计算!A52,部门,计算!$O$1,出入库,"出库")+0.007 -> 0.007 | P52: 0.007 | Q52: =HLOOKUP(P52,$I52:$O$62,62-ROW(R51),FALSE) -> 其他 | Y52: 0.0052 | Z52: 51 | AA52: 0.0033 | AB52: 电池 | AC52: 0 | AD52: 0 | AE52: 0
A53: =参数!B53 -> 自定义 | B53: =SUMIFS(合计,品名,计算!A53,出入库,"采购",日期辅助,参数!$N$2) -> 0 | C53: =SUMIFS(合计,品名,计算!A53,出入库,"出库",日期辅助,参数!$N$2) -> 0 | D53: =SUMIFS(合计,品名,计算!A53,出入库,"采购")-SUMIFS(合计,品名,计算!A53,出入库,"出库") -> 0 | E53: =SUMIFS(数量,品名,计算!A53,出入库,"采购",日期辅助,参数!$N$2) -> 0 | F53: =SUMIFS(数量,品名,计算!A53,出入库,"出库",日期辅助,参数!$N$2) -> 0 | G53: =SUMIFS(数量,品名,计算!A53,出入库,"采购")-SUMIFS(数量,品名,计算!A53,出入库,"出库") -> 0 | I53: =SUMIFS(数量,品名,计算!A53,部门,计算!$I$1,出入库,"出库")+0.001 -> 0.001 | J53: =SUMIFS(数量,品名,计算!A53,部门,计算!$J$1,出入库,"出库")+0.002 -> 0.002 | K53: =SUMIFS(数量,品名,计算!A53,部门,计算!$K$1,出入库,"出库")+0.003 -> 0.003 | L53: =SUMIFS(数量,品名,计算!A53,部门,计算!$L$1,出入库,"出库")+0.004 -> 0.004 | M53: =SUMIFS(数量,品名,计算!A53,部门,计算!$M$1,出入库,"出库")+0.005 -> 0.005 | N53: =SUMIFS(数量,品名,计算!A53,部门,计算!$N$1,出入库,"出库")+0.006 -> 0.006 | O53: =SUMIFS(数量,品名,计算!A53,部门,计算!$O$1,出入库,"出库")+0.007 -> 0.007 | P53: 0.007 | Q53: =HLOOKUP(P53,$I53:$O$62,62-ROW(R52),FALSE) -> 其他 | Y53: =C53+ROW()/10000 -> 0.0053 | Z53: 52 | AA53: 0.0032 | AB53: 订书钉 | AC53: 0 | AD53: 0 | AE53: 0
A54: =参数!B54 -> 自定义 | B54: =SUMIFS(合计,品名,计算!A54,出入库,"采购",日期辅助,参数!$N$2) -> 0 | C54: =SUMIFS(合计,品名,计算!A54,出入库,"出库",日期辅助,参数!$N$2) -> 0 | D54: =SUMIFS(合计,品名,计算!A54,出入库,"采购")-SUMIFS(合计,品名,计算!A54,出入库,"出库") -> 0 | E54: =SUMIFS(数量,品名,计算!A54,出入库,"采购",日期辅助,参数!$N$2) -> 0 | F54: =SUMIFS(数量,品名,计算!A54,出入库,"出库",日期辅助,参数!$N$2) -> 0 | G54: =SUMIFS(数量,品名,计算!A54,出入库,"采购")-SUMIFS(数量,品名,计算!A54,出入库,"出库") -> 0 | I54: =SUMIFS(数量,品名,计算!A54,部门,计算!$I$1,出入库,"出库")+0.001 -> 0.001 | J54: =SUMIFS(数量,品名,计算!A54,部门,计算!$J$1,出入库,"出库")+0.002 -> 0.002 | K54: =SUMIFS(数量,品名,计算!A54,部门,计算!$K$1,出入库,"出库")+0.003 -> 0.003 | L54: =SUMIFS(数量,品名,计算!A54,部门,计算!$L$1,出入库,"出库")+0.004 -> 0.004 | M54: =SUMIFS(数量,品名,计算!A54,部门,计算!$M$1,出入库,"出库")+0.005 -> 0.005 | N54: =SUMIFS(数量,品名,计算!A54,部门,计算!$N$1,出入库,"出库")+0.006 -> 0.006 | O54: =SUMIFS(数量,品名,计算!A54,部门,计算!$O$1,出入库,"出库")+0.007 -> 0.007 | P54: 0.007 | Q54: =HLOOKUP(P54,$I54:$O$62,62-ROW(R53),FALSE) -> 其他 | Y54: 0.0054 | Z54: 53 | AA54: 0.003 | AB54: 方托 | AC54: 0 | AD54: 0 | AE54: 0
A55: =参数!B55 -> 自定义 | B55: =SUMIFS(合计,品名,计算!A55,出入库,"采购",日期辅助,参数!$N$2) -> 0 | C55: =SUMIFS(合计,品名,计算!A55,出入库,"出库",日期辅助,参数!$N$2) -> 0 | D55: =SUMIFS(合计,品名,计算!A55,出入库,"采购")-SUMIFS(合计,品名,计算!A55,出入库,"出库") -> 0 | E55: =SUMIFS(数量,品名,计算!A55,出入库,"采购",日期辅助,参数!$N$2) -> 0 | F55: =SUMIFS(数量,品名,计算!A55,出入库,"出库",日期辅助,参数!$N$2) -> 0 | G55: =SUMIFS(数量,品名,计算!A55,出入库,"采购")-SUMIFS(数量,品名,计算!A55,出入库,"出库") -> 0 | I55: =SUMIFS(数量,品名,计算!A55,部门,计算!$I$1,出入库,"出库")+0.001 -> 0.001 | J55: =SUMIFS(数量,品名,计算!A55,部门,计算!$J$1,出入库,"出库")+0.002 -> 0.002 | K55: =SUMIFS(数量,品名,计算!A55,部门,计算!$K$1,出入库,"出库")+0.003 -> 0.003 | L55: =SUMIFS(数量,品名,计算!A55,部门,计算!$L$1,出入库,"出库")+0.004 -> 0.004 | M55: =SUMIFS(数量,品名,计算!A55,部门,计算!$M$1,出入库,"出库")+0.005 -> 0.005 | N55: =SUMIFS(数量,品名,计算!A55,部门,计算!$N$1,出入库,"出库")+0.006 -> 0.006 | O55: =SUMIFS(数量,品名,计算!A55,部门,计算!$O$1,出入库,"出库")+0.007 -> 0.007 | P55: 0.007 | Q55: =HLOOKUP(P55,$I55:$O$62,62-ROW(R54),FALSE) -> 其他 | Y55: =C55+ROW()/100000000 -> 5.5e-07 | Z55: 54 | AA55: 6e-07 | AB55: 自定义 | AC55: 0 | AD55: 0 | AE55: 0
A56: =参数!B56 -> 自定义 | B56: =SUMIFS(合计,品名,计算!A56,出入库,"采购",日期辅助,参数!$N$2) -> 0 | C56: =SUMIFS(合计,品名,计算!A56,出入库,"出库",日期辅助,参数!$N$2) -> 0 | D56: =SUMIFS(合计,品名,计算!A56,出入库,"采购")-SUMIFS(合计,品名,计算!A56,出入库,"出库") -> 0 | E56: =SUMIFS(数量,品名,计算!A56,出入库,"采购",日期辅助,参数!$N$2) -> 0 | F56: =SUMIFS(数量,品名,计算!A56,出入库,"出库",日期辅助,参数!$N$2) -> 0 | G56: =SUMIFS(数量,品名,计算!A56,出入库,"采购")-SUMIFS(数量,品名,计算!A56,出入库,"出库") -> 0 | I56: =SUMIFS(数量,品名,计算!A56,部门,计算!$I$1,出入库,"出库")+0.001 -> 0.001 | J56: =SUMIFS(数量,品名,计算!A56,部门,计算!$J$1,出入库,"出库")+0.002 -> 0.002 | K56: =SUMIFS(数量,品名,计算!A56,部门,计算!$K$1,出入库,"出库")+0.003 -> 0.003 | L56: =SUMIFS(数量,品名,计算!A56,部门,计算!$L$1,出入库,"出库")+0.004 -> 0.004 | M56: =SUMIFS(数量,品名,计算!A56,部门,计算!$M$1,出入库,"出库")+0.005 -> 0.005 | N56: =SUMIFS(数量,品名,计算!A56,部门,计算!$N$1,出入库,"出库")+0.006 -> 0.006 | O56: =SUMIFS(数量,品名,计算!A56,部门,计算!$O$1,出入库,"出库")+0.007 -> 0.007 | P56: 0.007 | Q56: =HLOOKUP(P56,$I56:$O$62,62-ROW(R55),FALSE) -> 其他 | Y56: =C56+ROW()/100000000 -> 5.6e-07 | Z56: 55 | AA56: 5.9e-07 | AB56: 自定义 | AC56: 0 | AD56: 0 | AE56: 0
A57: =参数!B57 -> 自定义 | B57: =SUMIFS(合计,品名,计算!A57,出入库,"采购",日期辅助,参数!$N$2) -> 0 | C57: =SUMIFS(合计,品名,计算!A57,出入库,"出库",日期辅助,参数!$N$2) -> 0 | D57: =SUMIFS(合计,品名,计算!A57,出入库,"采购")-SUMIFS(合计,品名,计算!A57,出入库,"出库") -> 0 | E57: =SUMIFS(数量,品名,计算!A57,出入库,"采购",日期辅助,参数!$N$2) -> 0 | F57: =SUMIFS(数量,品名,计算!A57,出入库,"出库",日期辅助,参数!$N$2) -> 0 | G57: =SUMIFS(数量,品名,计算!A57,出入库,"采购")-SUMIFS(数量,品名,计算!A57,出入库,"出库") -> 0 | I57: =SUMIFS(数量,品名,计算!A57,部门,计算!$I$1,出入库,"出库")+0.001 -> 0.001 | J57: =SUMIFS(数量,品名,计算!A57,部门,计算!$J$1,出入库,"出库")+0.002 -> 0.002 | K57: =SUMIFS(数量,品名,计算!A57,部门,计算!$K$1,出入库,"出库")+0.003 -> 0.003 | L57: =SUMIFS(数量,品名,计算!A57,部门,计算!$L$1,出入库,"出库")+0.004 -> 0.004 | M57: =SUMIFS(数量,品名,计算!A57,部门,计算!$M$1,出入库,"出库")+0.005 -> 0.005 | N57: =SUMIFS(数量,品名,计算!A57,部门,计算!$N$1,出入库,"出库")+0.006 -> 0.006 | O57: =SUMIFS(数量,品名,计算!A57,部门,计算!$O$1,出入库,"出库")+0.007 -> 0.007 | P57: 0.007 | Q57: =HLOOKUP(P57,$I57:$O$62,62-ROW(R56),FALSE) -> 其他 | Y57: 5.7e-07 | Z57: 56 | AA57: 5.8e-07 | AB57: 自定义 | AC57: 0 | AD57: 0 | AE57: 0
A58: =参数!B58 -> 自定义 | B58: =SUMIFS(合计,品名,计算!A58,出入库,"采购",日期辅助,参数!$N$2) -> 0 | C58: =SUMIFS(合计,品名,计算!A58,出入库,"出库",日期辅助,参数!$N$2) -> 0 | D58: =SUMIFS(合计,品名,计算!A58,出入库,"采购")-SUMIFS(合计,品名,计算!A58,出入库,"出库") -> 0 | E58: =SUMIFS(数量,品名,计算!A58,出入库,"采购",日期辅助,参数!$N$2) -> 0 | F58: =SUMIFS(数量,品名,计算!A58,出入库,"出库",日期辅助,参数!$N$2) -> 0 | G58: =SUMIFS(数量,品名,计算!A58,出入库,"采购")-SUMIFS(数量,品名,计算!A58,出入库,"出库") -> 0 | I58: =SUMIFS(数量,品名,计算!A58,部门,计算!$I$1,出入库,"出库")+0.001 -> 0.001 | J58: =SUMIFS(数量,品名,计算!A58,部门,计算!$J$1,出入库,"出库")+0.002 -> 0.002 | K58: =SUMIFS(数量,品名,计算!A58,部门,计算!$K$1,出入库,"出库")+0.003 -> 0.003 | L58: =SUMIFS(数量,品名,计算!A58,部门,计算!$L$1,出入库,"出库")+0.004 -> 0.004 | M58: =SUMIFS(数量,品名,计算!A58,部门,计算!$M$1,出入库,"出库")+0.005 -> 0.005 | N58: =SUMIFS(数量,品名,计算!A58,部门,计算!$N$1,出入库,"出库")+0.006 -> 0.006 | O58: =SUMIFS(数量,品名,计算!A58,部门,计算!$O$1,出入库,"出库")+0.007 -> 0.007 | P58: 0.007 | Q58: =HLOOKUP(P58,$I58:$O$62,62-ROW(R57),FALSE) -> 其他 | Y58: 5.8e-07 | Z58: 57 | AA58: 5.7e-07 | AB58: 自定义 | AC58: 0 | AD58: 0 | AE58: 0
A59: =参数!B59 -> 自定义 | B59: =SUMIFS(合计,品名,计算!A59,出入库,"采购",日期辅助,参数!$N$2) -> 0 | C59: =SUMIFS(合计,品名,计算!A59,出入库,"出库",日期辅助,参数!$N$2) -> 0 | D59: =SUMIFS(合计,品名,计算!A59,出入库,"采购")-SUMIFS(合计,品名,计算!A59,出入库,"出库") -> 0 | E59: =SUMIFS(数量,品名,计算!A59,出入库,"采购",日期辅助,参数!$N$2) -> 0 | F59: =SUMIFS(数量,品名,计算!A59,出入库,"出库",日期辅助,参数!$N$2) -> 0 | G59: =SUMIFS(数量,品名,计算!A59,出入库,"采购")-SUMIFS(数量,品名,计算!A59,出入库,"出库") -> 0 | I59: =SUMIFS(数量,品名,计算!A59,部门,计算!$I$1,出入库,"出库")+0.001 -> 0.001 | J59: =SUMIFS(数量,品名,计算!A59,部门,计算!$J$1,出入库,"出库")+0.002 -> 0.002 | K59: =SUMIFS(数量,品名,计算!A59,部门,计算!$K$1,出入库,"出库")+0.003 -> 0.003 | L59: =SUMIFS(数量,品名,计算!A59,部门,计算!$L$1,出入库,"出库")+0.004 -> 0.004 | M59: =SUMIFS(数量,品名,计算!A59,部门,计算!$M$1,出入库,"出库")+0.005 -> 0.005 | N59: =SUMIFS(数量,品名,计算!A59,部门,计算!$N$1,出入库,"出库")+0.006 -> 0.006 | O59: =SUMIFS(数量,品名,计算!A59,部门,计算!$O$1,出入库,"出库")+0.007 -> 0.007 | P59: 0.007 | Q59: =HLOOKUP(P59,$I59:$O$62,62-ROW(R58),FALSE) -> 其他 | Y59: 5.9e-07 | Z59: 58 | AA59: 5.6e-07 | AB59: 自定义 | AC59: 0 | AD59: 0 | AE59: 0
A60: =参数!B60 -> 自定义 | B60: =SUMIFS(合计,品名,计算!A60,出入库,"采购",日期辅助,参数!$N$2) -> 0 | C60: =SUMIFS(合计,品名,计算!A60,出入库,"出库",日期辅助,参数!$N$2) -> 0 | D60: =SUMIFS(合计,品名,计算!A60,出入库,"采购")-SUMIFS(合计,品名,计算!A60,出入库,"出库") -> 0 | E60: =SUMIFS(数量,品名,计算!A60,出入库,"采购",日期辅助,参数!$N$2) -> 0 | F60: =SUMIFS(数量,品名,计算!A60,出入库,"出库",日期辅助,参数!$N$2) -> 0 | G60: =SUMIFS(数量,品名,计算!A60,出入库,"采购")-SUMIFS(数量,品名,计算!A60,出入库,"出库") -> 0 | I60: =SUMIFS(数量,品名,计算!A60,部门,计算!$I$1,出入库,"出库")+0.001 -> 0.001 | J60: =SUMIFS(数量,品名,计算!A60,部门,计算!$J$1,出入库,"出库")+0.002 -> 0.002 | K60: =SUMIFS(数量,品名,计算!A60,部门,计算!$K$1,出入库,"出库")+0.003 -> 0.003 | L60: =SUMIFS(数量,品名,计算!A60,部门,计算!$L$1,出入库,"出库")+0.004 -> 0.004 | M60: =SUMIFS(数量,品名,计算!A60,部门,计算!$M$1,出入库,"出库")+0.005 -> 0.005 | N60: =SUMIFS(数量,品名,计算!A60,部门,计算!$N$1,出入库,"出库")+0.006 -> 0.006 | O60: =SUMIFS(数量,品名,计算!A60,部门,计算!$O$1,出入库,"出库")+0.007 -> 0.007 | P60: 0.007 | Q60: =HLOOKUP(P60,$I60:$O$62,62-ROW(R59),FALSE) -> 其他 | Y60: 6e-07 | Z60: 59 | AA60: 5.5e-07 | AB60: 自定义 | AC60: 0 | AD60: 0 | AE60: 0
A61: =参数!B61 -> 油卡 | B61: =SUMIFS(合计,品名,计算!A61,出入库,"采购",日期辅助,参数!$N$2) -> 3575 | C61: =SUMIFS(合计,品名,计算!A61,出入库,"出库",日期辅助,参数!$N$2) -> 3080 | D61: =SUMIFS(合计,品名,计算!A61,出入库,"采购")-SUMIFS(合计,品名,计算!A61,出入库,"出库") -> 495 | E61: =SUMIFS(数量,品名,计算!A61,出入库,"采购",日期辅助,参数!$N$2) -> 650 | F61: =SUMIFS(数量,品名,计算!A61,出入库,"出库",日期辅助,参数!$N$2) -> 560 | G61: =SUMIFS(数量,品名,计算!A61,出入库,"采购")-SUMIFS(数量,品名,计算!A61,出入库,"出库") -> 90 | I61: =SUMIFS(数量,品名,计算!A61,部门,计算!$I$1,出入库,"出库")+0.001 -> 0.001 | J61: =SUMIFS(数量,品名,计算!A61,部门,计算!$J$1,出入库,"出库")+0.002 -> 0.002 | K61: =SUMIFS(数量,品名,计算!A61,部门,计算!$K$1,出入库,"出库")+0.003 -> 0.003 | L61: =SUMIFS(数量,品名,计算!A61,部门,计算!$L$1,出入库,"出库")+0.004 -> 0.004 | M61: =SUMIFS(数量,品名,计算!A61,部门,计算!$M$1,出入库,"出库")+0.005 -> 0.005 | N61: =SUMIFS(数量,品名,计算!A61,部门,计算!$N$1,出入库,"出库")+0.006 -> 0.006 | O61: =SUMIFS(数量,品名,计算!A61,部门,计算!$O$1,出入库,"出库")+0.007 -> 0.007 | P61: 0.007 | Q61: =HLOOKUP(P61,$I61:$O$62,62-ROW(R60),FALSE) -> 其他
A62: =参数!B62 -> 电卡 | B62: =SUMIFS(合计,品名,计算!A62,出入库,"采购",日期辅助,参数!$N$2) -> 825 | C62: =SUMIFS(合计,品名,计算!A62,出入库,"出库",日期辅助,参数!$N$2) -> 247.5 | D62: =SUMIFS(合计,品名,计算!A62,出入库,"采购")-SUMIFS(合计,品名,计算!A62,出入库,"出库") -> 577.5 | E62: =SUMIFS(数量,品名,计算!A62,出入库,"采购",日期辅助,参数!$N$2) -> 1500 | F62: =SUMIFS(数量,品名,计算!A62,出入库,"出库",日期辅助,参数!$N$2) -> 450 | G62: =SUMIFS(数量,品名,计算!A62,出入库,"采购")-SUMIFS(数量,品名,计算!A62,出入库,"出库") -> 1050 | I62: 销售部 | J62: 服务部 | K62: 机修车间 | L62: 钣喷部 | M62: 财务部 | N62: 客服部 | O62: 其他 | P62: MAX | Q62: 最大部门

Sheet 参数
A1: 日历 | B1: 品名 | C1: 所属类别 | D1: 单价 | E1: 单位 | F1: 类别 | G1: 出入库 | H1: 部门 | I1: 公司名称 | M1: 动态月份 | N1: 动态月份参数 | O1: =TODAY() -> 2015-03-25
A2: =DATE(2015,$N$2,ROW()-1) -> 2015-03-01 | B2: 支出证明 | C2: 办公 | D2: 1.5 | E2: 支 | F2: 办公 | G2: 采购 | H2: 销售部 | I2: 衡水烨通汽贸 | M2: 1月 | N2: 3 | O2: =N2&"月" -> 3月
A3: =DATE(2015,$N$2,ROW()-1) -> 2015-03-02 | B3: 圆珠笔 | C3: 办公 | D3: 1.5 | E3: 支 | F3: 食品 | G3: 出库 | H3: 服务部 | I3: 办公用品管理分析报告 | M3: 2月
A4: 2015-03-03 | B4: 印油 | C4: 办公 | D4: 1.5 | E4: 盒 | F4: 劳保 | H4: 机修车间 | M4: 3月
A5: 2015-03-04 | B5: 燕尾夹 | C5: 办公 | D5: 1.5 | E5: 个 | F5: 电卡 | H5: 钣喷部 | M5: 4月
A6: 2015-03-05 | B6: 洗衣粉 | C6: 劳保 | D6: 1.5 | E6: 袋 | F6: 油卡 | H6: 财务部 | M6: 5月
A7: 2015-03-06 | B7: 文件夹 | C7: 办公 | D7: 1.5 | E7: 个 | F7: 其它 | H7: 客服部 | M7: 6月
A8: 2015-03-07 | B8: 卫生纸 | C8: 劳保 | D8: 1.5 | E8: 包 | F8: 自定义 | H8: 市场部 | M8: 7月
A9: 2015-03-08 | B9: 笤帚 | C9: 劳保 | D9: 1.5 | E9: 支 | F9: 自定义 | H9: 综合部 | M9: 8月
A10: 2015-03-09 | B10: 条码纸 | C10: 办公 | D10: 0.6 | E10: 包 | H10: 其他 | M10: 9月
A11: 2015-03-10 | B11: 糖 | C11: 食品 | D11: 0.6 | E11: 包 | M11: 10月
A12: 2015-03-11 | B12: 碳带 | C12: 办公 | D12: 0.6 | E12: 盒 | M12: 11月
A13: 2015-03-12 | B13: 手套 | C13: 劳保 | D13: 0.6 | E13: 双 | M13: 12月
A14: 2015-03-13 | B14: 收银纸 | C14: 办公 | D14: 0.6 | E14: 盒
A15: 2015-03-14 | B15: 收据 | C15: 办公 | D15: 0.6 | E15: 本
A16: 2015-03-15 | B16: 色带 | C16: 办公 | D16: 0.6 | E16: 支
A17: 2015-03-16 | B17: 曲别针 | C17: 办公 | D17: 0.6 | E17: 盒
A18: 2015-03-17 | B18: 皮筋 | C18: 办公 | D18: 0.6 | E18: 包
A19: 2015-03-18 | B19: 墨水 | C19: 办公 | D19: 0.6 | E19: 瓶
A20: 2015-03-19 | B20: 拉链袋 | C20: 办公 | D20: 0.6 | E20: 盒
A21: 2015-03-20 | B21: 垃圾袋 | C21: 劳保 | D21: 0.6 | E21: 包
A22: 2015-03-21 | B22: 借支单 | C22: 办公 | D22: 0.6 | E22: 瓶
A23: 2015-03-22 | B23: 胶水 | C23: 办公 | D23: 0.6 | E23: 盒
A24: 2015-03-23 | B24: 胶带 | C24: 办公 | D24: 0.6 | E24: 包
A25: 2015-03-24 | B25: 胶棒 | C25: 办公 | D25: 0.6 | E25: 瓶
A26: 2015-03-25 | B26: 记号笔 | C26: 办公 | D26: 0.6 | E26: 盒
A27: 2015-03-26 | B27: 计算器 | C27: 办公 | D27: 0.6 | E27: 包
A28: 2015-03-27 | B28: 黑档案盒 | C28: 办公 | D28: 0.6 | E28: 瓶
A29: 2015-03-28 | B29: 费用报销单 | C29: 办公 | D29: 0.6 | E29: 盒
A30: 2015-03-29 | B30: 方托 | C30: 办公 | D30: 0.6 | E30: 包
A31: 2015-03-30 | B31: 订书器 | C31: 办公 | D31: 0.6 | E31: 瓶
A32: 2015-03-31 | B32: 订书钉 | C32: 办公 | D32: 0.6 | E32: 盒
B33: 电池 | C33: 办公 | D33: 0.6 | E33: 包
B34: 档案盒 | C34: 办公 | D34: 0.6 | E34: 瓶
B35: 档案袋 | C35: 办公 | D35: 0.6 | E35: 盒
B36: 大盘纸 | C36: 办公 | D36: 0.6 | E36: 包
B37: 创可贴 | C37: 劳保 | D37: 0.6 | E37: 瓶
B38: 出库单 | C38: 办公 | D38: 0.6 | E38: 盒
B39: 抽杆文件夹 | C39: 办公 | D39: 0.6 | E39: 包
B40: 尘推油 | C40: 劳保 | D40: 0.6 | E40: 瓶
B41: 车牌色带 | C41: 劳保 | D41: 0.6 | E41: 盒
B42: 插排 | C42: 劳保 | D42: 0.6 | E42: 包
B43: 簸箕 | C43: 劳保 | D43: 0.6 | E43: 瓶
B44: 饼干 | C44: 食品 | D44: 0.6 | E44: 盒
B45: 便利贴 | C45: 办公 | D45: 0.6 | E45: 包
B46: 笔芯 | C46: 办公 | D46: 0.6 | E46: 瓶
B47: 笔记本 | C47: 办公 | D47: 0.6 | E47: 盒
B48: 笔 | C48: 办公 | D48: 0.6 | E48: 包
B49: 白板笔 | C49: 办公 | D49: 0.6 | E49: 瓶
B50: A4 | C50: 办公 | D50: 0.6 | E50: 盒
B51: 9v电池 | C51: 办公 | D51: 0.6 | E51: 包
B52: 2联 | C52: 办公 | D52: 0.6 | E52: 瓶
B53: 自定义 | C53: 其它 | D53: 6.5 | E53: 升
B54: 自定义 | C54: 其它 | D54: 0 | E54: 度
B55: 自定义 | C55: 其它 | D55: 0 | E55: 度
B56: 自定义 | C56: 其它 | D56: 0 | E56: 度
B57: 自定义 | C57: 其它 | D57: 0 | E57: 度
B58: 自定义 | C58: 其它 | D58: 0 | E58: 度
B59: 自定义 | C59: 其它 | D59: 0 | E59: 度
B60: 自定义 | C60: 其它 | D60: 0 | E60: 度
B61: 油卡 | C61: 油卡 | D61: 5.5 | E61: 度
B62: 电卡 | C62: 电卡 | D62: 0.55 | E62: 度

Sheet 仪表盘 (hidden)
A1: 办公用品 | B1: 油卡 | C1: 电卡 | D1: 劳保 | E1: 食品 | F1: 其他
A2: =分析!L14 -> 16048.2 | B2: =分析!J14 -> 3575 | C2: =分析!H14 -> 825 | D2: =分析!P14 -> 4776 | E2: =分析!N14 -> 3072 | F2: =分析!R14 -> 0
A3: =A2/SUM($A$2:$F$2) -> 0.5671503594 | B3: =B2/SUM($A$2:$F$2) -> 0.126342053 | C3: 0.02915585838 | D3: 0.1687859147 | E3: 0.1085658145 | F3: 0 | G3: 比例
A4: =1-A3 -> 0.4328496406 | B4: =1-B3 -> 0.873657947 | C4: 0.9708441416 | D4: 0.8312140853 | E4: 0.8914341855 | F4: 1 | G4: 占位

Sheet Sheet2 (hidden)

Sheet 123 (hidden)
B1: 采购 | C1: 领取 | F1: 日期 | G1: 采购 | H1: 领取 | R1: 累计充值 | S1: 本月充值
A2: A4 | B2: =RANDBETWEEN(100,1000) -> 679 | C2: =B2-RANDBETWEEN(6,100) -> 600 | D2: =(B2-C2)/$C$2 -> 0.1316666667 | F2: 2015-03-01 | G2: =RANDBETWEEN(500,2000) -> 1752 | H2: =RANDBETWEEN(10,500) -> 102 | K2: 销售 | L2: 10 | N2: 累计采购额 | O2: 12000 | Q2: 电费 | R2: 12000 | S2: 5000
A3: 档案袋 | B3: 659 | C3: 619 | D3: 0.06666666667 | F3: 2015-03-02 | G3: =RANDBETWEEN(500,2000) -> 1262 | H3: 134 | K3: 服务 | L3: 20 | N3: 累计出库额 | O3: 8000 | Q3: 油卡 | R3: 3600 | S3: 1600
A4: 收银纸 | B4: 647 | C4: 568 | D4: 0.1316666667 | F4: 2015-03-03 | G4: 1388 | H4: 315 | K4: 机修 | L4: 25 | N4: 本月采购额 | O4: 2000
A5: 插排 | B5: 176 | C5: 117 | D5: 0.09833333333 | F5: 2015-03-04 | G5: 1010 | H5: 315 | K5: 钣喷 | L5: 5 | N5: 本月出库额 | O5: 1000
A6: 文件夹 | B6: 271 | C6: 215 | D6: 0.09333333333 | F6: 2015-03-05 | G6: 1696 | H6: 331 | K6: 客服 | L6: 15
A7: 燕尾夹 | B7: 649 | C7: 568 | D7: 0.135 | F7: 2015-03-06 | G7: 661 | H7: 46 | K7: 财务 | L7: 11
A8: 档案盒 | B8: 313 | C8: 291 | D8: 0.03666666667 | F8: 2015-03-07 | G8: 748 | H8: 296 | K8: 其它 | L8: 18
A9: 支出证明 | B9: 476 | C9: 462 | D9: 0.02333333333 | F9: 2015-03-08 | G9: 742 | H9: 317
A10: 费用报销单 | B10: 729 | C10: 646 | D10: 0.1383333333 | F10: 2015-03-09 | G10: 770 | H10: 190
A11: 创可贴 | B11: 838 | C11: 828 | D11: 0.01666666667 | F11: 2015-03-10 | G11: 1205 | H11: 181
A12: 记号笔 | B12: 859 | C12: 783 | D12: 0.1266666667 | F12: 2015-03-11 | G12: 501 | H12: 87
A13: 条码纸 | B13: 327 | C13: 314 | D13: 0.02166666667 | F13: 2015-03-12 | G13: 963 | H13: 30
A14: 簸箕 | B14: 466 | C14: 434 | D14: 0.05333333333 | F14: 2015-03-13 | G14: 764 | H14: 276
A15: 胶水 | B15: 364 | C15: 349 | D15: 0.025 | F15: 2015-03-14 | G15: 880 | H15: 365
A16: 订书器 | B16: 905 | C16: 838 | D16: 0.1116666667 | F16: 2015-03-15 | G16: 872 | H16: 139
A17: 墨水 | B17: 882 | C17: 816 | D17: 0.11 | F17: 2015-03-16 | G17: 586 | H17: 101
A18: 车牌色带 | B18: 894 | C18: 812 | D18: 0.1366666667 | F18: 2015-03-17 | G18: 1008 | H18: 346
A19: 笔芯 | B19: 979 | C19: 942 | D19: 0.06166666667 | F19: 2015-03-18 | G19: 638 | H19: 457
A20: 卫生纸 | B20: 459 | C20: 387 | D20: 0.12 | F20: 2015-03-19 | G20: 864 | H20: 366
A21: 9v电池 | B21: 595 | C21: 499 | D21: 0.16 | F21: 2015-03-20 | G21: 587 | H21: 202
A22: 垃圾袋 | B22: 544 | C22: 475 | D22: 0.115 | F22: 2015-03-21 | G22: 1624 | H22: 50
A23: 洗衣粉 | B23: 815 | C23: 715 | D23: 0.1666666667 | F23: 2015-03-22 | G23: 1659 | H23: 381
A24: 色带 | B24: 283 | C24: 266 | D24: 0.02833333333 | F24: 2015-03-23 | G24: 593 | H24: 409
A25: 电池 | B25: 896 | C25: 867 | D25: 0.04833333333 | F25: 2015-03-24 | G25: 1281 | H25: 223
A26: 订书钉 | B26: 979 | C26: 967 | D26: 0.02 | F26: 2015-03-25 | G26: 1571 | H26: 498
A27: 圆珠笔 | B27: 749 | C27: 651 | D27: 0.1633333333 | F27: 2015-03-26 | G27: 784 | H27: 471
A28: 笔记本 | B28: 707 | C28: 654 | D28: 0.08833333333 | F28: 2015-03-27 | G28: 824 | H28: 428
A29: 大盘纸 | B29: 201 | C29: 113 | D29: 0.1466666667 | F29: 2015-03-28 | G29: 1025 | H29: 249
A30: 2联 | B30: 235 | C30: 136 | D30: 0.165 | F30: 2015-03-29 | G30: 567 | H30: 257
A31: 笔 | B31: 130 | C31: 83 | D31: 0.07833333333 | F31: 2015-03-30 | G31: 1192 | H31: 266
A32: 胶棒 | B32: 115 | C32: 100 | D32: 0.025 | F32: 2015-03-31 | G32: 1140 | H32: 440
A33: 出库单 | B33: 206 | C33: 141 | D33: 0.1083333333
A34: 笤帚 | B34: =RANDBETWEEN(100,1000) -> 312 | C34: =B34-RANDBETWEEN(6,100) -> 272 | D34: =(B34-C34)/$C$2 -> 0.06666666667
A35: 收据 | B35: 685 | C35: 603 | D35: 0.1366666667
A36: 借支单 | B36: 749 | C36: 684 | D36: 0.1083333333
A37: 便利贴 | B37: 800 | C37: 700 | D37: 0.1666666667
A38: 方托 | B38: 407 | C38: 351 | D38: 0.09333333333
A39: 尘推油 | B39: 196 | C39: 138 | D39: 0.09666666667
A40: 糖 | B40: 464 | C40: 441 | D40: 0.03833333333
A41: 饼干 | B41: 819 | C41: 728 | D41: 0.1516666667
A42: 胶带 | B42: 320 | C42: 311 | D42: 0.015
A43: 抽杆文件夹 | B43: 348 | C43: 339 | D43: 0.015
A44: 皮筋 | B44: 743 | C44: 731 | D44: 0.02
A45: 黑档案盒 | B45: 357 | C45: 257 | D45: 0.1666666667
A46: 计算器 | B46: 806 | C46: 736 | D46: 0.1166666667
A47: 曲别针 | B47: 335 | C47: 266 | D47: 0.115
A48: 白板笔 | B48: 482 | C48: 438 | D48: 0.07333333333
A49: 碳带 | B49: 481 | C49: 434 | D49: 0.07833333333
A50: 拉链袋 | B50: 265 | C50: 178 | D50: 0.145
A51: 手套 | B51: 200 | C51: 108 | D51: 0.1533333333
A52: 印油 | B52: 209 | C52: 176 | D52: 0.055

Sheet 使用帮助
